Body Name,Transaction Number,Account Code Description,Expenses Type,Service Code,Service Area Categorisation,Supplier Name,Payment Date,Amount,
Bath & North East Somerset Council,80264605,LM4,Respite Care,P02,"Early Years, Children & Youth",REDACTED,02/10/2013,56.86,
Bath & North East Somerset Council,80264605,LM4,Respite Care,P02,"Early Years, Children & Youth",REDACTED,02/10/2013,56.86,
Bath & North East Somerset Council,80264605,LM2,Foster Carer Allowances,P02,"Early Years, Children & Youth",REDACTED,02/10/2013,398,
Bath & North East Somerset Council,10713527,HA5,Service Contract PCB,P07,Community Resources,MECHANICAL ENGINEERING SERVICE,02/10/2013,57.08,
Bath & North East Somerset Council,10713668,LA5,Materials,P05,Neighbourhoods,YOUNG JOHNSON,02/10/2013,100,
Bath & North East Somerset Council,10713527,HA4,Responsive Maintenance PCB,P07,Community Resources,MECHANICAL ENGINEERING SERVICE,02/10/2013,397.12,
Bath & North East Somerset Council,10713711,LA5,Materials,P05,Neighbourhoods,FLEET (LINE MARKERS) LTD,02/10/2013,440.16,
Bath & North East Somerset Council,10712683,HV3,Window Cleaning,P07,Community Resources,ABC WINDOW CLEANING SERVICES,02/10/2013,463.1,
Bath & North East Somerset Council,10713958,LF4,Stationery,P05,Neighbourhoods,LYRECO UK LIMITED,02/10/2013,481.12,
Bath & North East Somerset Council,80264634,PG1,Rent Allowances,P07,Community Resources,ADVANCE HOUSING SUPPORT & SUPPOR,02/10/2013,747.04,
Bath & North East Somerset Council,10713469,3F7,External Fees,P02,"Early Years, Children & Youth",C K GIBBONS LTD,02/10/2013,503.5,
Bath & North East Somerset Council,10714155,KA1,Repairs & Maintenance,P05,Neighbourhoods,FINNING (UK) LTD,02/10/2013,508,
Bath & North East Somerset Council,10713045,LA5,Materials,P07,Community Resources,PREMIER PAPER,02/10/2013,529.92,
Bath & North East Somerset Council,10713527,HA5,Service Contract PCB,P07,Community Resources,MECHANICAL ENGINEERING SERVICE,02/10/2013,535.39,
Bath & North East Somerset Council,10712907,3N7,Misc. Costs,P01,Transport,TMP (UK) LTD,02/10/2013,546.99,
Bath & North East Somerset Council,10712794,3F7,External Fees,P01,Transport,SOUTH GLOUCESTERSHIRE COUNCIL,02/10/2013,553,
Bath & North East Somerset Council,10712952,LA5,Materials,P05,Neighbourhoods,AVANTI HYGIENE LTD,02/10/2013,556,
Bath & North East Somerset Council,80264595,LL2,Personal Needs of Clients,P02,"Early Years, Children & Youth",REDACTED,02/10/2013,1000,
Bath & North East Somerset Council,80264630,PG1,Rent Allowances,P07,Community Resources,REDACTED,02/10/2013,746.27,
Bath & North East Somerset Council,80264616,LL2,Personal Needs of Clients,P02,"Early Years, Children & Youth",REDACTED,02/10/2013,13,
Bath & North East Somerset Council,80264616,LL2,Personal Needs of Clients,P02,"Early Years, Children & Youth",REDACTED,02/10/2013,43.8,
Bath & North East Somerset Council,80264616,LL2,Personal Needs of Clients,P02,"Early Years, Children & Youth",REDACTED,02/10/2013,65,
Bath & North East Somerset Council,80264616,LL3,Supported Living,P09,Homes & Planning,REDACTED,02/10/2013,106,
Bath & North East Somerset Council,80264616,LM2,Foster Carer Allowances,P02,"Early Years, Children & Youth",REDACTED,02/10/2013,236.64,
Bath & North East Somerset Council,80264616,LM2,Foster Carer Allowances,P02,"Early Years, Children & Youth",REDACTED,02/10/2013,800,
Bath & North East Somerset Council,10712169,LJ1,Consultants Fees,P03,Wellbeing,ROBIN COWEN CONSULTANCY LTD,02/10/2013,605.2,
Bath & North East Somerset Council,10714066,LJ4,Contracts,P01,Transport,CENTURION TRAVEL LTD,02/10/2013,640,
Bath & North East Somerset Council,10714133,LJ8,PCB External Fees,P06,Sustainable Development,DICKON ROBINSON,02/10/2013,648.92,
Bath & North East Somerset Council,10714301,HA4,Responsive Maintenance PCB,P07,Community Resources,CHEW MAGNA PRIMARY SCHOOL,02/10/2013,675,
Bath & North East Somerset Council,10713578,KD2,Car Allowances/Mileage,P04,Leader,N WASHBOURNE PERSONAL DRIVER,02/10/2013,660,
Bath & North East Somerset Council,10714228,HP6,Water Charges,P05,Neighbourhoods,BWBSL,02/10/2013,668.68,
Bath & North East Somerset Council,10713632,LA3,Equipment Maintenance,P07,Community Resources,SICO EUROPE LTD,02/10/2013,714,
Bath & North East Somerset Council,10714118,HN1,Electricity,P01,Transport,SOUTHERN ELECTRIC,02/10/2013,743.77,
Bath & North East Somerset Council,80264174,PC1,Precepts,Z99,Outside Revenue Accounts,KELSTON PARISH MEETING,02/10/2013,750,
Bath & North East Somerset Council,80264585,LM2,Foster Carer Allowances,P02,"Early Years, Children & Youth",REDACTED,02/10/2013,21.43,
Bath & North East Somerset Council,80264585,LM2,Foster Carer Allowances,P02,"Early Years, Children & Youth",REDACTED,02/10/2013,21.43,
Bath & North East Somerset Council,80264585,LM2,Foster Carer Allowances,P02,"Early Years, Children & Youth",REDACTED,02/10/2013,30,
Bath & North East Somerset Council,80264585,LM2,Foster Carer Allowances,P02,"Early Years, Children & Youth",REDACTED,02/10/2013,30,
Bath & North East Somerset Council,80264585,LM2,Foster Carer Allowances,P02,"Early Years, Children & Youth",REDACTED,02/10/2013,64.29,
Bath & North East Somerset Council,80264585,LM2,Foster Carer Allowances,P02,"Early Years, Children & Youth",REDACTED,02/10/2013,67.08,
Bath & North East Somerset Council,80264585,LM2,Foster Carer Allowances,P02,"Early Years, Children & Youth",REDACTED,02/10/2013,67.08,
Bath & North East Somerset Council,80264585,LM2,Foster Carer Allowances,P02,"Early Years, Children & Youth",REDACTED,02/10/2013,90,
Bath & North East Somerset Council,80264585,LL6,Needs & Services,P02,"Early Years, Children & Youth",REDACTED,02/10/2013,105.5,
Bath & North East Somerset Council,80264585,KE3,Transport & Travel,P02,"Early Years, Children & Youth",REDACTED,02/10/2013,156.6,
Bath & North East Somerset Council,80264585,LM2,Foster Carer Allowances,P02,"Early Years, Children & Youth",REDACTED,02/10/2013,176.37,
Bath & North East Somerset Council,10713417,LA3,Equipment Maintenance,P05,Neighbourhoods,S P WATKINS,02/10/2013,765,
Bath & North East Somerset Council,10713408,3N7,Misc. Costs,P06,Sustainable Development,CHRIS BAINES ASSOCIATES LTD,02/10/2013,772.35,
Bath & North East Somerset Council,10713409,3N7,Misc. Costs,P06,Sustainable Development,STOCKLEY PARTNERSHIP,02/10/2013,780.7,
Bath & North East Somerset Council,10713070,HN1,Electricity,P07,Community Resources,SIR ROBERT MCALPINE LTD,02/10/2013,794.35,
Bath & North East Somerset Council,10714227,HP6,Water Charges,P05,Neighbourhoods,BWBSL,02/10/2013,800.46,
Bath & North East Somerset Council,10714003,LF5,Postages,P07,Community Resources,CFH TOTAL DOCUMENT MANAGEMENT LTD,02/10/2013,844.5,
Bath & North East Somerset Council,10712215,HA5,Service Contract PCB,P07,Community Resources,STANNAH LIFT SERVICES LIMITED,02/10/2013,870,
Bath & North East Somerset Council,10713022,HX9,Other Premises Related,P03,Wellbeing,LIFTECH.ORG LTD,02/10/2013,880,
Bath & North East Somerset Council,10713607,LT4,Conferences,P02,"Early Years, Children & Youth",CAMELEY LODGE,02/10/2013,891,
Bath & North East Somerset Council,10714233,HP6,Water Charges,P05,Neighbourhoods,BWBSL,02/10/2013,892.7,
Bath & North East Somerset Council,10714229,3F7,External Fees,P02,"Early Years, Children & Youth",SUMMIT CHAIRS LTD,02/10/2013,902.88,
Bath & North East Somerset Council,10712257,EG3,Recruitment Advertising,P02,"Early Years, Children & Youth",TMP (UK) LTD,02/10/2013,935,
Bath & North East Somerset Council,10713492,LT4,Conferences,P02,"Early Years, Children & Youth",CAMELEY LODGE,02/10/2013,945,
Bath & North East Somerset Council,10714300,HP6,Water Charges,P07,Community Resources,BWBSL,02/10/2013,958.77,
Bath & North East Somerset Council,10713604,LT4,Conferences,P02,"Early Years, Children & Youth",CAMELEY LODGE,02/10/2013,999,
Bath & North East Somerset Council,10714248,HA4,Responsive Maintenance PCB,P07,Community Resources,INTEGRAL ENGINEERING DESIGN LTD,02/10/2013,1006.8,
Bath & North East Somerset Council,10713019,HE1,General Maintenance,P03,Wellbeing,LIFTECH.ORG LTD,02/10/2013,1048,
Bath & North East Somerset Council,10713493,LT4,Conferences,P02,"Early Years, Children & Youth",CAMELEY LODGE,02/10/2013,1062,
Bath & North East Somerset Council,10713055,3N7,Misc. Costs,P07,Community Resources,TRUEFORM ENGINEERING LTD,02/10/2013,1111.27,
Bath & North East Somerset Council,10713527,HA4,Responsive Maintenance PCB,P07,Community Resources,MECHANICAL ENGINEERING SERVICE,02/10/2013,1201.2,
Bath & North East Somerset Council,10713428,LK1,Fees,P06,Sustainable Development,REDACTED,02/10/2013,3250,
Bath & North East Somerset Council,10713407,3F7,External Fees,P02,"Early Years, Children & Youth",REDACTED,02/10/2013,18260,
Bath & North East Somerset Council,10712984,HK1,Highway Maintenance,P01,Transport,SELECT ELECTRICS LTD,02/10/2013,1275,
Bath & North East Somerset Council,80264586,LM2,Foster Carer Allowances,P02,"Early Years, Children & Youth",REDACTED,02/10/2013,100,
Bath & North East Somerset Council,80264586,LM2,Foster Carer Allowances,P02,"Early Years, Children & Youth",REDACTED,02/10/2013,100,
Bath & North East Somerset Council,80264586,LM2,Foster Carer Allowances,P02,"Early Years, Children & Youth",REDACTED,02/10/2013,274.36,
Bath & North East Somerset Council,80264586,LM2,Foster Carer Allowances,P02,"Early Years, Children & Youth",REDACTED,02/10/2013,274.36,
Bath & North East Somerset Council,10713668,LA5,Materials,P05,Neighbourhoods,YOUNG JOHNSON,02/10/2013,1380.6,
Bath & North East Somerset Council,10714059,LP5,Software Support,P04,Leader,QUALITY EDUCATION SOLUTIONS LTD,02/10/2013,1700,
Bath & North East Somerset Council,10714253,3F7,External Fees,P02,"Early Years, Children & Youth",LION STEEL EQUIPMENT,02/10/2013,1792.97,
Bath & North East Somerset Council,10712770,3L6,Reports/Surveys,P02,"Early Years, Children & Youth",MOTT MACDONALD LIMITED,02/10/2013,1800,
Bath & North East Somerset Council,10713421,LA3,Equipment Maintenance,P05,Neighbourhoods,S P WATKINS,02/10/2013,1850,
Bath & North East Somerset Council,10713827,KA1,Repairs & Maintenance,P05,Neighbourhoods,NILFISK ADVANCE LIMITED,02/10/2013,1922.41,
Bath & North East Somerset Council,10714302,HP6,Water Charges,P07,Community Resources,BWBSL,02/10/2013,1947.99,
Bath & North East Somerset Council,10713352,LJ4,Contracts,Z98,West of England Partnership,VID COMMUNICATIONS LTD,02/10/2013,2000,
Bath & North East Somerset Council,10714226,LK2,Licences (non IT),P05,Neighbourhoods,ENVIRONMENT AGENCY,02/10/2013,2052,
Bath & North East Somerset Council,10714116,LM2,Foster Carer Allowances,P02,"Early Years, Children & Youth",WESC FOUNDATION,02/10/2013,933.33,
Bath & North East Somerset Council,10714230,HP6,Water Charges,P05,Neighbourhoods,BWBSL,02/10/2013,2078.82,
Bath & North East Somerset Council,10714068,LM1,Volunt Homes Placements Top/Up,P02,"Early Years, Children & Youth",WESC FOUNDATION,02/10/2013,18860,
Bath & North East Somerset Council,10713836,LJ4,Contracts,P01,Transport,BRISTOL CITY COUNCIL,02/10/2013,2160.62,
Bath & North East Somerset Council,10713956,HP1,Rent Payable,P05,Neighbourhoods,HARTNELL TAYLOR COOK LLP,02/10/2013,2187.5,
Bath & North East Somerset Council,10713420,DB1,Agency Staff,P05,Neighbourhoods,S P WATKINS,02/10/2013,2276,
Bath & North East Somerset Council,10712519,HE1,General Maintenance,P05,Neighbourhoods,HEALTHMATIC LTD,02/10/2013,2359.63,
Bath & North East Somerset Council,10714254,3F7,External Fees,P02,"Early Years, Children & Youth",COCO-INTERIORS UK LTD,02/10/2013,2408,
Bath & North East Somerset Council,10711974,3C4,Building Works,P02,"Early Years, Children & Youth",BIDDLE AIR SYSTEMS LIMITED,02/10/2013,2420,
Bath & North East Somerset Council,10714053,LJ3,Other Services to the Council,P07,Community Resources,SAINSBURYS SUPERMARKETS LTD,02/10/2013,2437.5,
Bath & North East Somerset Council,10713018,HX9,Other Premises Related,P03,Wellbeing,LIFTECH.ORG LTD,02/10/2013,2525.25,
Bath & North East Somerset Council,10714117,LK1,Fees,P02,"Early Years, Children & Youth",SARI,02/10/2013,2549.17,
Bath & North East Somerset Council,10713771,LH3,Publicity,P09,Homes & Planning,LOCAL WORLD LTD,02/10/2013,2703,
Bath & North East Somerset Council,10712877,LA1,Equipment Purchase (Non Medical),P03,Wellbeing,SIDHIL LTD,02/10/2013,2725,
Bath & North East Somerset Council,10713416,DB1,Agency Staff,P05,Neighbourhoods,S P WATKINS,02/10/2013,2950,
Bath & North East Somerset Council,10713778,LJ2,Legal Fees,P05,Neighbourhoods,REDACTED,02/10/2013,980,
Bath & North East Somerset Council,10713069,HN1,Electricity,P05,Neighbourhoods,SIR ROBERT MCALPINE LTD,02/10/2013,3143.94,
Bath & North East Somerset Council,10713779,LJ1,Consultants Fees,P05,Neighbourhoods,REDACTED,02/10/2013,1120,
Bath & North East Somerset Council,10712522,HE1,General Maintenance,P05,Neighbourhoods,HEALTHMATIC LTD,02/10/2013,3559.79,
Bath & North East Somerset Council,10713236,LJ2,Legal Fees,P02,"Early Years, Children & Youth",MISS TANYA ZABIHI,02/10/2013,3880,
Bath & North East Somerset Council,80264637,LL2,Personal Needs of Clients,P02,"Early Years, Children & Youth",REDACTED,02/10/2013,616,
Bath & North East Somerset Council,10713826,PB4,Payments to Private Contractors,P05,Neighbourhoods,CORY ENVIRONMENTAL (GLOUCS) LT,02/10/2013,4233.76,
Bath & North East Somerset Council,10712521,HE1,General Maintenance,P05,Neighbourhoods,HEALTHMATIC LTD,02/10/2013,4403.45,
Bath & North East Somerset Council,10712286,3E6,IT Software,P04,Leader,ASTUN TECHNOLOGY LTD,02/10/2013,4663.4,
Bath & North East Somerset Council,10714026,LM1,Volunt Homes Placements Top/Up,P02,"Early Years, Children & Youth",PATHWAY CARE (BRISTOL) LTD,02/10/2013,4714.2,
Bath & North East Somerset Council,10713377,3N7,Misc. Costs,P01,Transport,GRADWELL DOT COM LIMITED,02/10/2013,5000,
Bath & North East Somerset Council,10714245,3F7,External Fees,P02,"Early Years, Children & Youth",CREATIVE DEVISE,02/10/2013,6736.8,
Bath & North East Somerset Council,10713946,KA1,Repairs & Maintenance,P05,Neighbourhoods,NILFISK ADVANCE LIMITED,02/10/2013,6924.46,
Bath & North East Somerset Council,10712763,3C4,Building Works,P02,"Early Years, Children & Youth",ZEHNDER GROUP LTD,02/10/2013,7090.08,
Bath & North East Somerset Council,10714019,LJ4,Contracts,P02,"Early Years, Children & Youth",TRI-X CHILDCARE LTD,02/10/2013,10000,
Bath & North East Somerset Council,10714275,3F7,External Fees,P02,"Early Years, Children & Youth",CASALA LTD,02/10/2013,10461.78,
Bath & North East Somerset Council,10713826,LW6,Tax,P05,Neighbourhoods,CORY ENVIRONMENTAL (GLOUCS) LT,02/10/2013,10464.48,
Bath & North East Somerset Council,10714096,LJ4,Contracts,P01,Transport,BRISTOL CITY COUNCIL,02/10/2013,11121.17,
Bath & North East Somerset Council,10712703,LA1,Equipment Purchase (Non Medical),P05,Neighbourhoods,CRAEMER UK LTD,02/10/2013,12375,
Bath & North East Somerset Council,10712779,LK1,Fees,P06,Sustainable Development,BATH FESTIVALS TRUST,02/10/2013,13689.36,
Bath & North East Somerset Council,10712698,LV2,Contributions to Organisations,P03,Wellbeing,SIRONA CARE SERVICES LTD,02/10/2013,15000,
Bath & North East Somerset Council,10713629,LX6,Bus Revenue Support,P01,Transport,CT COACHES,02/10/2013,16363.92,
Bath & North East Somerset Council,10713287,LJ2,Legal Fees,P05,Neighbourhoods,BEVAN BRITTAN,02/10/2013,24280.5,
Bath & North East Somerset Council,10713237,3C4,Building Works,P02,"Early Years, Children & Youth",MITIE TILLEY ROOFING LTD,02/10/2013,33453.08,
Bath & North East Somerset Council,10713887,KA3,Fuel,P01,Transport,FORD FUELS LTD,02/10/2013,42112.53,
Bath & North East Somerset Council,10714309,LA7,Purchases for Resale,P06,Sustainable Development,SCALA ARTS & HERITAGE PUBLISHERS LTD,02/10/2013,75600,
Bath & North East Somerset Council,10714348,LK1,Fees,P05,Neighbourhoods,WESSEX WATER ENTERPRISES,03/10/2013,420.19,
Bath & North East Somerset Council,10714269,LF5,Postages,P07,Community Resources,TNT POST SOUTH WEST LTD,03/10/2013,481.37,
Bath & North East Somerset Council,80264878,PG1,Rent Allowances,P07,Community Resources,ACCREDITED LETTINGS LTD,03/10/2013,1645.36,
Bath & North East Somerset Council,80264934,PG1,Rent Allowances,P07,Community Resources,ADVANCE HOUSING SUPPORT LTD,03/10/2013,2864.44,
Bath & North East Somerset Council,10714298,3C4,Building Works,P02,"Early Years, Children & Youth",WAYLETT PROPERTY INSPECTIONS LLP,03/10/2013,503.88,
Bath & North East Somerset Council,80264814,PG1,Rent Allowances,P07,Community Resources,ANCHOR TRUST,03/10/2013,3982.52,
Bath & North East Somerset Council,80264905,PG1,Rent Allowances,P07,Community Resources,AQUA SULIS FINANCIAL MANAGEMENT,03/10/2013,6847.09,
Bath & North East Somerset Council,80264916,PG1,Rent Allowances,P07,Community Resources,ASTER COMMUNITIES,03/10/2013,12583.24,
Bath & North East Somerset Council,80264819,PG1,Rent Allowances,P07,Community Resources,BATH MIND,03/10/2013,5116.36,
Bath & North East Somerset Council,80264850,PG1,Rent Allowances,P07,Community Resources,BROADWAY PROPERTY INVESTMENTS LT,03/10/2013,947.16,
Bath & North East Somerset Council,80264836,PG1,Rent Allowances,P07,Community Resources,CURO PLACES BRISTOL,03/10/2013,630.85,
Bath & North East Somerset Council,80264930,PG1,Rent Allowances,P07,Community Resources,DELANEY PROPERTIES LTD,03/10/2013,507.68,
Bath & North East Somerset Council,80264832,PG1,Rent Allowances,P07,Community Resources,DIMENSIONS (UK) LTD,03/10/2013,12645,
Bath & North East Somerset Council,80264936,PG1,Rent Allowances,P07,Community Resources,REDACTED,03/10/2013,516.92,
Bath & North East Somerset Council,80264856,PG1,Rent Allowances,P07,Community Resources,DRUGS & HOMELESS INITIATIVE,03/10/2013,9019.89,
Bath & North East Somerset Council,80264833,PG1,Rent Allowances,P07,Community Resources,DUCHY OF CORNWALL,03/10/2013,1902.52,
Bath & North East Somerset Council,80264853,PG1,Rent Allowances,P07,Community Resources,ENGLISH RURAL HOUSING ASSOCIATIO,03/10/2013,797.92,
Bath & North East Somerset Council,80264859,PG1,Rent Allowances,P07,Community Resources,GOLDEN LANE HOUSING LTD,03/10/2013,3840.24,
Bath & North East Somerset Council,80264821,PG1,Rent Allowances,P07,Community Resources,GUINNESS HOUSING ASSOCIATION,03/10/2013,44633.06,
Bath & North East Somerset Council,80264841,PG1,Rent Allowances,P07,Community Resources,HANOVER HOUSING ASSOCIATION,03/10/2013,3001.4,
Bath & North East Somerset Council,80264843,PG1,Rent Allowances,P07,Community Resources,HANOVER HOUSING ASSOCIATION,03/10/2013,8848.09,
Bath & North East Somerset Council,80264820,PG1,Rent Allowances,P07,Community Resources,JULIAN HOUSE,03/10/2013,41783.53,
Bath & North East Somerset Council,80264837,PG1,Rent Allowances,P07,Community Resources,KILMERSDON RURAL HOUSING ASSOCIA,03/10/2013,1663.32,
Bath & North East Somerset Council,80264854,PG1,Rent Allowances,P07,Community Resources,KNIGHTSTONE COMMUNITY HOMES,03/10/2013,30773.73,
Bath & North East Somerset Council,80264835,PG1,Rent Allowances,P07,Community Resources,KNIGHTSTONE HOUSING ASSOCIATION,03/10/2013,689.99,
Bath & North East Somerset Council,80264811,PG1,Rent Allowances,P07,Community Resources,KNIGHTSTONE HOUSING ASSOCIATION,03/10/2013,22739.55,
Bath & North East Somerset Council,80264817,PG1,Rent Allowances,P07,Community Resources,KNIGHTSTONE HOUSING ASSOCIATION,03/10/2013,89717.32,
Bath & North East Somerset Council,80264925,PG1,Rent Allowances,P07,Community Resources,MARK NAYLOR RESIDENTIAL SALES,03/10/2013,1024.6,
Bath & North East Somerset Council,80264927,PG1,Rent Allowances,P07,Community Resources,MARTIN & CO,03/10/2013,3744.51,
Bath & North East Somerset Council,80264917,PG1,Rent Allowances,P07,Community Resources,MENCAP,03/10/2013,4007.27,
Bath & North East Somerset Council,80264669,PG1,Rent Allowances,P07,Community Resources,MERLIN HOUSING SOCIETY,03/10/2013,1980.64,
Bath & North East Somerset Council,80264839,PG1,Rent Allowances,P07,Community Resources,METHODIST HOMES HOUSING ASSOCIAT,03/10/2013,838.8,
Bath & North East Somerset Council,80264929,PG1,Rent Allowances,P07,Community Resources,REDACTED,03/10/2013,917.3,
Bath & North East Somerset Council,80264923,PG1,Rent Allowances,P07,Community Resources,REDACTED,03/10/2013,585,
Bath & North East Somerset Council,80264770,PG1,Rent Allowances,P07,Community Resources,REDACTED,03/10/2013,540.54,
Bath & North East Somerset Council,80264674,PG1,Rent Allowances,P07,Community Resources,REDACTED,03/10/2013,636.8,
Bath & North East Somerset Council,80264775,PG1,Rent Allowances,P07,Community Resources,REDACTED,03/10/2013,1211.91,
Bath & North East Somerset Council,80264651,PG1,Rent Allowances,P07,Community Resources,REDACTED,03/10/2013,581.6,
Bath & North East Somerset Council,80264926,PG1,Rent Allowances,P07,Community Resources,REDACTED,03/10/2013,565.4,
Bath & North East Somerset Council,80264852,PG1,Rent Allowances,P07,Community Resources,REDACTED,03/10/2013,516.92,
Bath & North East Somerset Council,80264863,PG1,Rent Allowances,P07,Community Resources,REDACTED,03/10/2013,745.84,
Bath & North East Somerset Council,80264664,PG1,Rent Allowances,P07,Community Resources,REDACTED,03/10/2013,733.84,
Bath & North East Somerset Council,80264831,PG1,Rent Allowances,P07,Community Resources,REDACTED,03/10/2013,516.92,
Bath & North East Somerset Council,80264698,PG1,Rent Allowances,P07,Community Resources,REDACTED,03/10/2013,530.76,
Bath & North East Somerset Council,80264864,PG1,Rent Allowances,P07,Community Resources,REDACTED,03/10/2013,553.84,
Bath & North East Somerset Council,80264883,PG1,Rent Allowances,P07,Community Resources,REDACTED,03/10/2013,540,
Bath & North East Somerset Council,80264897,PG1,Rent Allowances,P07,Community Resources,REDACTED,03/10/2013,684.92,
Bath & North East Somerset Council,80264879,PG1,Rent Allowances,P07,Community Resources,REDACTED,03/10/2013,572.32,
Bath & North East Somerset Council,10713746,HA4,Responsive Maintenance PCB,P07,Community Resources,TPM (SOUTH WEST) LTD,03/10/2013,600,
Bath & North East Somerset Council,80264942,PG1,Rent Allowances,P07,Community Resources,REDACTED,03/10/2013,507.68,
Bath & North East Somerset Council,80264846,PG1,Rent Allowances,P07,Community Resources,REDACTED,03/10/2013,1037.52,
Bath & North East Somerset Council,80264656,PG1,Rent Allowances,P07,Community Resources,REDACTED,03/10/2013,572.32,
Bath & North East Somerset Council,80264895,PG1,Rent Allowances,P07,Community Resources,REDACTED,03/10/2013,864.22,
Bath & North East Somerset Council,80264913,PG1,Rent Allowances,P07,Community Resources,REDACTED,03/10/2013,516.92,
Bath & North East Somerset Council,80264755,PG1,Rent Allowances,P07,Community Resources,REDACTED,03/10/2013,597.04,
Bath & North East Somerset Council,80264676,PG1,Rent Allowances,P07,Community Resources,REDACTED,03/10/2013,636.8,
Bath & North East Somerset Council,80264689,PG1,Rent Allowances,P07,Community Resources,REDACTED,03/10/2013,733.84,
Bath & North East Somerset Council,80264885,PG1,Rent Allowances,P07,Community Resources,REDACTED,03/10/2013,540,
Bath & North East Somerset Council,80264914,PG1,Rent Allowances,P07,Community Resources,REDACTED,03/10/2013,600,
Bath & North East Somerset Council,80264882,PG1,Rent Allowances,P07,Community Resources,REDACTED,03/10/2013,516.92,
Bath & North East Somerset Council,80264692,PG1,Rent Allowances,P07,Community Resources,REDACTED,03/10/2013,636.8,
Bath & North East Somerset Council,80264781,PG1,Rent Allowances,P07,Community Resources,REDACTED,03/10/2013,574,
Bath & North East Somerset Council,80264902,PG1,Rent Allowances,P07,Community Resources,REDACTED,03/10/2013,627.68,
Bath & North East Somerset Council,80264899,PG1,Rent Allowances,P07,Community Resources,REDACTED,03/10/2013,640.72,
Bath & North East Somerset Council,80264939,PG1,Rent Allowances,P07,Community Resources,REDACTED,03/10/2013,733.84,
Bath & North East Somerset Council,80264776,PG1,Rent Allowances,P07,Community Resources,REDACTED,03/10/2013,1161.2,
Bath & North East Somerset Council,80264667,PG1,Rent Allowances,P07,Community Resources,REDACTED,03/10/2013,530.76,
Bath & North East Somerset Council,80264816,PG1,Rent Allowances,P07,Community Resources,REDACTED,03/10/2013,2880.69,
Bath & North East Somerset Council,80264705,PG1,Rent Allowances,P07,Community Resources,REDACTED,03/10/2013,624.92,
Bath & North East Somerset Council,80264890,PG1,Rent Allowances,P07,Community Resources,REDACTED,03/10/2013,565.4,
Bath & North East Somerset Council,80264891,PG1,Rent Allowances,P07,Community Resources,REDACTED,03/10/2013,1119.24,
Bath & North East Somerset Council,80264889,PG1,Rent Allowances,P07,Community Resources,REDACTED,03/10/2013,530.76,
Bath & North East Somerset Council,80264874,PG1,Rent Allowances,P07,Community Resources,REDACTED,03/10/2013,516.92,
Bath & North East Somerset Council,80264948,PG1,Rent Allowances,P07,Community Resources,REDACTED,03/10/2013,578.28,
Bath & North East Somerset Council,10714262,HP6,Water Charges,P06,Sustainable Development,BWBSL,03/10/2013,710.07,
Bath & North East Somerset Council,80264682,PG1,Rent Allowances,P07,Community Resources,REDACTED,03/10/2013,807.66,
Bath & North East Somerset Council,80264892,PG1,Rent Allowances,P07,Community Resources,REDACTED,03/10/2013,648.41,
Bath & North East Somerset Council,80264903,PG1,Rent Allowances,P07,Community Resources,REDACTED,03/10/2013,542.32,
Bath & North East Somerset Council,80264945,PG1,Rent Allowances,P07,Community Resources,REDACTED,03/10/2013,507.68,
Bath & North East Somerset Council,80264683,PG1,Rent Allowances,P07,Community Resources,REDACTED,03/10/2013,506.04,
Bath & North East Somerset Council,10714258,HP6,Water Charges,P06,Sustainable Development,BWBSL,03/10/2013,741.52,
Bath & North East Somerset Council,80264688,PG1,Rent Allowances,P07,Community Resources,REDACTED,03/10/2013,1259.88,
Bath & North East Somerset Council,80264695,PG1,Rent Allowances,P07,Community Resources,REDACTED,03/10/2013,733.84,
Bath & North East Somerset Council,80264941,PG1,Rent Allowances,P07,Community Resources,REDACTED,03/10/2013,507.68,
Bath & North East Somerset Council,80264904,PG1,Rent Allowances,P07,Community Resources,REDACTED,03/10/2013,576.92,
Bath & North East Somerset Council,80264659,PG1,Rent Allowances,P07,Community Resources,REDACTED,03/10/2013,600,
Bath & North East Somerset Council,80264684,PG1,Rent Allowances,P07,Community Resources,REDACTED,03/10/2013,1033.84,
Bath & North East Somerset Council,10714270,LF5,Postages,P07,Community Resources,TNT POST SOUTH WEST LTD,03/10/2013,815.66,
Bath & North East Somerset Council,80264881,PG1,Rent Allowances,P07,Community Resources,REDACTED,03/10/2013,1652.16,
Bath & North East Somerset Council,10713616,HA4,Responsive Maintenance PCB,P07,Community Resources,OAKUS CIVIL & SURFACING LTD,03/10/2013,868.25,
Bath & North East Somerset Council,80264943,PG1,Rent Allowances,P07,Community Resources,REDACTED,03/10/2013,584,
Bath & North East Somerset Council,10713746,HA4,Responsive Maintenance PCB,P07,Community Resources,TPM (SOUTH WEST) LTD,03/10/2013,900,
Bath & North East Somerset Council,80264955,PG1,Rent Allowances,P07,Community Resources,REDACTED,03/10/2013,507.68,
Bath & North East Somerset Council,10714252,EG3,Recruitment Advertising,P02,"Early Years, Children & Youth",ZEST MEDIA SOUTH WEST LTD,03/10/2013,925.67,
Bath & North East Somerset Council,80264898,PG1,Rent Allowances,P07,Community Resources,REDACTED,03/10/2013,553.84,
Bath & North East Somerset Council,80264946,PG1,Rent Allowances,P07,Community Resources,REDACTED,03/10/2013,507.68,
Bath & North East Somerset Council,10713941,EA1,Training,P05,Neighbourhoods,CHRIS CROFT TRAINING LTD,03/10/2013,960,
Bath & North East Somerset Council,80264685,PG1,Rent Allowances,P07,Community Resources,REDACTED,03/10/2013,692.32,
Bath & North East Somerset Council,80264867,PG1,Rent Allowances,P07,Community Resources,REDACTED,03/10/2013,628.49,
Bath & North East Somerset Council,80264742,PG1,Rent Allowances,P07,Community Resources,REDACTED,03/10/2013,692.32,
Bath & North East Somerset Council,80264691,PG1,Rent Allowances,P07,Community Resources,REDACTED,03/10/2013,500,
Bath & North East Somerset Council,80264673,PG1,Rent Allowances,P07,Community Resources,REDACTED,03/10/2013,636.8,
Bath & North East Somerset Council,80264662,PG1,Rent Allowances,P07,Community Resources,REDACTED,03/10/2013,733.76,
Bath & North East Somerset Council,80264677,PG1,Rent Allowances,P07,Community Resources,REDACTED,03/10/2013,507.68,
Bath & North East Somerset Council,80264851,PG1,Rent Allowances,P07,Community Resources,REDACTED,03/10/2013,1465.92,
Bath & North East Somerset Council,80264658,PG1,Rent Allowances,P07,Community Resources,REDACTED,03/10/2013,733.84,
Bath & North East Somerset Council,80264947,PG1,Rent Allowances,P07,Community Resources,REDACTED,03/10/2013,692.32,
Bath & North East Somerset Council,80264870,PG1,Rent Allowances,P07,Community Resources,REDACTED,03/10/2013,507.68,
Bath & North East Somerset Council,80264848,PG1,Rent Allowances,P07,Community Resources,REDACTED,03/10/2013,500,
Bath & North East Somerset Council,80264687,PG1,Rent Allowances,P07,Community Resources,REDACTED,03/10/2013,646.16,
Bath & North East Somerset Council,10714290,3C4,Building Works,P02,"Early Years, Children & Youth",INTEGRAL ENGINEERING DESIGN LTD,03/10/2013,1317.12,
Bath & North East Somerset Council,80264868,PG1,Rent Allowances,P07,Community Resources,REDACTED,03/10/2013,1153.72,
Bath & North East Somerset Council,80264910,PG1,Rent Allowances,P07,Community Resources,REDACTED,03/10/2013,1206.94,
Bath & North East Somerset Council,80264924,PG1,Rent Allowances,P07,Community Resources,REDACTED,03/10/2013,1126.88,
Bath & North East Somerset Council,80264900,PG1,Rent Allowances,P07,Community Resources,REDACTED,03/10/2013,507.68,
Bath & North East Somerset Council,80264697,PG1,Rent Allowances,P07,Community Resources,REDACTED,03/10/2013,636.8,
Bath & North East Somerset Council,80264935,PG1,Rent Allowances,P07,Community Resources,REDACTED,03/10/2013,603.04,
Bath & North East Somerset Council,10714244,HP6,Water Charges,P06,Sustainable Development,BWBSL,03/10/2013,1778,
Bath & North East Somerset Council,80264876,PG1,Rent Allowances,P07,Community Resources,REDACTED,03/10/2013,880.42,
Bath & North East Somerset Council,10714311,HA4,Responsive Maintenance PCB,P07,Community Resources,WESSEX WATER SERVICES LIMITED,03/10/2013,1916,
Bath & North East Somerset Council,80264901,PG1,Rent Allowances,P07,Community Resources,REDACTED,03/10/2013,516.92,
Bath & North East Somerset Council,80264877,PG1,Rent Allowances,P07,Community Resources,REDACTED,03/10/2013,1705,
Bath & North East Somerset Council,80264745,PG1,Rent Allowances,P07,Community Resources,REDACTED,03/10/2013,636.8,
Bath & North East Somerset Council,80264645,LE1,Education Payment (independent school),P02,"Early Years, Children & Youth",MID NORTON SCH PART RE NORTON HILL,03/10/2013,3035.7,
Bath & North East Somerset Council,80264931,PG1,Rent Allowances,P07,Community Resources,REDACTED,03/10/2013,1722.92,
Bath & North East Somerset Council,80264825,PG1,Rent Allowances,P07,Community Resources,PLACES FOR PEOPLE,03/10/2013,903.22,
Bath & North East Somerset Council,10714272,HA6,Planned Maintenance PCB,P07,Community Resources,TPM (SOUTH WEST) LTD,03/10/2013,2915.49,
Bath & North East Somerset Council,10714312,LK2,Licences (non IT),P04,Leader,INOVEM LTD,03/10/2013,2950,
Bath & North East Somerset Council,80264919,PG1,Rent Allowances,P07,Community Resources,REDACTED,03/10/2013,636.8,
Bath & North East Somerset Council,80264887,PG1,Rent Allowances,P07,Community Resources,RENTING PLACES,03/10/2013,923.08,
Bath & North East Somerset Council,80264855,PG1,Rent Allowances,P07,Community Resources,RIVERSIDE - E.C.H.G.,03/10/2013,1982.32,
Bath & North East Somerset Council,80264866,PG1,Rent Allowances,P07,Community Resources,RNID,03/10/2013,681.26,
Bath & North East Somerset Council,80264932,PG1,Rent Allowances,P07,Community Resources,REDACTED,03/10/2013,623.08,
Bath & North East Somerset Council,80264666,PG1,Rent Allowances,P07,Community Resources,S R CONTRACTORS,03/10/2013,636.8,
Bath & North East Somerset Council,80264933,PG1,Rent Allowances,P07,Community Resources,REDACTED,03/10/2013,733.84,
Bath & North East Somerset Council,80264842,PG1,Rent Allowances,P07,Community Resources,S.W.A.L.L.O.W.,03/10/2013,5277.68,
Bath & North East Somerset Council,80264826,PG1,Rent Allowances,P07,Community Resources,SANCTUARY HOUSING ASSOCIATION,03/10/2013,17528.85,
Bath & North East Somerset Council,10714246,3F7,External Fees,P02,"Early Years, Children & Youth",KI (UK) LTD,03/10/2013,4966.5,
Bath & North East Somerset Council,10714272,HA6,Planned Maintenance PCB,P07,Community Resources,TPM (SOUTH WEST) LTD,03/10/2013,5135.35,
Bath & North East Somerset Council,80264860,PG1,Rent Allowances,P07,Community Resources,SHAPE HOUSING ASSOCIATION,03/10/2013,6969.51,
Bath & North East Somerset Council,80264815,PG1,Rent Allowances,P07,Community Resources,SHAPE HOUSING ASSOCIATION,03/10/2013,11729.94,
Bath & North East Somerset Council,80264813,PG1,Rent Allowances,P07,Community Resources,SHAPE HOUSING ASSOCIATION,03/10/2013,21248.97,
Bath & North East Somerset Council,80264824,PG1,Rent Allowances,P07,Community Resources,SOLON (SOUTH WEST) HOUSING ASSOC,03/10/2013,4957.5,
Bath & North East Somerset Council,80264938,PG1,Rent Allowances,P07,Community Resources,SOMER COMMUNITY HOUSING TRUST,03/10/2013,13905.14,
Bath & North East Somerset Council,10714255,HP6,Water Charges,P06,Sustainable Development,BWBSL,03/10/2013,8273.12,
Bath & North East Somerset Council,10712501,HA4,Responsive Maintenance PCB,P07,Community Resources,HORDERS,03/10/2013,10581.87,
Bath & North East Somerset Council,80264844,PG1,Rent Allowances,P07,Community Resources,SOVEREIGN HOUSING ASSOCIATION,03/10/2013,43355.56,
Bath & North East Somerset Council,80264944,PG1,Rent Allowances,P07,Community Resources,ST MUNGOS,03/10/2013,9414.88,
Bath & North East Somerset Council,80264830,PG1,Rent Allowances,P07,Community Resources,STONHAM HOUSING ASSOCIATION,03/10/2013,7670.3,
Bath & North East Somerset Council,80264888,PG1,Rent Allowances,P07,Community Resources,SUPPORTED INDEPENDENCE LTD,03/10/2013,1417.92,
Bath & North East Somerset Council,80264838,PG1,Rent Allowances,P07,Community Resources,REDACTED,03/10/2013,3351.92,
Bath & North East Somerset Council,80264822,PG1,Rent Allowances,P07,Community Resources,THE GUINNESS TRUST,03/10/2013,41790,
Bath & North East Somerset Council,80264649,LE1,Education Payment (independent school),P02,"Early Years, Children & Youth",FOSSE WAY SCHOOL,03/10/2013,29438.8,
Bath & North East Somerset Council,10714264,LJ4,Contracts,P01,Transport,FAUN MUNICIPAL VEHICLES LTD,03/10/2013,32545.5,
Bath & North East Somerset Council,80264906,PG1,Rent Allowances,P07,Community Resources,U G PROPERTY MANAGEMENT,03/10/2013,1726.36,
Bath & North East Somerset Council,80264834,PG1,Rent Allowances,P07,Community Resources,REDACTED,03/10/2013,2552.76,
Bath & North East Somerset Council,10714380,DB1,Agency Staff,P07,Community Resources,COMENSURA LTD,03/10/2013,66745.38,
Bath & North East Somerset Council,80264648,LE1,Education Payment (independent school),P02,"Early Years, Children & Youth",WELLSWAY SCHOOL LTD,03/10/2013,900,
Bath & North East Somerset Council,80264671,PG1,Rent Allowances,P07,Community Resources,WILLIAMS & BLUNDEN LTD,03/10/2013,1297.93,
Bath & North East Somerset Council,80264893,PG1,Rent Allowances,P07,Community Resources,WRIGHT LETTINGS,03/10/2013,636.8,
Bath & North East Somerset Council,80264812,PG1,Rent Allowances,P07,Community Resources,Y.M.C.A.,03/10/2013,7557.2,
Bath & North East Somerset Council,80265050,LM8,Home Care,P03,Wellbeing,ACTIVE ASSISTANCE,04/10/2013,1200,
Bath & North East Somerset Council,80265048,LM8,Home Care,P03,Wellbeing,ACTIVE ASSISTANCE,04/10/2013,1300,
Bath & North East Somerset Council,80265051,LM8,Home Care,P03,Wellbeing,ACTIVE ASSISTANCE,04/10/2013,1300,
Bath & North East Somerset Council,80265015,LM8,Home Care,P03,Wellbeing,AGINCARE LIVE IN CARE SERVICES LTD,04/10/2013,700,
Bath & North East Somerset Council,80265015,LM8,Home Care,P03,Wellbeing,AGINCARE LIVE IN CARE SERVICES LTD,04/10/2013,700,
Bath & North East Somerset Council,80265000,LL3,Supported Living,P03,Wellbeing,BAILEY EMPLOYMENT SERVICES LTD,04/10/2013,902.88,
Bath & North East Somerset Council,80265024,LM9,Day Care,P03,Wellbeing,CARE FUTURES,04/10/2013,171,
Bath & North East Somerset Council,80265024,LM9,Day Care,P03,Wellbeing,CARE FUTURES,04/10/2013,171,
Bath & North East Somerset Council,80265024,LM9,Day Care,P03,Wellbeing,CARE FUTURES,04/10/2013,171,
Bath & North East Somerset Council,80265024,LM9,Day Care,P03,Wellbeing,CARE FUTURES,04/10/2013,171,
Bath & North East Somerset Council,80265024,LM9,Day Care,P03,Wellbeing,CARE FUTURES,04/10/2013,171,
Bath & North East Somerset Council,80265023,LM9,Day Care,P03,Wellbeing,CARE FUTURES,04/10/2013,310,
Bath & North East Somerset Council,80265023,LM9,Day Care,P03,Wellbeing,CARE FUTURES,04/10/2013,310,
Bath & North East Somerset Council,80265023,LM9,Day Care,P03,Wellbeing,CARE FUTURES,04/10/2013,310,
Bath & North East Somerset Council,80265023,LM9,Day Care,P03,Wellbeing,CARE FUTURES,04/10/2013,310,
Bath & North East Somerset Council,80265023,LM9,Day Care,P03,Wellbeing,CARE FUTURES,04/10/2013,310,
Bath & North East Somerset Council,80265025,LM9,Day Care,P03,Wellbeing,CARE FUTURES,04/10/2013,435,
Bath & North East Somerset Council,80265025,LM9,Day Care,P03,Wellbeing,CARE FUTURES,04/10/2013,435,
Bath & North East Somerset Council,80265025,LM9,Day Care,P03,Wellbeing,CARE FUTURES,04/10/2013,435,
Bath & North East Somerset Council,80265025,LM9,Day Care,P03,Wellbeing,CARE FUTURES,04/10/2013,435,
Bath & North East Somerset Council,80265025,LM9,Day Care,P03,Wellbeing,CARE FUTURES,04/10/2013,435,
Bath & North East Somerset Council,80265046,LM8,Home Care,P03,Wellbeing,COMPLETE CARE SERVICES WILTSHIRE,04/10/2013,72.5,
Bath & North East Somerset Council,80265045,LM8,Home Care,P03,Wellbeing,COMPLETE CARE SERVICES WILTSHIRE,04/10/2013,80.56,
Bath & North East Somerset Council,80265045,LM8,Home Care,P03,Wellbeing,COMPLETE CARE SERVICES WILTSHIRE,04/10/2013,82,
Bath & North East Somerset Council,80265047,LM8,Home Care,P03,Wellbeing,COMPLETE CARE SERVICES WILTSHIRE,04/10/2013,133.56,
Bath & North East Somerset Council,80265047,LM8,Home Care,P03,Wellbeing,COMPLETE CARE SERVICES WILTSHIRE,04/10/2013,513.38,
Bath & North East Somerset Council,80265046,LM8,Home Care,P03,Wellbeing,COMPLETE CARE SERVICES WILTSHIRE,04/10/2013,516.17,
Bath & North East Somerset Council,80265045,LM8,Home Care,P03,Wellbeing,COMPLETE CARE SERVICES WILTSHIRE,04/10/2013,531.38,
Bath & North East Somerset Council,80265045,LM8,Home Care,P03,Wellbeing,COMPLETE CARE SERVICES WILTSHIRE,04/10/2013,547.78,
Bath & North East Somerset Council,80265046,LM8,Home Care,P03,Wellbeing,COMPLETE CARE SERVICES WILTSHIRE,04/10/2013,547.78,
Bath & North East Somerset Council,80265046,LM8,Home Care,P03,Wellbeing,COMPLETE CARE SERVICES WILTSHIRE,04/10/2013,547.78,
Bath & North East Somerset Council,80265046,LM8,Home Care,P03,Wellbeing,COMPLETE CARE SERVICES WILTSHIRE,04/10/2013,547.78,
Bath & North East Somerset Council,80265047,LM8,Home Care,P03,Wellbeing,COMPLETE CARE SERVICES WILTSHIRE,04/10/2013,547.78,
Bath & North East Somerset Council,80265047,LM8,Home Care,P03,Wellbeing,COMPLETE CARE SERVICES WILTSHIRE,04/10/2013,547.78,
Bath & North East Somerset Council,80265047,LM8,Home Care,P03,Wellbeing,COMPLETE CARE SERVICES WILTSHIRE,04/10/2013,547.78,
Bath & North East Somerset Council,80265045,LM8,Home Care,P03,Wellbeing,COMPLETE CARE SERVICES WILTSHIRE,04/10/2013,553.97,
Bath & North East Somerset Council,80265045,LM8,Home Care,P03,Wellbeing,COMPLETE CARE SERVICES WILTSHIRE,04/10/2013,1096.2,
Bath & North East Somerset Council,10714128,LH5,Marketing,P05,Neighbourhoods,IMPRESS MEDIA LIMITED,04/10/2013,500,
Bath & North East Somerset Council,80264990,LL3,Supported Living,P03,Wellbeing,HOME FARM TRUST,04/10/2013,473.89,
Bath & North East Somerset Council,80264990,LL3,Supported Living,P03,Wellbeing,HOME FARM TRUST,04/10/2013,473.89,
Bath & North East Somerset Council,80264990,LL3,Supported Living,P03,Wellbeing,HOME FARM TRUST,04/10/2013,473.89,
Bath & North East Somerset Council,80264990,LL3,Supported Living,P03,Wellbeing,HOME FARM TRUST,04/10/2013,473.89,
Bath & North East Somerset Council,80264991,LL3,Supported Living,P03,Wellbeing,HOME FARM TRUST,04/10/2013,699.88,
Bath & North East Somerset Council,80264991,LL3,Supported Living,P03,Wellbeing,HOME FARM TRUST,04/10/2013,699.88,
Bath & North East Somerset Council,80264991,LL3,Supported Living,P03,Wellbeing,HOME FARM TRUST,04/10/2013,699.88,
Bath & North East Somerset Council,80264991,LL3,Supported Living,P03,Wellbeing,HOME FARM TRUST,04/10/2013,699.88,
Bath & North East Somerset Council,80264994,LL3,Supported Living,P03,Wellbeing,HOME FARM TRUST,04/10/2013,1204.59,
Bath & North East Somerset Council,80264994,LL3,Supported Living,P03,Wellbeing,HOME FARM TRUST,04/10/2013,1204.59,
Bath & North East Somerset Council,80264994,LL3,Supported Living,P03,Wellbeing,HOME FARM TRUST,04/10/2013,1204.59,
Bath & North East Somerset Council,80264992,LL3,Supported Living,P03,Wellbeing,HOME FARM TRUST,04/10/2013,1632.89,
Bath & North East Somerset Council,80264992,LL3,Supported Living,P03,Wellbeing,HOME FARM TRUST,04/10/2013,1632.89,
Bath & North East Somerset Council,80264992,LL3,Supported Living,P03,Wellbeing,HOME FARM TRUST,04/10/2013,1632.89,
Bath & North East Somerset Council,80264992,LL3,Supported Living,P03,Wellbeing,HOME FARM TRUST,04/10/2013,1632.89,
Bath & North East Somerset Council,80265055,LM8,Home Care,P03,Wellbeing,I & S DUTTON LTD T/A CAREWATCH,04/10/2013,27,
Bath & North East Somerset Council,80265057,LM8,Home Care,P03,Wellbeing,I & S DUTTON LTD T/A CAREWATCH,04/10/2013,27,
Bath & North East Somerset Council,80265057,LM8,Home Care,P03,Wellbeing,I & S DUTTON LTD T/A CAREWATCH,04/10/2013,27,
Bath & North East Somerset Council,80265055,LM8,Home Care,P03,Wellbeing,I & S DUTTON LTD T/A CAREWATCH,04/10/2013,36,
Bath & North East Somerset Council,80265055,LM8,Home Care,P03,Wellbeing,I & S DUTTON LTD T/A CAREWATCH,04/10/2013,36,
Bath & North East Somerset Council,80265055,LM8,Home Care,P03,Wellbeing,I & S DUTTON LTD T/A CAREWATCH,04/10/2013,54,
Bath & North East Somerset Council,80265055,LM8,Home Care,P03,Wellbeing,I & S DUTTON LTD T/A CAREWATCH,04/10/2013,63,
Bath & North East Somerset Council,80265032,LM8,Home Care,P03,Wellbeing,I & S DUTTON LTD T/A CAREWATCH,04/10/2013,72,
Bath & North East Somerset Council,80265055,LM8,Home Care,P03,Wellbeing,I & S DUTTON LTD T/A CAREWATCH,04/10/2013,72,
Bath & North East Somerset Council,80265055,LM8,Home Care,P03,Wellbeing,I & S DUTTON LTD T/A CAREWATCH,04/10/2013,72,
Bath & North East Somerset Council,80265056,LM8,Home Care,P03,Wellbeing,I & S DUTTON LTD T/A CAREWATCH,04/10/2013,72,
Bath & North East Somerset Council,80265055,LM8,Home Care,P03,Wellbeing,I & S DUTTON LTD T/A CAREWATCH,04/10/2013,108,
Bath & North East Somerset Council,80265055,LM8,Home Care,P03,Wellbeing,I & S DUTTON LTD T/A CAREWATCH,04/10/2013,108,
Bath & North East Somerset Council,80265029,LM8,Home Care,P03,Wellbeing,I & S DUTTON LTD T/A CAREWATCH,04/10/2013,126,
Bath & North East Somerset Council,80265030,LM8,Home Care,P03,Wellbeing,I & S DUTTON LTD T/A CAREWATCH,04/10/2013,126,
Bath & North East Somerset Council,80265030,LM8,Home Care,P03,Wellbeing,I & S DUTTON LTD T/A CAREWATCH,04/10/2013,126,
Bath & North East Somerset Council,80265057,LM8,Home Care,P03,Wellbeing,I & S DUTTON LTD T/A CAREWATCH,04/10/2013,144,
Bath & North East Somerset Council,80265056,LM8,Home Care,P03,Wellbeing,I & S DUTTON LTD T/A CAREWATCH,04/10/2013,162,
Bath & North East Somerset Council,80265056,LM8,Home Care,P03,Wellbeing,I & S DUTTON LTD T/A CAREWATCH,04/10/2013,162,
Bath & North East Somerset Council,80265056,LM8,Home Care,P03,Wellbeing,I & S DUTTON LTD T/A CAREWATCH,04/10/2013,162,
Bath & North East Somerset Council,80265056,LM8,Home Care,P03,Wellbeing,I & S DUTTON LTD T/A CAREWATCH,04/10/2013,162,
Bath & North East Somerset Council,80265057,LM8,Home Care,P03,Wellbeing,I & S DUTTON LTD T/A CAREWATCH,04/10/2013,189,
Bath & North East Somerset Council,80265057,LM8,Home Care,P03,Wellbeing,I & S DUTTON LTD T/A CAREWATCH,04/10/2013,189,
Bath & North East Somerset Council,80265055,LM8,Home Care,P03,Wellbeing,I & S DUTTON LTD T/A CAREWATCH,04/10/2013,216,
Bath & North East Somerset Council,80265057,LM8,Home Care,P03,Wellbeing,I & S DUTTON LTD T/A CAREWATCH,04/10/2013,216,
Bath & North East Somerset Council,80265030,LM8,Home Care,P03,Wellbeing,I & S DUTTON LTD T/A CAREWATCH,04/10/2013,252,
Bath & North East Somerset Council,80265030,LM8,Home Care,P03,Wellbeing,I & S DUTTON LTD T/A CAREWATCH,04/10/2013,252,
Bath & North East Somerset Council,80265030,LM8,Home Care,P03,Wellbeing,I & S DUTTON LTD T/A CAREWATCH,04/10/2013,252,
Bath & North East Somerset Council,80265030,LM8,Home Care,P03,Wellbeing,I & S DUTTON LTD T/A CAREWATCH,04/10/2013,252,
Bath & North East Somerset Council,80265028,LM8,Home Care,P03,Wellbeing,I & S DUTTON LTD T/A CAREWATCH,04/10/2013,504,
Bath & North East Somerset Council,80265028,LM8,Home Care,P03,Wellbeing,I & S DUTTON LTD T/A CAREWATCH,04/10/2013,504,
Bath & North East Somerset Council,80265028,LM8,Home Care,P03,Wellbeing,I & S DUTTON LTD T/A CAREWATCH,04/10/2013,504,
Bath & North East Somerset Council,80265028,LM8,Home Care,P03,Wellbeing,I & S DUTTON LTD T/A CAREWATCH,04/10/2013,504,
Bath & North East Somerset Council,80265029,LM8,Home Care,P03,Wellbeing,I & S DUTTON LTD T/A CAREWATCH,04/10/2013,504,
Bath & North East Somerset Council,80265029,LM8,Home Care,P03,Wellbeing,I & S DUTTON LTD T/A CAREWATCH,04/10/2013,504,
Bath & North East Somerset Council,80265029,LM8,Home Care,P03,Wellbeing,I & S DUTTON LTD T/A CAREWATCH,04/10/2013,504,
Bath & North East Somerset Council,80265029,LM8,Home Care,P03,Wellbeing,I & S DUTTON LTD T/A CAREWATCH,04/10/2013,504,
Bath & North East Somerset Council,80265032,LM8,Home Care,P03,Wellbeing,I & S DUTTON LTD T/A CAREWATCH,04/10/2013,810,
Bath & North East Somerset Council,80265032,LM8,Home Care,P03,Wellbeing,I & S DUTTON LTD T/A CAREWATCH,04/10/2013,810,
Bath & North East Somerset Council,80265032,LM8,Home Care,P03,Wellbeing,I & S DUTTON LTD T/A CAREWATCH,04/10/2013,810,
Bath & North East Somerset Council,80265032,LM8,Home Care,P03,Wellbeing,I & S DUTTON LTD T/A CAREWATCH,04/10/2013,810,
Bath & North East Somerset Council,80265038,LM8,Home Care,P03,Wellbeing,I & S DUTTON LTD T/A CAREWATCH,04/10/2013,980,
Bath & North East Somerset Council,80265038,LM8,Home Care,P03,Wellbeing,I & S DUTTON LTD T/A CAREWATCH,04/10/2013,980,
Bath & North East Somerset Council,80265038,LM8,Home Care,P03,Wellbeing,I & S DUTTON LTD T/A CAREWATCH,04/10/2013,980,
Bath & North East Somerset Council,80265038,LM8,Home Care,P03,Wellbeing,I & S DUTTON LTD T/A CAREWATCH,04/10/2013,980,
Bath & North East Somerset Council,10713768,LL1,Services to/for Clients,P09,Homes & Planning,CONNOLLY & CALLAGHAN LTD,04/10/2013,595,
Bath & North East Somerset Council,80265037,LM8,Home Care,P03,Wellbeing,NURSING SOLUTIONS LIMITED,04/10/2013,96,
Bath & North East Somerset Council,80265037,LM8,Home Care,P03,Wellbeing,NURSING SOLUTIONS LIMITED,04/10/2013,1552,
Bath & North East Somerset Council,80265001,LL3,Supported Living,P03,Wellbeing,OPTIONS FOR LIVING LTD,04/10/2013,615,
Bath & North East Somerset Council,80265001,LL3,Supported Living,P03,Wellbeing,OPTIONS FOR LIVING LTD,04/10/2013,615,
Bath & North East Somerset Council,80265001,LL3,Supported Living,P03,Wellbeing,OPTIONS FOR LIVING LTD,04/10/2013,615,
Bath & North East Somerset Council,80265001,LL3,Supported Living,P03,Wellbeing,OPTIONS FOR LIVING LTD,04/10/2013,615,
Bath & North East Somerset Council,80265039,LM8,Home Care,P03,Wellbeing,PRESTIGE NURSING HEALTHCARE,04/10/2013,529.72,
Bath & North East Somerset Council,80265039,LM8,Home Care,P03,Wellbeing,PRESTIGE NURSING HEALTHCARE,04/10/2013,964.29,
Bath & North East Somerset Council,80265040,LM8,Home Care,P03,Wellbeing,ROBERT SAGE LTD T/A PRESTIGE NURSING PAYROLL,04/10/2013,524.18,
Bath & North East Somerset Council,80265040,LM8,Home Care,P03,Wellbeing,ROBERT SAGE LTD T/A PRESTIGE NURSING PAYROLL,04/10/2013,543.62,
Bath & North East Somerset Council,80265041,LM8,Home Care,P03,Wellbeing,ROBERT SAGE LTD T/A PRESTIGE NURSING PAYROLL,04/10/2013,1032.48,
Bath & North East Somerset Council,80264982,LL3,Supported Living,P03,Wellbeing,S.W.A.L.L.O.W. LTD,04/10/2013,0.04,
Bath & North East Somerset Council,80264987,LL3,Supported Living,P03,Wellbeing,S.W.A.L.L.O.W. LTD,04/10/2013,0.08,
Bath & North East Somerset Council,80264985,LL3,Supported Living,P03,Wellbeing,S.W.A.L.L.O.W. LTD,04/10/2013,0.12,
Bath & North East Somerset Council,80264989,LL3,Supported Living,P03,Wellbeing,S.W.A.L.L.O.W. LTD,04/10/2013,0.24,
Bath & North East Somerset Council,80264981,LL3,Supported Living,P03,Wellbeing,S.W.A.L.L.O.W. LTD,04/10/2013,0.8,
Bath & North East Somerset Council,80264984,LL3,Supported Living,P03,Wellbeing,S.W.A.L.L.O.W. LTD,04/10/2013,1.6,
Bath & North East Somerset Council,80264979,LL3,Supported Living,P03,Wellbeing,S.W.A.L.L.O.W. LTD,04/10/2013,78.9,
Bath & North East Somerset Council,80264979,LL3,Supported Living,P03,Wellbeing,S.W.A.L.L.O.W. LTD,04/10/2013,78.9,
Bath & North East Somerset Council,80264979,LL3,Supported Living,P03,Wellbeing,S.W.A.L.L.O.W. LTD,04/10/2013,78.9,
Bath & North East Somerset Council,80264979,LL3,Supported Living,P03,Wellbeing,S.W.A.L.L.O.W. LTD,04/10/2013,78.9,
Bath & North East Somerset Council,80264986,LL3,Supported Living,P03,Wellbeing,S.W.A.L.L.O.W. LTD,04/10/2013,176.05,
Bath & North East Somerset Council,80264986,LL3,Supported Living,P03,Wellbeing,S.W.A.L.L.O.W. LTD,04/10/2013,176.05,
Bath & North East Somerset Council,80264986,LL3,Supported Living,P03,Wellbeing,S.W.A.L.L.O.W. LTD,04/10/2013,176.05,
Bath & North East Somerset Council,80264986,LL3,Supported Living,P03,Wellbeing,S.W.A.L.L.O.W. LTD,04/10/2013,176.05,
Bath & North East Somerset Council,80264981,LL3,Supported Living,P03,Wellbeing,S.W.A.L.L.O.W. LTD,04/10/2013,230.68,
Bath & North East Somerset Council,80264981,LL3,Supported Living,P03,Wellbeing,S.W.A.L.L.O.W. LTD,04/10/2013,230.68,
Bath & North East Somerset Council,80264981,LL3,Supported Living,P03,Wellbeing,S.W.A.L.L.O.W. LTD,04/10/2013,230.68,
Bath & North East Somerset Council,80264981,LL3,Supported Living,P03,Wellbeing,S.W.A.L.L.O.W. LTD,04/10/2013,230.68,
Bath & North East Somerset Council,80264980,LL3,Supported Living,P03,Wellbeing,S.W.A.L.L.O.W. LTD,04/10/2013,237,
Bath & North East Somerset Council,80264980,LL3,Supported Living,P03,Wellbeing,S.W.A.L.L.O.W. LTD,04/10/2013,237,
Bath & North East Somerset Council,80264980,LL3,Supported Living,P03,Wellbeing,S.W.A.L.L.O.W. LTD,04/10/2013,237,
Bath & North East Somerset Council,80264980,LL3,Supported Living,P03,Wellbeing,S.W.A.L.L.O.W. LTD,04/10/2013,237,
Bath & North East Somerset Council,80264989,LL3,Supported Living,P03,Wellbeing,S.W.A.L.L.O.W. LTD,04/10/2013,252.42,
Bath & North East Somerset Council,80264989,LL3,Supported Living,P03,Wellbeing,S.W.A.L.L.O.W. LTD,04/10/2013,252.42,
Bath & North East Somerset Council,80264989,LL3,Supported Living,P03,Wellbeing,S.W.A.L.L.O.W. LTD,04/10/2013,252.42,
Bath & North East Somerset Council,80264989,LL3,Supported Living,P03,Wellbeing,S.W.A.L.L.O.W. LTD,04/10/2013,252.42,
Bath & North East Somerset Council,80264979,LL3,Supported Living,P03,Wellbeing,S.W.A.L.L.O.W. LTD,04/10/2013,282.57,
Bath & North East Somerset Council,80264979,LL3,Supported Living,P03,Wellbeing,S.W.A.L.L.O.W. LTD,04/10/2013,282.57,
Bath & North East Somerset Council,80264979,LL3,Supported Living,P03,Wellbeing,S.W.A.L.L.O.W. LTD,04/10/2013,282.57,
Bath & North East Somerset Council,80264979,LL3,Supported Living,P03,Wellbeing,S.W.A.L.L.O.W. LTD,04/10/2013,282.57,
Bath & North East Somerset Council,80264987,LL3,Supported Living,P03,Wellbeing,S.W.A.L.L.O.W. LTD,04/10/2013,340.88,
Bath & North East Somerset Council,80264987,LL3,Supported Living,P03,Wellbeing,S.W.A.L.L.O.W. LTD,04/10/2013,340.88,
Bath & North East Somerset Council,80264987,LL3,Supported Living,P03,Wellbeing,S.W.A.L.L.O.W. LTD,04/10/2013,340.88,
Bath & North East Somerset Council,80264987,LL3,Supported Living,P03,Wellbeing,S.W.A.L.L.O.W. LTD,04/10/2013,340.88,
Bath & North East Somerset Council,80264983,LL3,Supported Living,P03,Wellbeing,S.W.A.L.L.O.W. LTD,04/10/2013,377.25,
Bath & North East Somerset Council,80264983,LL3,Supported Living,P03,Wellbeing,S.W.A.L.L.O.W. LTD,04/10/2013,377.25,
Bath & North East Somerset Council,80264983,LL3,Supported Living,P03,Wellbeing,S.W.A.L.L.O.W. LTD,04/10/2013,377.25,
Bath & North East Somerset Council,80264983,LL3,Supported Living,P03,Wellbeing,S.W.A.L.L.O.W. LTD,04/10/2013,377.25,
Bath & North East Somerset Council,80264986,LL3,Supported Living,P03,Wellbeing,S.W.A.L.L.O.W. LTD,04/10/2013,397.91,
Bath & North East Somerset Council,80264986,LL3,Supported Living,P03,Wellbeing,S.W.A.L.L.O.W. LTD,04/10/2013,397.91,
Bath & North East Somerset Council,80264986,LL3,Supported Living,P03,Wellbeing,S.W.A.L.L.O.W. LTD,04/10/2013,397.91,
Bath & North East Somerset Council,80264986,LL3,Supported Living,P03,Wellbeing,S.W.A.L.L.O.W. LTD,04/10/2013,397.91,
Bath & North East Somerset Council,80264978,LL3,Supported Living,P03,Wellbeing,S.W.A.L.L.O.W. LTD,04/10/2013,410.19,
Bath & North East Somerset Council,80264978,LL3,Supported Living,P03,Wellbeing,S.W.A.L.L.O.W. LTD,04/10/2013,410.19,
Bath & North East Somerset Council,80264978,LL3,Supported Living,P03,Wellbeing,S.W.A.L.L.O.W. LTD,04/10/2013,410.19,
Bath & North East Somerset Council,80264978,LL3,Supported Living,P03,Wellbeing,S.W.A.L.L.O.W. LTD,04/10/2013,410.19,
Bath & North East Somerset Council,80264984,LL3,Supported Living,P03,Wellbeing,S.W.A.L.L.O.W. LTD,04/10/2013,804.4,
Bath & North East Somerset Council,80264984,LL3,Supported Living,P03,Wellbeing,S.W.A.L.L.O.W. LTD,04/10/2013,804.4,
Bath & North East Somerset Council,80264984,LL3,Supported Living,P03,Wellbeing,S.W.A.L.L.O.W. LTD,04/10/2013,804.4,
Bath & North East Somerset Council,80264984,LL3,Supported Living,P03,Wellbeing,S.W.A.L.L.O.W. LTD,04/10/2013,804.4,
Bath & North East Somerset Council,80264982,LL3,Supported Living,P03,Wellbeing,S.W.A.L.L.O.W. LTD,04/10/2013,817.37,
Bath & North East Somerset Council,80264982,LL3,Supported Living,P03,Wellbeing,S.W.A.L.L.O.W. LTD,04/10/2013,817.37,
Bath & North East Somerset Council,80264982,LL3,Supported Living,P03,Wellbeing,S.W.A.L.L.O.W. LTD,04/10/2013,817.37,
Bath & North East Somerset Council,80264982,LL3,Supported Living,P03,Wellbeing,S.W.A.L.L.O.W. LTD,04/10/2013,817.37,
Bath & North East Somerset Council,80264985,LL3,Supported Living,P03,Wellbeing,S.W.A.L.L.O.W. LTD,04/10/2013,855.07,
Bath & North East Somerset Council,80264985,LL3,Supported Living,P03,Wellbeing,S.W.A.L.L.O.W. LTD,04/10/2013,855.07,
Bath & North East Somerset Council,80264985,LL3,Supported Living,P03,Wellbeing,S.W.A.L.L.O.W. LTD,04/10/2013,855.07,
Bath & North East Somerset Council,80264985,LL3,Supported Living,P03,Wellbeing,S.W.A.L.L.O.W. LTD,04/10/2013,855.07,
Bath & North East Somerset Council,80265035,LM8,Home Care,P03,Wellbeing,SAFE & SOUND HOMECARE SERVICES,04/10/2013,23.54,
Bath & North East Somerset Council,80265034,LM8,Home Care,P03,Wellbeing,SAFE & SOUND HOMECARE SERVICES,04/10/2013,31,
Bath & North East Somerset Council,80265034,LM8,Home Care,P03,Wellbeing,SAFE & SOUND HOMECARE SERVICES,04/10/2013,66,
Bath & North East Somerset Council,80265034,LM8,Home Care,P03,Wellbeing,SAFE & SOUND HOMECARE SERVICES,04/10/2013,154,
Bath & North East Somerset Council,80265034,LM8,Home Care,P03,Wellbeing,SAFE & SOUND HOMECARE SERVICES,04/10/2013,198,
Bath & North East Somerset Council,80265035,LM8,Home Care,P03,Wellbeing,SAFE & SOUND HOMECARE SERVICES,04/10/2013,208.5,
Bath & North East Somerset Council,80265035,LM8,Home Care,P03,Wellbeing,SAFE & SOUND HOMECARE SERVICES,04/10/2013,208.5,
Bath & North East Somerset Council,80265035,LM8,Home Care,P03,Wellbeing,SAFE & SOUND HOMECARE SERVICES,04/10/2013,208.5,
Bath & North East Somerset Council,80265034,LM8,Home Care,P03,Wellbeing,SAFE & SOUND HOMECARE SERVICES,04/10/2013,264,
Bath & North East Somerset Council,80265035,LM8,Home Care,P03,Wellbeing,SAFE & SOUND HOMECARE SERVICES,04/10/2013,420,
Bath & North East Somerset Council,80265035,LM8,Home Care,P03,Wellbeing,SAFE & SOUND HOMECARE SERVICES,04/10/2013,420,
Bath & North East Somerset Council,80265035,LM8,Home Care,P03,Wellbeing,SAFE & SOUND HOMECARE SERVICES,04/10/2013,420,
Bath & North East Somerset Council,80265012,LL3,Supported Living,P03,Wellbeing,SELBORNE CARE LTD,04/10/2013,134.55,
Bath & North East Somerset Council,80265012,LL3,Supported Living,P03,Wellbeing,SELBORNE CARE LTD,04/10/2013,134.55,
Bath & North East Somerset Council,80265012,LL3,Supported Living,P03,Wellbeing,SELBORNE CARE LTD,04/10/2013,134.55,
Bath & North East Somerset Council,80265012,LL3,Supported Living,P03,Wellbeing,SELBORNE CARE LTD,04/10/2013,134.55,
Bath & North East Somerset Council,80265003,LL3,Supported Living,P03,Wellbeing,SELBORNE CARE LTD,04/10/2013,149.5,
Bath & North East Somerset Council,80265003,LL3,Supported Living,P03,Wellbeing,SELBORNE CARE LTD,04/10/2013,149.5,
Bath & North East Somerset Council,80265003,LL3,Supported Living,P03,Wellbeing,SELBORNE CARE LTD,04/10/2013,149.5,
Bath & North East Somerset Council,80265003,LL3,Supported Living,P03,Wellbeing,SELBORNE CARE LTD,04/10/2013,149.5,
Bath & North East Somerset Council,80265005,LL3,Supported Living,P03,Wellbeing,SELBORNE CARE LTD,04/10/2013,224.25,
Bath & North East Somerset Council,80265005,LL3,Supported Living,P03,Wellbeing,SELBORNE CARE LTD,04/10/2013,224.25,
Bath & North East Somerset Council,80265005,LL3,Supported Living,P03,Wellbeing,SELBORNE CARE LTD,04/10/2013,224.25,
Bath & North East Somerset Council,80265005,LL3,Supported Living,P03,Wellbeing,SELBORNE CARE LTD,04/10/2013,224.25,
Bath & North East Somerset Council,80265013,LL3,Supported Living,P03,Wellbeing,SELBORNE CARE LTD,04/10/2013,261.63,
Bath & North East Somerset Council,80265013,LL3,Supported Living,P03,Wellbeing,SELBORNE CARE LTD,04/10/2013,261.63,
Bath & North East Somerset Council,80265013,LL3,Supported Living,P03,Wellbeing,SELBORNE CARE LTD,04/10/2013,261.63,
Bath & North East Somerset Council,80265013,LL3,Supported Living,P03,Wellbeing,SELBORNE CARE LTD,04/10/2013,261.63,
Bath & North East Somerset Council,80265009,LL3,Supported Living,P03,Wellbeing,SELBORNE CARE LTD,04/10/2013,299,
Bath & North East Somerset Council,80265009,LL3,Supported Living,P03,Wellbeing,SELBORNE CARE LTD,04/10/2013,299,
Bath & North East Somerset Council,80265009,LL3,Supported Living,P03,Wellbeing,SELBORNE CARE LTD,04/10/2013,299,
Bath & North East Somerset Council,80265009,LL3,Supported Living,P03,Wellbeing,SELBORNE CARE LTD,04/10/2013,299,
Bath & North East Somerset Council,10714039,LF2,Photocopying,P05,Neighbourhoods,CANON (UK) LTD,04/10/2013,879.58,
Bath & North East Somerset Council,10713689,ED4,Pensions Increase Act Payments,P07,Community Resources,GLOUCESTERSHIRE COUNTY COUNCIL LGPS,04/10/2013,552.65,
Bath & North East Somerset Council,10714412,ED4,Pensions Increase Act Payments,P07,Community Resources,GLOUCESTERSHIRE COUNTY COUNCIL LGPS,04/10/2013,554.02,
Bath & North East Somerset Council,10712879,LK1,Fees,P02,"Early Years, Children & Youth",JENNIFER CAROL DIXON,04/10/2013,1000,
Bath & North East Somerset Council,10714241,LF5,Postages,P07,Community Resources,CFH TOTAL DOCUMENT MANAGEMENT LTD,04/10/2013,1033.67,
Bath & North East Somerset Council,10714377,HP6,Water Charges,P05,Neighbourhoods,BWBSL,04/10/2013,1161.29,
Bath & North East Somerset Council,10714379,HP6,Water Charges,P01,Transport,BWBSL,04/10/2013,1170.91,
Bath & North East Somerset Council,80265027,LM8,Home Care,P03,Wellbeing,STAR HOME CARE SERVICES LIMITED,04/10/2013,524.03,
Bath & North East Somerset Council,10714363,LV2,Contributions to Organisations,P06,Sustainable Development,KEYNSHAM MUSIC FESTIVAL ASSOCIATION LTD,04/10/2013,750,
Bath & North East Somerset Council,10714236,LN5,Data Lines,P04,Leader,ACCESS INFRASTRUCTURE,04/10/2013,1540,
Bath & North East Somerset Council,10714378,HP6,Water Charges,P05,Neighbourhoods,BWBSL,04/10/2013,1608.77,
Bath & North East Somerset Council,10714407,HP1,Rent Payable,P06,Sustainable Development,W WILTS & E SOM AREA MTG RELIGIOUS SOC OF FRIENDS,04/10/2013,1716.28,
Bath & North East Somerset Council,10714366,LV1,Grants to Voluntary Bodies,P06,Sustainable Development,THEATRE ROYAL (BATH) LIMITED,04/10/2013,1750,
Bath & North East Somerset Council,10714240,LF1,Printing/Design,P07,Community Resources,CFH TOTAL DOCUMENT MANAGEMENT LTD,04/10/2013,2200.5,
Bath & North East Somerset Council,10714401,KE2,Payment to Parents/Students,P02,"Early Years, Children & Youth",REDACTED,04/10/2013,897.6,
Bath & North East Somerset Council,80265059,PG1,Rent Allowances,P07,Community Resources,SOMER COMMUNITY HOUSING TRUST,04/10/2013,746.27,
Bath & North East Somerset Council,10714414,LW9,Other Expenses,P01,Transport,SEVEN STARS CARE LTD,04/10/2013,20316,
Bath & North East Somerset Council,80265061,PG1,Rent Allowances,P07,Community Resources,SOMER COMMUNITY HOUSING TRUST,04/10/2013,29072.45,
Bath & North East Somerset Council,80265060,PG1,Rent Allowances,P07,Community Resources,SOMER COMMUNITY HOUSING TRUST,04/10/2013,94533.61,
Bath & North East Somerset Council,10713171,LP3,Hardware Lease,P04,Leader,CANON (UK) LTD,04/10/2013,37645.68,
Bath & North East Somerset Council,80265474,LL8,Individualised Budget,P03,Wellbeing,REDACTED,07/10/2013,298.46,
Bath & North East Somerset Council,80265474,LL8,Individualised Budget,P03,Wellbeing,REDACTED,07/10/2013,298.46,
Bath & North East Somerset Council,80265423,LL8,Individualised Budget,P03,Wellbeing,REDACTED,07/10/2013,463.34,
Bath & North East Somerset Council,80265423,LL8,Individualised Budget,P03,Wellbeing,REDACTED,07/10/2013,463.34,
Bath & North East Somerset Council,80265546,LL8,Individualised Budget,P03,Wellbeing,REDACTED,07/10/2013,926.2,
Bath & North East Somerset Council,80265546,LL8,Individualised Budget,P03,Wellbeing,REDACTED,07/10/2013,926.2,
Bath & North East Somerset Council,80265524,LL8,Individualised Budget,P03,Wellbeing,REDACTED,07/10/2013,602.22,
Bath & North East Somerset Council,80265524,LL8,Individualised Budget,P03,Wellbeing,REDACTED,07/10/2013,602.22,
Bath & North East Somerset Council,80265556,LL8,Individualised Budget,P03,Wellbeing,REDACTED,07/10/2013,346.5,
Bath & North East Somerset Council,80265556,LL8,Individualised Budget,P03,Wellbeing,REDACTED,07/10/2013,346.5,
Bath & North East Somerset Council,80265641,LL4,Direct Payments,P03,Wellbeing,REDACTED,07/10/2013,1293.48,
Bath & North East Somerset Council,80265641,LL4,Direct Payments,P03,Wellbeing,REDACTED,07/10/2013,1293.48,
Bath & North East Somerset Council,80265551,LL8,Individualised Budget,P03,Wellbeing,REDACTED,07/10/2013,357.52,
Bath & North East Somerset Council,80265551,LL8,Individualised Budget,P03,Wellbeing,REDACTED,07/10/2013,357.52,
Bath & North East Somerset Council,80265580,LL3,Supported Living,P03,Wellbeing,ARCH CARE SERVICES,07/10/2013,54.54,
Bath & North East Somerset Council,80265580,LL3,Supported Living,P03,Wellbeing,ARCH CARE SERVICES,07/10/2013,54.54,
Bath & North East Somerset Council,80265580,LL3,Supported Living,P03,Wellbeing,ARCH CARE SERVICES,07/10/2013,78,
Bath & North East Somerset Council,80265580,LL3,Supported Living,P03,Wellbeing,ARCH CARE SERVICES,07/10/2013,78,
Bath & North East Somerset Council,80265580,LL3,Supported Living,P03,Wellbeing,ARCH CARE SERVICES,07/10/2013,78,
Bath & North East Somerset Council,80265580,LL3,Supported Living,P03,Wellbeing,ARCH CARE SERVICES,07/10/2013,78,
Bath & North East Somerset Council,80265580,LL3,Supported Living,P03,Wellbeing,ARCH CARE SERVICES,07/10/2013,78,
Bath & North East Somerset Council,80265580,LL3,Supported Living,P03,Wellbeing,ARCH CARE SERVICES,07/10/2013,78,
Bath & North East Somerset Council,80265580,LL3,Supported Living,P03,Wellbeing,ARCH CARE SERVICES,07/10/2013,78,
Bath & North East Somerset Council,80265580,LL3,Supported Living,P03,Wellbeing,ARCH CARE SERVICES,07/10/2013,78,
Bath & North East Somerset Council,80265580,LL3,Supported Living,P03,Wellbeing,ARCH CARE SERVICES,07/10/2013,78,
Bath & North East Somerset Council,80265580,LL3,Supported Living,P03,Wellbeing,ARCH CARE SERVICES,07/10/2013,78,
Bath & North East Somerset Council,80265580,LL3,Supported Living,P03,Wellbeing,ARCH CARE SERVICES,07/10/2013,78,
Bath & North East Somerset Council,80265580,LL3,Supported Living,P03,Wellbeing,ARCH CARE SERVICES,07/10/2013,78,
Bath & North East Somerset Council,80265580,LL3,Supported Living,P03,Wellbeing,ARCH CARE SERVICES,07/10/2013,78,
Bath & North East Somerset Council,80265580,LL3,Supported Living,P03,Wellbeing,ARCH CARE SERVICES,07/10/2013,78,
Bath & North East Somerset Council,80265580,LL3,Supported Living,P03,Wellbeing,ARCH CARE SERVICES,07/10/2013,78,
Bath & North East Somerset Council,80265580,LL3,Supported Living,P03,Wellbeing,ARCH CARE SERVICES,07/10/2013,78,
Bath & North East Somerset Council,80265580,LL3,Supported Living,P03,Wellbeing,ARCH CARE SERVICES,07/10/2013,90,
Bath & North East Somerset Council,80265580,LL3,Supported Living,P03,Wellbeing,ARCH CARE SERVICES,07/10/2013,90,
Bath & North East Somerset Council,80265580,LL3,Supported Living,P03,Wellbeing,ARCH CARE SERVICES,07/10/2013,90.9,
Bath & North East Somerset Council,80265580,LL3,Supported Living,P03,Wellbeing,ARCH CARE SERVICES,07/10/2013,90.9,
Bath & North East Somerset Council,80265580,LL3,Supported Living,P03,Wellbeing,ARCH CARE SERVICES,07/10/2013,252.5,
Bath & North East Somerset Council,80265580,LL3,Supported Living,P03,Wellbeing,ARCH CARE SERVICES,07/10/2013,252.5,
Bath & North East Somerset Council,80265580,LL3,Supported Living,P03,Wellbeing,ARCH CARE SERVICES,07/10/2013,277.75,
Bath & North East Somerset Council,80265580,LL3,Supported Living,P03,Wellbeing,ARCH CARE SERVICES,07/10/2013,277.75,
Bath & North East Somerset Council,80265580,LL3,Supported Living,P03,Wellbeing,ARCH CARE SERVICES,07/10/2013,278.76,
Bath & North East Somerset Council,80265580,LL3,Supported Living,P03,Wellbeing,ARCH CARE SERVICES,07/10/2013,278.76,
Bath & North East Somerset Council,80265580,LL3,Supported Living,P03,Wellbeing,ARCH CARE SERVICES,07/10/2013,278.76,
Bath & North East Somerset Council,80265580,LL3,Supported Living,P03,Wellbeing,ARCH CARE SERVICES,07/10/2013,278.76,
Bath & North East Somerset Council,80265580,LL3,Supported Living,P03,Wellbeing,ARCH CARE SERVICES,07/10/2013,310.07,
Bath & North East Somerset Council,80265580,LL3,Supported Living,P03,Wellbeing,ARCH CARE SERVICES,07/10/2013,310.07,
Bath & North East Somerset Council,80265580,LL3,Supported Living,P03,Wellbeing,ARCH CARE SERVICES,07/10/2013,321,
Bath & North East Somerset Council,80265580,LL3,Supported Living,P03,Wellbeing,ARCH CARE SERVICES,07/10/2013,321,
Bath & North East Somerset Council,80265580,LL3,Supported Living,P03,Wellbeing,ARCH CARE SERVICES,07/10/2013,330,
Bath & North East Somerset Council,80265580,LL3,Supported Living,P03,Wellbeing,ARCH CARE SERVICES,07/10/2013,330,
Bath & North East Somerset Council,80265580,LL3,Supported Living,P03,Wellbeing,ARCH CARE SERVICES,07/10/2013,343,
Bath & North East Somerset Council,80265580,LL3,Supported Living,P03,Wellbeing,ARCH CARE SERVICES,07/10/2013,343,
Bath & North East Somerset Council,80265580,LL3,Supported Living,P03,Wellbeing,ARCH CARE SERVICES,07/10/2013,346.43,
Bath & North East Somerset Council,80265580,LL3,Supported Living,P03,Wellbeing,ARCH CARE SERVICES,07/10/2013,346.43,
Bath & North East Somerset Council,80265368,LM6,Nursing Care,P03,Wellbeing,ARCH CARE SERVICES,07/10/2013,427,
Bath & North East Somerset Council,80265368,LM6,Nursing Care,P03,Wellbeing,ARCH CARE SERVICES,07/10/2013,427,
Bath & North East Somerset Council,80265580,LL3,Supported Living,P03,Wellbeing,ARCH CARE SERVICES,07/10/2013,431.27,
Bath & North East Somerset Council,80265580,LL3,Supported Living,P03,Wellbeing,ARCH CARE SERVICES,07/10/2013,431.27,
Bath & North East Somerset Council,80265580,LL3,Supported Living,P03,Wellbeing,ARCH CARE SERVICES,07/10/2013,445,
Bath & North East Somerset Council,80265580,LL3,Supported Living,P03,Wellbeing,ARCH CARE SERVICES,07/10/2013,445,
Bath & North East Somerset Council,80265382,LM6,Nursing Care,P03,Wellbeing,BARCHESTER HEALTH CARE,07/10/2013,993,
Bath & North East Somerset Council,80265382,LM6,Nursing Care,P03,Wellbeing,BARCHESTER HEALTH CARE,07/10/2013,993,
Bath & North East Somerset Council,80265357,LM6,Nursing Care,P03,Wellbeing,BARCHESTER HEALTHCARE,07/10/2013,915.3,
Bath & North East Somerset Council,80265357,LM6,Nursing Care,P03,Wellbeing,BARCHESTER HEALTHCARE,07/10/2013,915.3,
Bath & North East Somerset Council,80265349,LM6,Nursing Care,P03,Wellbeing,BARCHESTER HEALTHCARE HOMES LTD,07/10/2013,650,
Bath & North East Somerset Council,80265349,LM6,Nursing Care,P03,Wellbeing,BARCHESTER HEALTHCARE HOMES LTD,07/10/2013,650,
Bath & North East Somerset Council,80265349,LM6,Nursing Care,P03,Wellbeing,BARCHESTER HEALTHCARE HOMES LTD,07/10/2013,650,
Bath & North East Somerset Council,80265349,LM6,Nursing Care,P03,Wellbeing,BARCHESTER HEALTHCARE HOMES LTD,07/10/2013,650,
Bath & North East Somerset Council,80265349,LM6,Nursing Care,P03,Wellbeing,BARCHESTER HEALTHCARE HOMES LTD,07/10/2013,650,
Bath & North East Somerset Council,80265349,LM6,Nursing Care,P03,Wellbeing,BARCHESTER HEALTHCARE HOMES LTD,07/10/2013,650,
Bath & North East Somerset Council,80265349,LM6,Nursing Care,P03,Wellbeing,BARCHESTER HEALTHCARE HOMES LTD,07/10/2013,650,
Bath & North East Somerset Council,80265349,LM6,Nursing Care,P03,Wellbeing,BARCHESTER HEALTHCARE HOMES LTD,07/10/2013,650,
Bath & North East Somerset Council,80265349,LM6,Nursing Care,P03,Wellbeing,BARCHESTER HEALTHCARE HOMES LTD,07/10/2013,746,
Bath & North East Somerset Council,80265349,LM6,Nursing Care,P03,Wellbeing,BARCHESTER HEALTHCARE HOMES LTD,07/10/2013,746,
Bath & North East Somerset Council,80265349,LM6,Nursing Care,P03,Wellbeing,BARCHESTER HEALTHCARE HOMES LTD,07/10/2013,750,
Bath & North East Somerset Council,80265349,LM6,Nursing Care,P03,Wellbeing,BARCHESTER HEALTHCARE HOMES LTD,07/10/2013,750,
Bath & North East Somerset Council,80265349,LM6,Nursing Care,P03,Wellbeing,BARCHESTER HEALTHCARE HOMES LTD,07/10/2013,755,
Bath & North East Somerset Council,80265349,LM6,Nursing Care,P03,Wellbeing,BARCHESTER HEALTHCARE HOMES LTD,07/10/2013,755,
Bath & North East Somerset Council,80265349,LM6,Nursing Care,P03,Wellbeing,BARCHESTER HEALTHCARE HOMES LTD,07/10/2013,830,
Bath & North East Somerset Council,80265349,LM6,Nursing Care,P03,Wellbeing,BARCHESTER HEALTHCARE HOMES LTD,07/10/2013,830,
Bath & North East Somerset Council,80265349,LM6,Nursing Care,P03,Wellbeing,BARCHESTER HEALTHCARE HOMES LTD,07/10/2013,839.03,
Bath & North East Somerset Council,80265349,LM6,Nursing Care,P03,Wellbeing,BARCHESTER HEALTHCARE HOMES LTD,07/10/2013,839.03,
Bath & North East Somerset Council,80265349,LM6,Nursing Care,P03,Wellbeing,BARCHESTER HEALTHCARE HOMES LTD,07/10/2013,846,
Bath & North East Somerset Council,80265349,LM6,Nursing Care,P03,Wellbeing,BARCHESTER HEALTHCARE HOMES LTD,07/10/2013,846,
Bath & North East Somerset Council,80265349,LM6,Nursing Care,P03,Wellbeing,BARCHESTER HEALTHCARE HOMES LTD,07/10/2013,1100,
Bath & North East Somerset Council,80265349,LM6,Nursing Care,P03,Wellbeing,BARCHESTER HEALTHCARE HOMES LTD,07/10/2013,1100,
Bath & North East Somerset Council,80265372,LM6,Nursing Care,P03,Wellbeing,BARKER CHEMICALS LTD T/A ST TERESA'S NH,07/10/2013,160,
Bath & North East Somerset Council,80265372,LM6,Nursing Care,P03,Wellbeing,BARKER CHEMICALS LTD T/A ST TERESA'S NH,07/10/2013,160,
Bath & North East Somerset Council,80265372,LM6,Nursing Care,P03,Wellbeing,BARKER CHEMICALS LTD T/A ST TERESA'S NH,07/10/2013,160,
Bath & North East Somerset Council,80265372,LM6,Nursing Care,P03,Wellbeing,BARKER CHEMICALS LTD T/A ST TERESA'S NH,07/10/2013,160,
Bath & North East Somerset Council,80265372,LM6,Nursing Care,P03,Wellbeing,BARKER CHEMICALS LTD T/A ST TERESA'S NH,07/10/2013,160,
Bath & North East Somerset Council,80265372,LM6,Nursing Care,P03,Wellbeing,BARKER CHEMICALS LTD T/A ST TERESA'S NH,07/10/2013,160,
Bath & North East Somerset Council,80265372,LM6,Nursing Care,P03,Wellbeing,BARKER CHEMICALS LTD T/A ST TERESA'S NH,07/10/2013,160,
Bath & North East Somerset Council,80265372,LM6,Nursing Care,P03,Wellbeing,BARKER CHEMICALS LTD T/A ST TERESA'S NH,07/10/2013,160,
Bath & North East Somerset Council,80265372,LM6,Nursing Care,P03,Wellbeing,BARKER CHEMICALS LTD T/A ST TERESA'S NH,07/10/2013,160,
Bath & North East Somerset Council,80265372,LM6,Nursing Care,P03,Wellbeing,BARKER CHEMICALS LTD T/A ST TERESA'S NH,07/10/2013,160,
Bath & North East Somerset Council,80265372,LM6,Nursing Care,P03,Wellbeing,BARKER CHEMICALS LTD T/A ST TERESA'S NH,07/10/2013,160,
Bath & North East Somerset Council,80265372,LM6,Nursing Care,P03,Wellbeing,BARKER CHEMICALS LTD T/A ST TERESA'S NH,07/10/2013,160,
Bath & North East Somerset Council,80265372,LM6,Nursing Care,P03,Wellbeing,BARKER CHEMICALS LTD T/A ST TERESA'S NH,07/10/2013,160,
Bath & North East Somerset Council,80265372,LM6,Nursing Care,P03,Wellbeing,BARKER CHEMICALS LTD T/A ST TERESA'S NH,07/10/2013,464.29,
Bath & North East Somerset Council,80265372,LM6,Nursing Care,P03,Wellbeing,BARKER CHEMICALS LTD T/A ST TERESA'S NH,07/10/2013,650,
Bath & North East Somerset Council,80265372,LM6,Nursing Care,P03,Wellbeing,BARKER CHEMICALS LTD T/A ST TERESA'S NH,07/10/2013,650,
Bath & North East Somerset Council,80265372,LM6,Nursing Care,P03,Wellbeing,BARKER CHEMICALS LTD T/A ST TERESA'S NH,07/10/2013,650,
Bath & North East Somerset Council,80265372,LM6,Nursing Care,P03,Wellbeing,BARKER CHEMICALS LTD T/A ST TERESA'S NH,07/10/2013,650,
Bath & North East Somerset Council,80265372,LM6,Nursing Care,P03,Wellbeing,BARKER CHEMICALS LTD T/A ST TERESA'S NH,07/10/2013,650,
Bath & North East Somerset Council,80265372,LM6,Nursing Care,P03,Wellbeing,BARKER CHEMICALS LTD T/A ST TERESA'S NH,07/10/2013,650,
Bath & North East Somerset Council,80265372,LM6,Nursing Care,P03,Wellbeing,BARKER CHEMICALS LTD T/A ST TERESA'S NH,07/10/2013,650,
Bath & North East Somerset Council,80265372,LM6,Nursing Care,P03,Wellbeing,BARKER CHEMICALS LTD T/A ST TERESA'S NH,07/10/2013,650,
Bath & North East Somerset Council,80265372,LM6,Nursing Care,P03,Wellbeing,BARKER CHEMICALS LTD T/A ST TERESA'S NH,07/10/2013,750.75,
Bath & North East Somerset Council,80265372,LM6,Nursing Care,P03,Wellbeing,BARKER CHEMICALS LTD T/A ST TERESA'S NH,07/10/2013,750.75,
Bath & North East Somerset Council,80265372,LM6,Nursing Care,P03,Wellbeing,BARKER CHEMICALS LTD T/A ST TERESA'S NH,07/10/2013,787,
Bath & North East Somerset Council,80265372,LM6,Nursing Care,P03,Wellbeing,BARKER CHEMICALS LTD T/A ST TERESA'S NH,07/10/2013,787,
Bath & North East Somerset Council,80265372,LM6,Nursing Care,P03,Wellbeing,BARKER CHEMICALS LTD T/A ST TERESA'S NH,07/10/2013,800.35,
Bath & North East Somerset Council,80265372,LM6,Nursing Care,P03,Wellbeing,BARKER CHEMICALS LTD T/A ST TERESA'S NH,07/10/2013,800.35,
Bath & North East Somerset Council,80265372,LM6,Nursing Care,P03,Wellbeing,BARKER CHEMICALS LTD T/A ST TERESA'S NH,07/10/2013,810,
Bath & North East Somerset Council,80265372,LM6,Nursing Care,P03,Wellbeing,BARKER CHEMICALS LTD T/A ST TERESA'S NH,07/10/2013,810,
Bath & North East Somerset Council,80265372,LM6,Nursing Care,P03,Wellbeing,BARKER CHEMICALS LTD T/A ST TERESA'S NH,07/10/2013,927,
Bath & North East Somerset Council,80265372,LM6,Nursing Care,P03,Wellbeing,BARKER CHEMICALS LTD T/A ST TERESA'S NH,07/10/2013,927,
Bath & North East Somerset Council,80265372,LM6,Nursing Care,P03,Wellbeing,BARKER CHEMICALS LTD T/A ST TERESA'S NH,07/10/2013,1275.25,
Bath & North East Somerset Council,80265372,LM6,Nursing Care,P03,Wellbeing,BARKER CHEMICALS LTD T/A ST TERESA'S NH,07/10/2013,1275.25,
Bath & North East Somerset Council,80265367,LM6,Nursing Care,P03,Wellbeing,BRIDGE CARE LTD,07/10/2013,800,
Bath & North East Somerset Council,80265367,LM6,Nursing Care,P03,Wellbeing,BRIDGE CARE LTD,07/10/2013,800,
Bath & North East Somerset Council,80265352,LM6,Nursing Care,P03,Wellbeing,BRISTOL AGE CARE,07/10/2013,750,
Bath & North East Somerset Council,80265352,LM6,Nursing Care,P03,Wellbeing,BRISTOL AGE CARE,07/10/2013,750,
Bath & North East Somerset Council,80265358,LM6,Nursing Care,P03,Wellbeing,BROOKDALE HEALTHCARE LTD,07/10/2013,3619,
Bath & North East Somerset Council,80265358,LM6,Nursing Care,P03,Wellbeing,BROOKDALE HEALTHCARE LTD,07/10/2013,3619,
Bath & North East Somerset Council,80265346,LM6,Nursing Care,P03,Wellbeing,BYBROOK HOUSE,07/10/2013,650,
Bath & North East Somerset Council,80265346,LM6,Nursing Care,P03,Wellbeing,BYBROOK HOUSE,07/10/2013,650,
Bath & North East Somerset Council,80265375,LM6,Nursing Care,P03,Wellbeing,CARE FIRST CARE HOMES LTD,07/10/2013,92.86,
Bath & North East Somerset Council,80265375,LM6,Nursing Care,P03,Wellbeing,CARE FIRST CARE HOMES LTD,07/10/2013,642.86,
Bath & North East Somerset Council,80265375,LM6,Nursing Care,P03,Wellbeing,CARE FIRST CARE HOMES LTD,07/10/2013,750,
Bath & North East Somerset Council,80265375,LM6,Nursing Care,P03,Wellbeing,CARE FIRST CARE HOMES LTD,07/10/2013,750,
Bath & North East Somerset Council,80265375,LM6,Nursing Care,P03,Wellbeing,CARE FIRST CARE HOMES LTD,07/10/2013,754.61,
Bath & North East Somerset Council,80265375,LM6,Nursing Care,P03,Wellbeing,CARE FIRST CARE HOMES LTD,07/10/2013,754.61,
Bath & North East Somerset Council,80265376,LM6,Nursing Care,P03,Wellbeing,CEDAR CARE HOMES LTD,07/10/2013,107.14,
Bath & North East Somerset Council,80265619,LM3,Residential Care,P03,Wellbeing,CEDAR CARE HOMES LTD,07/10/2013,185.79,
Bath & North East Somerset Council,80265619,LM3,Residential Care,P03,Wellbeing,CEDAR CARE HOMES LTD,07/10/2013,309.64,
Bath & North East Somerset Council,80265376,LM6,Nursing Care,P03,Wellbeing,CEDAR CARE HOMES LTD,07/10/2013,428.57,
Bath & North East Somerset Council,80265619,LM3,Residential Care,P03,Wellbeing,CEDAR CARE HOMES LTD,07/10/2013,433.5,
Bath & North East Somerset Council,80265362,LM6,Nursing Care,P03,Wellbeing,CEDAR CARE HOMES LTD,07/10/2013,650,
Bath & North East Somerset Council,80265362,LM6,Nursing Care,P03,Wellbeing,CEDAR CARE HOMES LTD,07/10/2013,650,
Bath & North East Somerset Council,80265376,LM6,Nursing Care,P03,Wellbeing,CEDAR CARE HOMES LTD,07/10/2013,650,
Bath & North East Somerset Council,80265376,LM6,Nursing Care,P03,Wellbeing,CEDAR CARE HOMES LTD,07/10/2013,650,
Bath & North East Somerset Council,80265376,LM6,Nursing Care,P03,Wellbeing,CEDAR CARE HOMES LTD,07/10/2013,650,
Bath & North East Somerset Council,80265376,LM6,Nursing Care,P03,Wellbeing,CEDAR CARE HOMES LTD,07/10/2013,650,
Bath & North East Somerset Council,80265376,LM6,Nursing Care,P03,Wellbeing,CEDAR CARE HOMES LTD,07/10/2013,800,
Bath & North East Somerset Council,80265376,LM6,Nursing Care,P03,Wellbeing,CEDAR CARE HOMES LTD,07/10/2013,800,
Bath & North East Somerset Council,80265376,LM6,Nursing Care,P03,Wellbeing,CEDAR CARE HOMES LTD,07/10/2013,800,
Bath & North East Somerset Council,80265376,LM6,Nursing Care,P03,Wellbeing,CEDAR CARE HOMES LTD,07/10/2013,800,
Bath & North East Somerset Council,80265075,LA7,Purchases for Resale,P06,Sustainable Development,F H SWIFT,07/10/2013,126,
Bath & North East Somerset Council,80265362,LM6,Nursing Care,P03,Wellbeing,CEDAR CARE HOMES LTD,07/10/2013,2018.01,
Bath & North East Somerset Council,80265362,LM6,Nursing Care,P03,Wellbeing,CEDAR CARE HOMES LTD,07/10/2013,2018.01,
Bath & North East Somerset Council,80265389,LM6,Nursing Care,P03,Wellbeing,CEDAR PARK NURSING HOME,07/10/2013,650,
Bath & North East Somerset Council,80265389,LM6,Nursing Care,P03,Wellbeing,CEDAR PARK NURSING HOME,07/10/2013,650,
Bath & North East Somerset Council,80265389,LM6,Nursing Care,P03,Wellbeing,CEDAR PARK NURSING HOME,07/10/2013,725,
Bath & North East Somerset Council,80265389,LM6,Nursing Care,P03,Wellbeing,CEDAR PARK NURSING HOME,07/10/2013,725,
Bath & North East Somerset Council,80265345,LM6,Nursing Care,P03,Wellbeing,CHOLWELL HOUSE NURSING HOME,07/10/2013,181,
Bath & North East Somerset Council,80265345,LM6,Nursing Care,P03,Wellbeing,CHOLWELL HOUSE NURSING HOME,07/10/2013,181,
Bath & North East Somerset Council,80265345,LM6,Nursing Care,P03,Wellbeing,CHOLWELL HOUSE NURSING HOME,07/10/2013,569,
Bath & North East Somerset Council,80265345,LM6,Nursing Care,P03,Wellbeing,CHOLWELL HOUSE NURSING HOME,07/10/2013,569,
Bath & North East Somerset Council,80265345,LM6,Nursing Care,P03,Wellbeing,CHOLWELL HOUSE NURSING HOME,07/10/2013,646.6,
Bath & North East Somerset Council,80265345,LM6,Nursing Care,P03,Wellbeing,CHOLWELL HOUSE NURSING HOME,07/10/2013,646.6,
Bath & North East Somerset Council,80265345,LM6,Nursing Care,P03,Wellbeing,CHOLWELL HOUSE NURSING HOME,07/10/2013,650,
Bath & North East Somerset Council,80265345,LM6,Nursing Care,P03,Wellbeing,CHOLWELL HOUSE NURSING HOME,07/10/2013,650,
Bath & North East Somerset Council,80265345,LM6,Nursing Care,P03,Wellbeing,CHOLWELL HOUSE NURSING HOME,07/10/2013,675,
Bath & North East Somerset Council,80265345,LM6,Nursing Care,P03,Wellbeing,CHOLWELL HOUSE NURSING HOME,07/10/2013,675,
Bath & North East Somerset Council,80265345,LM6,Nursing Care,P03,Wellbeing,CHOLWELL HOUSE NURSING HOME,07/10/2013,675,
Bath & North East Somerset Council,80265345,LM6,Nursing Care,P03,Wellbeing,CHOLWELL HOUSE NURSING HOME,07/10/2013,675,
Bath & North East Somerset Council,80265345,LM6,Nursing Care,P03,Wellbeing,CHOLWELL HOUSE NURSING HOME,07/10/2013,711.9,
Bath & North East Somerset Council,80265345,LM6,Nursing Care,P03,Wellbeing,CHOLWELL HOUSE NURSING HOME,07/10/2013,711.9,
Bath & North East Somerset Council,80265345,LM6,Nursing Care,P03,Wellbeing,CHOLWELL HOUSE NURSING HOME,07/10/2013,711.9,
Bath & North East Somerset Council,80265345,LM6,Nursing Care,P03,Wellbeing,CHOLWELL HOUSE NURSING HOME,07/10/2013,711.9,
Bath & North East Somerset Council,80265345,LM6,Nursing Care,P03,Wellbeing,CHOLWELL HOUSE NURSING HOME,07/10/2013,725,
Bath & North East Somerset Council,80265345,LM6,Nursing Care,P03,Wellbeing,CHOLWELL HOUSE NURSING HOME,07/10/2013,725,
Bath & North East Somerset Council,80265345,LM6,Nursing Care,P03,Wellbeing,CHOLWELL HOUSE NURSING HOME,07/10/2013,1010,
Bath & North East Somerset Council,80265345,LM6,Nursing Care,P03,Wellbeing,CHOLWELL HOUSE NURSING HOME,07/10/2013,1010,
Bath & North East Somerset Council,80265345,LM6,Nursing Care,P03,Wellbeing,CHOLWELL HOUSE NURSING HOME,07/10/2013,1743,
Bath & North East Somerset Council,80265345,LM6,Nursing Care,P03,Wellbeing,CHOLWELL HOUSE NURSING HOME,07/10/2013,1743,
Bath & North East Somerset Council,80265366,LM6,Nursing Care,P03,Wellbeing,COMMUNITY OF ST ANTONY & ST ELIAS & REV FR BGPR &,07/10/2013,1665,
Bath & North East Somerset Council,80265366,LM6,Nursing Care,P03,Wellbeing,COMMUNITY OF ST ANTONY & ST ELIAS & REV FR BGPR &,07/10/2013,1665,
Bath & North East Somerset Council,80265388,LM6,Nursing Care,P03,Wellbeing,CRANHILL NURSING HOME,07/10/2013,371.43,
Bath & North East Somerset Council,80265388,LM6,Nursing Care,P03,Wellbeing,CRANHILL NURSING HOME,07/10/2013,650,
Bath & North East Somerset Council,80265388,LM6,Nursing Care,P03,Wellbeing,CRANHILL NURSING HOME,07/10/2013,650,
Bath & North East Somerset Council,80265388,LM6,Nursing Care,P03,Wellbeing,CRANHILL NURSING HOME,07/10/2013,706,
Bath & North East Somerset Council,80265388,LM6,Nursing Care,P03,Wellbeing,CRANHILL NURSING HOME,07/10/2013,706,
Bath & North East Somerset Council,80265347,LM6,Nursing Care,P03,Wellbeing,CULVERHAY NURSING HOME,07/10/2013,810,
Bath & North East Somerset Council,80265347,LM6,Nursing Care,P03,Wellbeing,CULVERHAY NURSING HOME,07/10/2013,810,
Bath & North East Somerset Council,80265347,LM6,Nursing Care,P03,Wellbeing,CULVERHAY NURSING HOME,07/10/2013,810,
Bath & North East Somerset Council,80265347,LM6,Nursing Care,P03,Wellbeing,CULVERHAY NURSING HOME,07/10/2013,810,
Bath & North East Somerset Council,80265347,LM6,Nursing Care,P03,Wellbeing,CULVERHAY NURSING HOME,07/10/2013,810,
Bath & North East Somerset Council,80265347,LM6,Nursing Care,P03,Wellbeing,CULVERHAY NURSING HOME,07/10/2013,810,
Bath & North East Somerset Council,80265347,LM6,Nursing Care,P03,Wellbeing,CULVERHAY NURSING HOME,07/10/2013,810,
Bath & North East Somerset Council,80265347,LM6,Nursing Care,P03,Wellbeing,CULVERHAY NURSING HOME,07/10/2013,810,
Bath & North East Somerset Council,80265347,LM6,Nursing Care,P03,Wellbeing,CULVERHAY NURSING HOME,07/10/2013,810,
Bath & North East Somerset Council,80265347,LM6,Nursing Care,P03,Wellbeing,CULVERHAY NURSING HOME,07/10/2013,810,
Bath & North East Somerset Council,80265347,LM6,Nursing Care,P03,Wellbeing,CULVERHAY NURSING HOME,07/10/2013,810,
Bath & North East Somerset Council,80265347,LM6,Nursing Care,P03,Wellbeing,CULVERHAY NURSING HOME,07/10/2013,810,
Bath & North East Somerset Council,80265347,LM6,Nursing Care,P03,Wellbeing,CULVERHAY NURSING HOME,07/10/2013,810,
Bath & North East Somerset Council,80265347,LM6,Nursing Care,P03,Wellbeing,CULVERHAY NURSING HOME,07/10/2013,810,
Bath & North East Somerset Council,80265347,LM6,Nursing Care,P03,Wellbeing,CULVERHAY NURSING HOME,07/10/2013,810,
Bath & North East Somerset Council,80265347,LM6,Nursing Care,P03,Wellbeing,CULVERHAY NURSING HOME,07/10/2013,810,
Bath & North East Somerset Council,80265347,LM6,Nursing Care,P03,Wellbeing,CULVERHAY NURSING HOME,07/10/2013,810,
Bath & North East Somerset Council,80265347,LM6,Nursing Care,P03,Wellbeing,CULVERHAY NURSING HOME,07/10/2013,810,
Bath & North East Somerset Council,80265347,LM6,Nursing Care,P03,Wellbeing,CULVERHAY NURSING HOME,07/10/2013,810,
Bath & North East Somerset Council,80265347,LM6,Nursing Care,P03,Wellbeing,CULVERHAY NURSING HOME,07/10/2013,810,
Bath & North East Somerset Council,80265347,LM6,Nursing Care,P03,Wellbeing,CULVERHAY NURSING HOME,07/10/2013,810,
Bath & North East Somerset Council,80265347,LM6,Nursing Care,P03,Wellbeing,CULVERHAY NURSING HOME,07/10/2013,810,
Bath & North East Somerset Council,80265347,LM6,Nursing Care,P03,Wellbeing,CULVERHAY NURSING HOME,07/10/2013,810,
Bath & North East Somerset Council,80265347,LM6,Nursing Care,P03,Wellbeing,CULVERHAY NURSING HOME,07/10/2013,810,
Bath & North East Somerset Council,80265347,LM6,Nursing Care,P03,Wellbeing,CULVERHAY NURSING HOME,07/10/2013,810,
Bath & North East Somerset Council,80265347,LM6,Nursing Care,P03,Wellbeing,CULVERHAY NURSING HOME,07/10/2013,810,
Bath & North East Somerset Council,80265347,LM6,Nursing Care,P03,Wellbeing,CULVERHAY NURSING HOME,07/10/2013,810,
Bath & North East Somerset Council,80265347,LM6,Nursing Care,P03,Wellbeing,CULVERHAY NURSING HOME,07/10/2013,810,
Bath & North East Somerset Council,80265347,LM6,Nursing Care,P03,Wellbeing,CULVERHAY NURSING HOME,07/10/2013,810,
Bath & North East Somerset Council,80265347,LM6,Nursing Care,P03,Wellbeing,CULVERHAY NURSING HOME,07/10/2013,810,
Bath & North East Somerset Council,80265347,LM6,Nursing Care,P03,Wellbeing,CULVERHAY NURSING HOME,07/10/2013,810,
Bath & North East Somerset Council,80265347,LM6,Nursing Care,P03,Wellbeing,CULVERHAY NURSING HOME,07/10/2013,810,
Bath & North East Somerset Council,10714292,LJ3,Other Services to the Council,P07,Community Resources,SOFA PROJECT,07/10/2013,315,
Bath & North East Somerset Council,80265605,LL8,Individualised Budget,P03,Wellbeing,REDACTED,07/10/2013,500,
Bath & North East Somerset Council,80265484,LL8,Individualised Budget,P03,Wellbeing,REDACTED,07/10/2013,1487.45,
Bath & North East Somerset Council,80265484,LL8,Individualised Budget,P03,Wellbeing,REDACTED,07/10/2013,1487.45,
Bath & North East Somerset Council,80265396,LL8,Individualised Budget,P03,Wellbeing,REDACTED,07/10/2013,386.53,
Bath & North East Somerset Council,80265396,LL8,Individualised Budget,P03,Wellbeing,REDACTED,07/10/2013,386.53,
Bath & North East Somerset Council,80265615,LL8,Individualised Budget,P03,Wellbeing,REDACTED,07/10/2013,345,
Bath & North East Somerset Council,80265615,LL8,Individualised Budget,P03,Wellbeing,REDACTED,07/10/2013,345,
Bath & North East Somerset Council,80265402,LL8,Individualised Budget,P03,Wellbeing,REDACTED,07/10/2013,1419.81,
Bath & North East Somerset Council,80265402,LL8,Individualised Budget,P03,Wellbeing,REDACTED,07/10/2013,1419.81,
Bath & North East Somerset Council,80265502,YF2,Fees & Charges,P03,Wellbeing,REDACTED,07/10/2013,11.47,
Bath & North East Somerset Council,80265502,YF2,Fees & Charges,P03,Wellbeing,REDACTED,07/10/2013,11.47,
Bath & North East Somerset Council,80265502,YF2,Fees & Charges,P03,Wellbeing,REDACTED,07/10/2013,11.47,
Bath & North East Somerset Council,80265502,YF2,Fees & Charges,P03,Wellbeing,REDACTED,07/10/2013,11.47,
Bath & North East Somerset Council,80265502,YF2,Fees & Charges,P03,Wellbeing,REDACTED,07/10/2013,11.47,
Bath & North East Somerset Council,80265502,YF2,Fees & Charges,P03,Wellbeing,REDACTED,07/10/2013,11.47,
Bath & North East Somerset Council,80265502,YF2,Fees & Charges,P03,Wellbeing,REDACTED,07/10/2013,11.47,
Bath & North East Somerset Council,80265502,YF2,Fees & Charges,P03,Wellbeing,REDACTED,07/10/2013,11.47,
Bath & North East Somerset Council,80265502,YF2,Fees & Charges,P03,Wellbeing,REDACTED,07/10/2013,11.47,
Bath & North East Somerset Council,80265502,YF2,Fees & Charges,P03,Wellbeing,REDACTED,07/10/2013,11.47,
Bath & North East Somerset Council,80265502,YF2,Fees & Charges,P03,Wellbeing,REDACTED,07/10/2013,11.47,
Bath & North East Somerset Council,80265502,YF2,Fees & Charges,P03,Wellbeing,REDACTED,07/10/2013,11.47,
Bath & North East Somerset Council,80265502,YF2,Fees & Charges,P03,Wellbeing,REDACTED,07/10/2013,11.47,
Bath & North East Somerset Council,80265502,YF2,Fees & Charges,P03,Wellbeing,REDACTED,07/10/2013,11.47,
Bath & North East Somerset Council,80265502,YF2,Fees & Charges,P03,Wellbeing,REDACTED,07/10/2013,11.47,
Bath & North East Somerset Council,80265502,YF2,Fees & Charges,P03,Wellbeing,REDACTED,07/10/2013,11.47,
Bath & North East Somerset Council,80265502,YF2,Fees & Charges,P03,Wellbeing,REDACTED,07/10/2013,11.47,
Bath & North East Somerset Council,80265502,YF2,Fees & Charges,P03,Wellbeing,REDACTED,07/10/2013,11.47,
Bath & North East Somerset Council,80265502,YF2,Fees & Charges,P03,Wellbeing,REDACTED,07/10/2013,11.47,
Bath & North East Somerset Council,80265502,YF2,Fees & Charges,P03,Wellbeing,REDACTED,07/10/2013,11.47,
Bath & North East Somerset Council,80265502,YF2,Fees & Charges,P03,Wellbeing,REDACTED,07/10/2013,11.47,
Bath & North East Somerset Council,80265502,YF2,Fees & Charges,P03,Wellbeing,REDACTED,07/10/2013,11.47,
Bath & North East Somerset Council,80265502,YF2,Fees & Charges,P03,Wellbeing,REDACTED,07/10/2013,11.47,
Bath & North East Somerset Council,80265502,YF2,Fees & Charges,P03,Wellbeing,REDACTED,07/10/2013,11.47,
Bath & North East Somerset Council,80265502,YF2,Fees & Charges,P03,Wellbeing,REDACTED,07/10/2013,11.47,
Bath & North East Somerset Council,80265502,LL8,Individualised Budget,P03,Wellbeing,REDACTED,07/10/2013,193.11,
Bath & North East Somerset Council,80265502,LL8,Individualised Budget,P03,Wellbeing,REDACTED,07/10/2013,193.11,
Bath & North East Somerset Council,80265365,LM6,Nursing Care,P03,Wellbeing,DORSET LODGE LTD,07/10/2013,1082,
Bath & North East Somerset Council,80265365,LM6,Nursing Care,P03,Wellbeing,DORSET LODGE LTD,07/10/2013,1082,
Bath & North East Somerset Council,80265494,LL8,Individualised Budget,P03,Wellbeing,REDACTED,07/10/2013,393.27,
Bath & North East Somerset Council,80265494,LL8,Individualised Budget,P03,Wellbeing,REDACTED,07/10/2013,393.27,
Bath & North East Somerset Council,80265427,LL8,Individualised Budget,P03,Wellbeing,REDACTED,07/10/2013,500,
Bath & North East Somerset Council,80265438,LL8,Individualised Budget,P03,Wellbeing,REDACTED,07/10/2013,474.15,
Bath & North East Somerset Council,80265438,LL8,Individualised Budget,P03,Wellbeing,REDACTED,07/10/2013,474.15,
Bath & North East Somerset Council,80265544,LL8,Individualised Budget,P03,Wellbeing,REDACTED,07/10/2013,369.38,
Bath & North East Somerset Council,80265544,LL8,Individualised Budget,P03,Wellbeing,REDACTED,07/10/2013,369.38,
Bath & North East Somerset Council,80265629,LL8,Individualised Budget,P03,Wellbeing,REDACTED,07/10/2013,499.61,
Bath & North East Somerset Council,80265629,LL8,Individualised Budget,P03,Wellbeing,REDACTED,07/10/2013,499.61,
Bath & North East Somerset Council,80265071,LA7,Purchases for Resale,P06,Sustainable Development,MIO JEWELLERY LTD (T/A RODGERS & RODGERS),07/10/2013,433.5,
Bath & North East Somerset Council,10714491,LX4,Parish Sweepers,P05,Neighbourhoods,BATHEASTON PARISH COUNCIL,07/10/2013,453.93,
Bath & North East Somerset Council,10713197,HK1,Highway Maintenance,P01,Transport,M J HARWOOD PLANT HIRE LTD,07/10/2013,470,
Bath & North East Somerset Council,80265350,LM6,Nursing Care,P03,Wellbeing,EUROPEAN CARE (UK) LTD - REDACTED,07/10/2013,557.14,
Bath & North East Somerset Council,80265350,LM6,Nursing Care,P03,Wellbeing,EUROPEAN CARE (UK) LTD - REDACTED,07/10/2013,650,
Bath & North East Somerset Council,80265350,LM6,Nursing Care,P03,Wellbeing,EUROPEAN CARE (UK) LTD - REDACTED,07/10/2013,650,
Bath & North East Somerset Council,80265350,LM6,Nursing Care,P03,Wellbeing,EUROPEAN CARE (UK) LTD - REDACTED,07/10/2013,650,
Bath & North East Somerset Council,80265350,LM6,Nursing Care,P03,Wellbeing,EUROPEAN CARE (UK) LTD - REDACTED,07/10/2013,650,
Bath & North East Somerset Council,80265350,LM6,Nursing Care,P03,Wellbeing,EUROPEAN CARE (UK) LTD - REDACTED,07/10/2013,650,
Bath & North East Somerset Council,80265350,LM6,Nursing Care,P03,Wellbeing,EUROPEAN CARE (UK) LTD - REDACTED,07/10/2013,650,
Bath & North East Somerset Council,80265355,LM6,Nursing Care,P03,Wellbeing,EUROPEAN CARE SW LTD - REDACTED,07/10/2013,552,
Bath & North East Somerset Council,80265355,LM6,Nursing Care,P03,Wellbeing,EUROPEAN CARE SW LTD - REDACTED,07/10/2013,552,
Bath & North East Somerset Council,80265355,LM6,Nursing Care,P03,Wellbeing,EUROPEAN CARE SW LTD - REDACTED,07/10/2013,650,
Bath & North East Somerset Council,80265355,LM6,Nursing Care,P03,Wellbeing,EUROPEAN CARE SW LTD - REDACTED,07/10/2013,650,
Bath & North East Somerset Council,80265355,LM6,Nursing Care,P03,Wellbeing,EUROPEAN CARE SW LTD - REDACTED,07/10/2013,650,
Bath & North East Somerset Council,80265355,LM6,Nursing Care,P03,Wellbeing,EUROPEAN CARE SW LTD - REDACTED,07/10/2013,650,
Bath & North East Somerset Council,80265363,LM6,Nursing Care,P03,Wellbeing,EXTRAFRIEND LTD,07/10/2013,762.75,
Bath & North East Somerset Council,80265363,LM6,Nursing Care,P03,Wellbeing,EXTRAFRIEND LTD,07/10/2013,762.75,
Bath & North East Somerset Council,10713833,HF1,Grounds Maintenance - Contract,P02,"Early Years, Children & Youth",CPS GROUNDS LTD,07/10/2013,489.15,
Bath & North East Somerset Council,80265627,LM3,Residential Care,P03,Wellbeing,FSHC NEWCO 2 LTD: REDACTED,07/10/2013,61.93,
Bath & North East Somerset Council,80265627,LM3,Residential Care,P03,Wellbeing,FSHC NEWCO 2 LTD: REDACTED,07/10/2013,123.86,
Bath & North East Somerset Council,10713196,HK1,Highway Maintenance,P01,Transport,M J HARWOOD PLANT HIRE LTD,07/10/2013,500,
Bath & North East Somerset Council,80265627,LM3,Residential Care,P03,Wellbeing,FSHC NEWCO 2 LTD: REDACTED,07/10/2013,433.5,
Bath & North East Somerset Council,80265627,LM3,Residential Care,P03,Wellbeing,FSHC NEWCO 2 LTD: REDACTED,07/10/2013,433.5,
Bath & North East Somerset Council,80265627,LM3,Residential Care,P03,Wellbeing,FSHC NEWCO 2 LTD: REDACTED,07/10/2013,433.5,
Bath & North East Somerset Council,10714355,3F7,External Fees,P02,"Early Years, Children & Youth",SHEAR DESIGN,07/10/2013,500,
Bath & North East Somerset Council,80265369,LM6,Nursing Care,P03,Wellbeing,GLENSIDE MANOR HEALTHCARE SERVICES LTD,07/10/2013,1401.43,
Bath & North East Somerset Council,80265369,LM6,Nursing Care,P03,Wellbeing,GLENSIDE MANOR HEALTHCARE SERVICES LTD,07/10/2013,1401.43,
Bath & North East Somerset Council,80265369,LM6,Nursing Care,P03,Wellbeing,GLENSIDE MANOR HEALTHCARE SERVICES LTD,07/10/2013,1511.26,
Bath & North East Somerset Council,80265369,LM6,Nursing Care,P03,Wellbeing,GLENSIDE MANOR HEALTHCARE SERVICES LTD,07/10/2013,1511.26,
Bath & North East Somerset Council,80265370,LM6,Nursing Care,P03,Wellbeing,GLENSIDE MANOR HEALTHCARE SERVICES LTD,07/10/2013,1528.55,
Bath & North East Somerset Council,80265370,LM6,Nursing Care,P03,Wellbeing,GLENSIDE MANOR HEALTHCARE SERVICES LTD,07/10/2013,1528.55,
Bath & North East Somerset Council,80265453,LL8,Individualised Budget,P03,Wellbeing,REDACTED,07/10/2013,735,
Bath & North East Somerset Council,80265453,LL8,Individualised Budget,P03,Wellbeing,REDACTED,07/10/2013,735,
Bath & North East Somerset Council,10714354,HK5,PCB Highways Maintenance,P01,Transport,E R HEMMINGS (BUILDING) LTD,07/10/2013,532,
Bath & North East Somerset Council,80265517,LL8,Individualised Budget,P03,Wellbeing,REDACTED,07/10/2013,381.33,
Bath & North East Somerset Council,80265517,LL8,Individualised Budget,P03,Wellbeing,REDACTED,07/10/2013,381.33,
Bath & North East Somerset Council,80265610,LL8,Individualised Budget,P03,Wellbeing,REDACTED,07/10/2013,500,
Bath & North East Somerset Council,80265384,LM6,Nursing Care,P03,Wellbeing,HUNTERS MOORE RESIDENTIAL SERVICES,07/10/2013,1960,
Bath & North East Somerset Council,80265384,LM6,Nursing Care,P03,Wellbeing,HUNTERS MOORE RESIDENTIAL SERVICES,07/10/2013,1960,
Bath & North East Somerset Council,80265446,LL8,Individualised Budget,P03,Wellbeing,ILSA,07/10/2013,573.16,
Bath & North East Somerset Council,80265446,LL8,Individualised Budget,P03,Wellbeing,ILSA,07/10/2013,573.16,
Bath & North East Somerset Council,80265560,LL8,Individualised Budget,P03,Wellbeing,REDACTED,07/10/2013,372.74,
Bath & North East Somerset Council,80265560,LL8,Individualised Budget,P03,Wellbeing,REDACTED,07/10/2013,372.74,
Bath & North East Somerset Council,80265533,LL8,Individualised Budget,P03,Wellbeing,REDACTED,07/10/2013,327.2,
Bath & North East Somerset Council,80265533,LL8,Individualised Budget,P03,Wellbeing,REDACTED,07/10/2013,327.2,
Bath & North East Somerset Council,80265417,LL8,Individualised Budget,P03,Wellbeing,REDACTED,07/10/2013,289.37,
Bath & North East Somerset Council,80265417,LL8,Individualised Budget,P03,Wellbeing,REDACTED,07/10/2013,289.37,
Bath & North East Somerset Council,80265361,LM6,Nursing Care,P03,Wellbeing,LEONARD CHESHIRE FOUNDATION,07/10/2013,1013.81,
Bath & North East Somerset Council,80265361,LM6,Nursing Care,P03,Wellbeing,LEONARD CHESHIRE FOUNDATION,07/10/2013,1013.81,
Bath & North East Somerset Council,80265361,LM6,Nursing Care,P03,Wellbeing,LEONARD CHESHIRE FOUNDATION,07/10/2013,1260.27,
Bath & North East Somerset Council,80265361,LM6,Nursing Care,P03,Wellbeing,LEONARD CHESHIRE FOUNDATION,07/10/2013,1260.27,
Bath & North East Somerset Council,80265361,LM6,Nursing Care,P03,Wellbeing,LEONARD CHESHIRE FOUNDATION,07/10/2013,1321.05,
Bath & North East Somerset Council,80265361,LM6,Nursing Care,P03,Wellbeing,LEONARD CHESHIRE FOUNDATION,07/10/2013,1321.05,
Bath & North East Somerset Council,80265361,LM6,Nursing Care,P03,Wellbeing,LEONARD CHESHIRE FOUNDATION,07/10/2013,1339.61,
Bath & North East Somerset Council,80265361,LM6,Nursing Care,P03,Wellbeing,LEONARD CHESHIRE FOUNDATION,07/10/2013,1339.61,
Bath & North East Somerset Council,80265361,LM6,Nursing Care,P03,Wellbeing,LEONARD CHESHIRE FOUNDATION,07/10/2013,1348.54,
Bath & North East Somerset Council,80265361,LM6,Nursing Care,P03,Wellbeing,LEONARD CHESHIRE FOUNDATION,07/10/2013,1348.54,
Bath & North East Somerset Council,80265374,LM6,Nursing Care,P03,Wellbeing,LIFESTYLE CARE (2005) PLC,07/10/2013,775,
Bath & North East Somerset Council,80265374,LM6,Nursing Care,P03,Wellbeing,LIFESTYLE CARE (2005) PLC,07/10/2013,775,
Bath & North East Somerset Council,80265582,LL8,Individualised Budget,P03,Wellbeing,REDACTED,07/10/2013,297.15,
Bath & North East Somerset Council,80265582,LL8,Individualised Budget,P03,Wellbeing,REDACTED,07/10/2013,297.15,
Bath & North East Somerset Council,80265491,LL8,Individualised Budget,P03,Wellbeing,REDACTED,07/10/2013,268.69,
Bath & North East Somerset Council,80265491,LL8,Individualised Budget,P03,Wellbeing,REDACTED,07/10/2013,268.69,
Bath & North East Somerset Council,80265491,LL8,Individualised Budget,P03,Wellbeing,REDACTED,07/10/2013,2000,
Bath & North East Somerset Council,80265385,LM6,Nursing Care,P03,Wellbeing,MAJESTIC THREE,07/10/2013,464.29,
Bath & North East Somerset Council,80265385,LM6,Nursing Care,P03,Wellbeing,MAJESTIC THREE,07/10/2013,650,
Bath & North East Somerset Council,80265385,LM6,Nursing Care,P03,Wellbeing,MAJESTIC THREE,07/10/2013,650,
Bath & North East Somerset Council,80265385,LM6,Nursing Care,P03,Wellbeing,MAJESTIC THREE,07/10/2013,650,
Bath & North East Somerset Council,80265385,LM6,Nursing Care,P03,Wellbeing,MAJESTIC THREE,07/10/2013,650,
Bath & North East Somerset Council,80265385,LM6,Nursing Care,P03,Wellbeing,MAJESTIC THREE,07/10/2013,650,
Bath & North East Somerset Council,80265385,LM6,Nursing Care,P03,Wellbeing,MAJESTIC THREE,07/10/2013,650,
Bath & North East Somerset Council,80265385,LM6,Nursing Care,P03,Wellbeing,MAJESTIC THREE,07/10/2013,650,
Bath & North East Somerset Council,80265568,LM3,Residential Care,P03,Wellbeing,MANOR COMMUNITY CARE HOME,07/10/2013,428.58,
Bath & North East Somerset Council,80265568,LM3,Residential Care,P03,Wellbeing,MANOR COMMUNITY CARE HOME,07/10/2013,1500.03,
Bath & North East Somerset Council,80265543,LL3,Supported Living,P03,Wellbeing,MAPLES COMMUNITY CARE LTD,07/10/2013,122.64,
Bath & North East Somerset Council,80265543,LL3,Supported Living,P03,Wellbeing,MAPLES COMMUNITY CARE LTD,07/10/2013,122.64,
Bath & North East Somerset Council,80265543,LL3,Supported Living,P03,Wellbeing,MAPLES COMMUNITY CARE LTD,07/10/2013,139.7,
Bath & North East Somerset Council,80265543,LL3,Supported Living,P03,Wellbeing,MAPLES COMMUNITY CARE LTD,07/10/2013,139.7,
Bath & North East Somerset Council,80265543,LL3,Supported Living,P03,Wellbeing,MAPLES COMMUNITY CARE LTD,07/10/2013,649.25,
Bath & North East Somerset Council,80265543,LL3,Supported Living,P03,Wellbeing,MAPLES COMMUNITY CARE LTD,07/10/2013,649.25,
Bath & North East Somerset Council,80265493,LL8,Individualised Budget,P03,Wellbeing,MARGUERITE KATHLEEN RADFORD,07/10/2013,262.64,
Bath & North East Somerset Council,80265493,LL8,Individualised Budget,P03,Wellbeing,MARGUERITE KATHLEEN RADFORD,07/10/2013,262.64,
Bath & North East Somerset Council,80265563,LL8,Individualised Budget,P03,Wellbeing,REDACTED,07/10/2013,344.72,
Bath & North East Somerset Council,80265563,LL8,Individualised Budget,P03,Wellbeing,REDACTED,07/10/2013,344.72,
Bath & North East Somerset Council,80265354,LM6,Nursing Care,P03,Wellbeing,METHODIST HOMES FOR THE AGED,07/10/2013,650,
Bath & North East Somerset Council,80265354,LM6,Nursing Care,P03,Wellbeing,METHODIST HOMES FOR THE AGED,07/10/2013,650,
Bath & North East Somerset Council,80265621,LL8,Individualised Budget,P03,Wellbeing,REDACTED,07/10/2013,305.94,
Bath & North East Somerset Council,80265621,LL8,Individualised Budget,P03,Wellbeing,REDACTED,07/10/2013,305.94,
Bath & North East Somerset Council,80265562,LL8,Individualised Budget,P03,Wellbeing,REDACTED,07/10/2013,702,
Bath & North East Somerset Council,80265562,LL8,Individualised Budget,P03,Wellbeing,REDACTED,07/10/2013,702,
Bath & North East Somerset Council,80265381,LM6,Nursing Care,P03,Wellbeing,MILESTONES TRUST,07/10/2013,1057.46,
Bath & North East Somerset Council,80265381,LM6,Nursing Care,P03,Wellbeing,MILESTONES TRUST,07/10/2013,1057.46,
Bath & North East Somerset Council,80265548,LL8,Individualised Budget,P03,Wellbeing,REDACTED,07/10/2013,60.95,
Bath & North East Somerset Council,80265548,LL8,Individualised Budget,P03,Wellbeing,REDACTED,07/10/2013,60.95,
Bath & North East Somerset Council,80265548,LL8,Individualised Budget,P03,Wellbeing,REDACTED,07/10/2013,60.95,
Bath & North East Somerset Council,80265548,LL8,Individualised Budget,P03,Wellbeing,REDACTED,07/10/2013,60.95,
Bath & North East Somerset Council,80265548,LL8,Individualised Budget,P03,Wellbeing,REDACTED,07/10/2013,60.95,
Bath & North East Somerset Council,80265548,LL8,Individualised Budget,P03,Wellbeing,REDACTED,07/10/2013,60.95,
Bath & North East Somerset Council,80265548,LL8,Individualised Budget,P03,Wellbeing,REDACTED,07/10/2013,60.95,
Bath & North East Somerset Council,80265548,LL8,Individualised Budget,P03,Wellbeing,REDACTED,07/10/2013,60.95,
Bath & North East Somerset Council,80265548,LL8,Individualised Budget,P03,Wellbeing,REDACTED,07/10/2013,439.11,
Bath & North East Somerset Council,80265548,LL8,Individualised Budget,P03,Wellbeing,REDACTED,07/10/2013,439.11,
Bath & North East Somerset Council,80265452,LL8,Individualised Budget,P03,Wellbeing,REDACTED,07/10/2013,260.96,
Bath & North East Somerset Council,80265452,LL8,Individualised Budget,P03,Wellbeing,REDACTED,07/10/2013,260.96,
Bath & North East Somerset Council,80265492,LL8,Individualised Budget,P03,Wellbeing,REDACTED,07/10/2013,489.65,
Bath & North East Somerset Council,80265492,LL8,Individualised Budget,P03,Wellbeing,REDACTED,07/10/2013,489.65,
Bath & North East Somerset Council,80265426,LL8,Individualised Budget,P03,Wellbeing,REDACTED,07/10/2013,461.49,
Bath & North East Somerset Council,80265426,LL8,Individualised Budget,P03,Wellbeing,REDACTED,07/10/2013,461.49,
Bath & North East Somerset Council,80265535,LL8,Individualised Budget,P03,Wellbeing,REDACTED,07/10/2013,325.61,
Bath & North East Somerset Council,80265535,LL8,Individualised Budget,P03,Wellbeing,REDACTED,07/10/2013,325.61,
Bath & North East Somerset Council,80265428,LL8,Individualised Budget,P03,Wellbeing,REDACTED,07/10/2013,259.61,
Bath & North East Somerset Council,80265428,LL8,Individualised Budget,P03,Wellbeing,REDACTED,07/10/2013,259.61,
Bath & North East Somerset Council,80265558,LL8,Individualised Budget,P03,Wellbeing,REDACTED,07/10/2013,396.4,
Bath & North East Somerset Council,80265558,LL8,Individualised Budget,P03,Wellbeing,REDACTED,07/10/2013,396.4,
Bath & North East Somerset Council,80265547,LL8,Individualised Budget,P03,Wellbeing,REDACTED,07/10/2013,41.77,
Bath & North East Somerset Council,80265547,LL8,Individualised Budget,P03,Wellbeing,REDACTED,07/10/2013,41.77,
Bath & North East Somerset Council,80265547,LL8,Individualised Budget,P03,Wellbeing,REDACTED,07/10/2013,41.77,
Bath & North East Somerset Council,80265547,LL8,Individualised Budget,P03,Wellbeing,REDACTED,07/10/2013,41.77,
Bath & North East Somerset Council,80265547,LL8,Individualised Budget,P03,Wellbeing,REDACTED,07/10/2013,41.77,
Bath & North East Somerset Council,80265547,LL8,Individualised Budget,P03,Wellbeing,REDACTED,07/10/2013,41.77,
Bath & North East Somerset Council,80265547,LL8,Individualised Budget,P03,Wellbeing,REDACTED,07/10/2013,41.77,
Bath & North East Somerset Council,80265547,LL8,Individualised Budget,P03,Wellbeing,REDACTED,07/10/2013,41.77,
Bath & North East Somerset Council,80265547,LL8,Individualised Budget,P03,Wellbeing,REDACTED,07/10/2013,41.77,
Bath & North East Somerset Council,80265547,LL8,Individualised Budget,P03,Wellbeing,REDACTED,07/10/2013,41.77,
Bath & North East Somerset Council,80265547,LL8,Individualised Budget,P03,Wellbeing,REDACTED,07/10/2013,41.77,
Bath & North East Somerset Council,80265547,LL8,Individualised Budget,P03,Wellbeing,REDACTED,07/10/2013,41.77,
Bath & North East Somerset Council,80265547,LL8,Individualised Budget,P03,Wellbeing,REDACTED,07/10/2013,41.77,
Bath & North East Somerset Council,80265547,LL8,Individualised Budget,P03,Wellbeing,REDACTED,07/10/2013,41.77,
Bath & North East Somerset Council,80265547,LL8,Individualised Budget,P03,Wellbeing,REDACTED,07/10/2013,41.77,
Bath & North East Somerset Council,80265547,LL8,Individualised Budget,P03,Wellbeing,REDACTED,07/10/2013,41.77,
Bath & North East Somerset Council,80265547,LL8,Individualised Budget,P03,Wellbeing,REDACTED,07/10/2013,41.77,
Bath & North East Somerset Council,80265547,LL8,Individualised Budget,P03,Wellbeing,REDACTED,07/10/2013,41.77,
Bath & North East Somerset Council,80265547,LL8,Individualised Budget,P03,Wellbeing,REDACTED,07/10/2013,41.77,
Bath & North East Somerset Council,80265444,LL8,Individualised Budget,P03,Wellbeing,REDACTED,07/10/2013,310.35,
Bath & North East Somerset Council,80265444,LL8,Individualised Budget,P03,Wellbeing,REDACTED,07/10/2013,310.35,
Bath & North East Somerset Council,80265588,LL8,Individualised Budget,P03,Wellbeing,REDACTED,07/10/2013,411.4,
Bath & North East Somerset Council,80265588,LL8,Individualised Budget,P03,Wellbeing,REDACTED,07/10/2013,411.4,
Bath & North East Somerset Council,80265476,LL8,Individualised Budget,P03,Wellbeing,REDACTED,07/10/2013,298.46,
Bath & North East Somerset Council,80265476,LL8,Individualised Budget,P03,Wellbeing,REDACTED,07/10/2013,298.46,
Bath & North East Somerset Council,80265587,LL8,Individualised Budget,P03,Wellbeing,REDACTED,07/10/2013,380,
Bath & North East Somerset Council,80265587,LL8,Individualised Budget,P03,Wellbeing,REDACTED,07/10/2013,380,
Bath & North East Somerset Council,80265409,LL8,Individualised Budget,P03,Wellbeing,REDACTED,07/10/2013,338.56,
Bath & North East Somerset Council,80265409,LL8,Individualised Budget,P03,Wellbeing,REDACTED,07/10/2013,338.56,
Bath & North East Somerset Council,80265639,LL4,Direct Payments,P02,"Early Years, Children & Youth",REDACTED,07/10/2013,274.73,
Bath & North East Somerset Council,80265639,LL4,Direct Payments,P02,"Early Years, Children & Youth",REDACTED,07/10/2013,274.73,
Bath & North East Somerset Council,80265500,LL8,Individualised Budget,P03,Wellbeing,REDACTED,07/10/2013,492.41,
Bath & North East Somerset Council,80265500,LL8,Individualised Budget,P03,Wellbeing,REDACTED,07/10/2013,492.41,
Bath & North East Somerset Council,80265585,LL8,Individualised Budget,P03,Wellbeing,REDACTED,07/10/2013,499.87,
Bath & North East Somerset Council,80265585,LL8,Individualised Budget,P03,Wellbeing,REDACTED,07/10/2013,499.87,
Bath & North East Somerset Council,80265431,LL8,Individualised Budget,P03,Wellbeing,REDACTED,07/10/2013,269.73,
Bath & North East Somerset Council,80265431,LL8,Individualised Budget,P03,Wellbeing,REDACTED,07/10/2013,269.73,
Bath & North East Somerset Council,80265407,LL8,Individualised Budget,P03,Wellbeing,REDACTED,07/10/2013,270.98,
Bath & North East Somerset Council,80265407,LL8,Individualised Budget,P03,Wellbeing,REDACTED,07/10/2013,270.98,
Bath & North East Somerset Council,80265407,LL8,Individualised Budget,P03,Wellbeing,REDACTED,07/10/2013,270.98,
Bath & North East Somerset Council,80265407,LL8,Individualised Budget,P03,Wellbeing,REDACTED,07/10/2013,270.98,
Bath & North East Somerset Council,80265407,LL8,Individualised Budget,P03,Wellbeing,REDACTED,07/10/2013,270.98,
Bath & North East Somerset Council,80265407,LL8,Individualised Budget,P03,Wellbeing,REDACTED,07/10/2013,270.98,
Bath & North East Somerset Council,80265407,LL8,Individualised Budget,P03,Wellbeing,REDACTED,07/10/2013,270.98,
Bath & North East Somerset Council,80265407,LL8,Individualised Budget,P03,Wellbeing,REDACTED,07/10/2013,270.98,
Bath & North East Somerset Council,80265407,LL8,Individualised Budget,P03,Wellbeing,REDACTED,07/10/2013,270.98,
Bath & North East Somerset Council,80265407,LL8,Individualised Budget,P03,Wellbeing,REDACTED,07/10/2013,270.98,
Bath & North East Somerset Council,80265407,LL8,Individualised Budget,P03,Wellbeing,REDACTED,07/10/2013,270.98,
Bath & North East Somerset Council,80265407,LL8,Individualised Budget,P03,Wellbeing,REDACTED,07/10/2013,978.62,
Bath & North East Somerset Council,80265407,LL8,Individualised Budget,P03,Wellbeing,REDACTED,07/10/2013,978.62,
Bath & North East Somerset Council,80265513,LL8,Individualised Budget,P03,Wellbeing,REDACTED,07/10/2013,961.34,
Bath & North East Somerset Council,80265513,LL8,Individualised Budget,P03,Wellbeing,REDACTED,07/10/2013,961.34,
Bath & North East Somerset Council,10713764,LW7,Intestate Costs,P05,Neighbourhoods,DIGNITY,07/10/2013,590,
Bath & North East Somerset Council,10714500,LH5,Marketing,P06,Sustainable Development,THE ART FUND,07/10/2013,595,
Bath & North East Somerset Council,10714394,LJ4,Contracts,P05,Neighbourhoods,BATHEASTON PARISH COUNCIL,07/10/2013,596.86,
Bath & North East Somerset Council,80265414,LL8,Individualised Budget,P03,Wellbeing,REDACTED,07/10/2013,401.1,
Bath & North East Somerset Council,80265414,LL8,Individualised Budget,P03,Wellbeing,REDACTED,07/10/2013,401.1,
Bath & North East Somerset Council,80265415,LL8,Individualised Budget,P03,Wellbeing,REDACTED,07/10/2013,310.51,
Bath & North East Somerset Council,80265415,LL8,Individualised Budget,P03,Wellbeing,REDACTED,07/10/2013,310.51,
Bath & North East Somerset Council,80265606,LL8,Individualised Budget,P03,Wellbeing,REDACTED,07/10/2013,2205,
Bath & North East Somerset Council,80265435,LL8,Individualised Budget,P03,Wellbeing,REDACTED,07/10/2013,509.16,
Bath & North East Somerset Council,80265435,LL8,Individualised Budget,P03,Wellbeing,REDACTED,07/10/2013,509.16,
Bath & North East Somerset Council,80265616,LL8,Individualised Budget,P03,Wellbeing,REDACTED,07/10/2013,424.61,
Bath & North East Somerset Council,80265616,LL8,Individualised Budget,P03,Wellbeing,REDACTED,07/10/2013,424.61,
Bath & North East Somerset Council,80265575,LL8,Individualised Budget,P03,Wellbeing,REDACTED,07/10/2013,255.48,
Bath & North East Somerset Council,80265575,LL8,Individualised Budget,P03,Wellbeing,REDACTED,07/10/2013,255.48,
Bath & North East Somerset Council,80265557,LL8,Individualised Budget,P03,Wellbeing,REDACTED,07/10/2013,858.65,
Bath & North East Somerset Council,80265557,LL8,Individualised Budget,P03,Wellbeing,REDACTED,07/10/2013,858.65,
Bath & North East Somerset Council,80265597,LL8,Individualised Budget,P03,Wellbeing,REDACTED,07/10/2013,499.51,
Bath & North East Somerset Council,80265597,LL8,Individualised Budget,P03,Wellbeing,REDACTED,07/10/2013,499.51,
Bath & North East Somerset Council,80265614,LL8,Individualised Budget,P03,Wellbeing,REDACTED,07/10/2013,467.54,
Bath & North East Somerset Council,80265614,LL8,Individualised Budget,P03,Wellbeing,REDACTED,07/10/2013,467.54,
Bath & North East Somerset Council,80265437,LL8,Individualised Budget,P03,Wellbeing,REDACTED,07/10/2013,446.72,
Bath & North East Somerset Council,80265437,LL8,Individualised Budget,P03,Wellbeing,REDACTED,07/10/2013,446.72,
Bath & North East Somerset Council,80265590,LL8,Individualised Budget,P03,Wellbeing,REDACTED,07/10/2013,423.92,
Bath & North East Somerset Council,80265590,LL8,Individualised Budget,P03,Wellbeing,REDACTED,07/10/2013,423.92,
Bath & North East Somerset Council,80265506,LL8,Individualised Budget,P03,Wellbeing,REDACTED,07/10/2013,607.13,
Bath & North East Somerset Council,80265506,LL8,Individualised Budget,P03,Wellbeing,REDACTED,07/10/2013,607.13,
Bath & North East Somerset Council,80265469,LL8,Individualised Budget,P03,Wellbeing,REDACTED,07/10/2013,367.56,
Bath & North East Somerset Council,80265469,LL8,Individualised Budget,P03,Wellbeing,REDACTED,07/10/2013,367.56,
Bath & North East Somerset Council,80265418,LL8,Individualised Budget,P03,Wellbeing,REDACTED,07/10/2013,1120,
Bath & North East Somerset Council,80265418,LL8,Individualised Budget,P03,Wellbeing,REDACTED,07/10/2013,1120,
Bath & North East Somerset Council,80265553,LL8,Individualised Budget,P03,Wellbeing,REDACTED,07/10/2013,359.93,
Bath & North East Somerset Council,80265553,LL8,Individualised Budget,P03,Wellbeing,REDACTED,07/10/2013,359.93,
Bath & North East Somerset Council,80265530,LL8,Individualised Budget,P03,Wellbeing,REDACTED,07/10/2013,707,
Bath & North East Somerset Council,80265530,LL8,Individualised Budget,P03,Wellbeing,REDACTED,07/10/2013,707,
Bath & North East Somerset Council,80265454,LL8,Individualised Budget,P03,Wellbeing,REDACTED,07/10/2013,557.54,
Bath & North East Somerset Council,80265454,LL8,Individualised Budget,P03,Wellbeing,REDACTED,07/10/2013,557.54,
Bath & North East Somerset Council,80265451,LL8,Individualised Budget,P03,Wellbeing,REDACTED,07/10/2013,1326.47,
Bath & North East Somerset Council,80265451,LL8,Individualised Budget,P03,Wellbeing,REDACTED,07/10/2013,1326.47,
Bath & North East Somerset Council,80265451,LL8,Individualised Budget,P03,Wellbeing,REDACTED,07/10/2013,1333.09,
Bath & North East Somerset Council,80265451,LL8,Individualised Budget,P03,Wellbeing,REDACTED,07/10/2013,1333.09,
Bath & North East Somerset Council,80265532,LL8,Individualised Budget,P03,Wellbeing,REDACTED,07/10/2013,214.41,
Bath & North East Somerset Council,80265532,LL8,Individualised Budget,P03,Wellbeing,REDACTED,07/10/2013,214.41,
Bath & North East Somerset Council,80265532,LL8,Individualised Budget,P03,Wellbeing,REDACTED,07/10/2013,214.41,
Bath & North East Somerset Council,80265532,LL8,Individualised Budget,P03,Wellbeing,REDACTED,07/10/2013,214.41,
Bath & North East Somerset Council,80265532,LL8,Individualised Budget,P03,Wellbeing,REDACTED,07/10/2013,214.41,
Bath & North East Somerset Council,80265532,LL8,Individualised Budget,P03,Wellbeing,REDACTED,07/10/2013,214.41,
Bath & North East Somerset Council,80265532,LL8,Individualised Budget,P03,Wellbeing,REDACTED,07/10/2013,214.41,
Bath & North East Somerset Council,80265532,LL8,Individualised Budget,P03,Wellbeing,REDACTED,07/10/2013,327.6,
Bath & North East Somerset Council,80265532,LL8,Individualised Budget,P03,Wellbeing,REDACTED,07/10/2013,327.6,
Bath & North East Somerset Council,80265654,LL4,Direct Payments,P02,"Early Years, Children & Youth",REDACTED,07/10/2013,269.98,
Bath & North East Somerset Council,80265654,LL4,Direct Payments,P02,"Early Years, Children & Youth",REDACTED,07/10/2013,269.98,
Bath & North East Somerset Council,80265687,LL4,Direct Payments,P03,Wellbeing,REDACTED,07/10/2013,595.54,
Bath & North East Somerset Council,80265687,LL4,Direct Payments,P03,Wellbeing,REDACTED,07/10/2013,595.54,
Bath & North East Somerset Council,80265062,LA7,Purchases for Resale,P06,Sustainable Development,FOREST PRODUCTS (UK) LTD,07/10/2013,612,
Bath & North East Somerset Council,80265520,LL8,Individualised Budget,P03,Wellbeing,REDACTED,07/10/2013,408.98,
Bath & North East Somerset Council,80265520,LL8,Individualised Budget,P03,Wellbeing,REDACTED,07/10/2013,408.98,
Bath & North East Somerset Council,80265564,LL8,Individualised Budget,P03,Wellbeing,REDACTED,07/10/2013,500,
Bath & North East Somerset Council,80265507,LL8,Individualised Budget,P03,Wellbeing,REDACTED,07/10/2013,425,
Bath & North East Somerset Council,80265507,LL8,Individualised Budget,P03,Wellbeing,REDACTED,07/10/2013,425,
Bath & North East Somerset Council,80265559,LL8,Individualised Budget,P03,Wellbeing,REDACTED,07/10/2013,618.88,
Bath & North East Somerset Council,80265559,LL8,Individualised Budget,P03,Wellbeing,REDACTED,07/10/2013,618.88,
Bath & North East Somerset Council,80265424,LL8,Individualised Budget,P03,Wellbeing,REDACTED,07/10/2013,2335.53,
Bath & North East Somerset Council,80265424,LL8,Individualised Budget,P03,Wellbeing,REDACTED,07/10/2013,2335.53,
Bath & North East Somerset Council,80265448,LL8,Individualised Budget,P03,Wellbeing,REDACTED,07/10/2013,500.86,
Bath & North East Somerset Council,80265448,LL8,Individualised Budget,P03,Wellbeing,REDACTED,07/10/2013,500.86,
Bath & North East Somerset Council,80265569,LL8,Individualised Budget,P03,Wellbeing,REDACTED,07/10/2013,500,
Bath & North East Somerset Council,80265458,LL8,Individualised Budget,P03,Wellbeing,REDACTED,07/10/2013,1235.48,
Bath & North East Somerset Council,80265458,LL8,Individualised Budget,P03,Wellbeing,REDACTED,07/10/2013,1235.48,
Bath & North East Somerset Council,80265624,LL8,Individualised Budget,P03,Wellbeing,REDACTED,07/10/2013,5.75,
Bath & North East Somerset Council,80265624,LL8,Individualised Budget,P03,Wellbeing,REDACTED,07/10/2013,5.75,
Bath & North East Somerset Council,80265624,LL8,Individualised Budget,P03,Wellbeing,REDACTED,07/10/2013,5.75,
Bath & North East Somerset Council,80265624,LL8,Individualised Budget,P03,Wellbeing,REDACTED,07/10/2013,5.75,
Bath & North East Somerset Council,80265624,LL8,Individualised Budget,P03,Wellbeing,REDACTED,07/10/2013,5.75,
Bath & North East Somerset Council,80265624,LL8,Individualised Budget,P03,Wellbeing,REDACTED,07/10/2013,5.75,
Bath & North East Somerset Council,80265624,LL8,Individualised Budget,P03,Wellbeing,REDACTED,07/10/2013,5.75,
Bath & North East Somerset Council,80265624,LL8,Individualised Budget,P03,Wellbeing,REDACTED,07/10/2013,5.75,
Bath & North East Somerset Council,80265624,LL8,Individualised Budget,P03,Wellbeing,REDACTED,07/10/2013,5.75,
Bath & North East Somerset Council,80265624,LL8,Individualised Budget,P03,Wellbeing,REDACTED,07/10/2013,5.75,
Bath & North East Somerset Council,80265624,LL8,Individualised Budget,P03,Wellbeing,REDACTED,07/10/2013,5.75,
Bath & North East Somerset Council,80265624,LL8,Individualised Budget,P03,Wellbeing,REDACTED,07/10/2013,5.75,
Bath & North East Somerset Council,80265624,LL8,Individualised Budget,P03,Wellbeing,REDACTED,07/10/2013,5.75,
Bath & North East Somerset Council,80265624,LL8,Individualised Budget,P03,Wellbeing,REDACTED,07/10/2013,5.75,
Bath & North East Somerset Council,80265624,LL8,Individualised Budget,P03,Wellbeing,REDACTED,07/10/2013,5.75,
Bath & North East Somerset Council,80265624,LL8,Individualised Budget,P03,Wellbeing,REDACTED,07/10/2013,5.75,
Bath & North East Somerset Council,80265624,LL8,Individualised Budget,P03,Wellbeing,REDACTED,07/10/2013,5.75,
Bath & North East Somerset Council,80265624,LL8,Individualised Budget,P03,Wellbeing,REDACTED,07/10/2013,5.75,
Bath & North East Somerset Council,80265624,LL8,Individualised Budget,P03,Wellbeing,REDACTED,07/10/2013,207.78,
Bath & North East Somerset Council,80265624,LL8,Individualised Budget,P03,Wellbeing,REDACTED,07/10/2013,207.78,
Bath & North East Somerset Council,80265470,LL8,Individualised Budget,P03,Wellbeing,REDACTED,07/10/2013,1000,
Bath & North East Somerset Council,80265470,LL8,Individualised Budget,P03,Wellbeing,REDACTED,07/10/2013,1000,
Bath & North East Somerset Council,80265413,LL8,Individualised Budget,P03,Wellbeing,REDACTED,07/10/2013,606.01,
Bath & North East Somerset Council,80265413,LL8,Individualised Budget,P03,Wellbeing,REDACTED,07/10/2013,606.01,
Bath & North East Somerset Council,80265433,LL8,Individualised Budget,P03,Wellbeing,REDACTED,07/10/2013,391.06,
Bath & North East Somerset Council,80265433,LL8,Individualised Budget,P03,Wellbeing,REDACTED,07/10/2013,391.06,
Bath & North East Somerset Council,80265348,LM6,Nursing Care,P03,Wellbeing,REDACTED,07/10/2013,650,
Bath & North East Somerset Council,80265348,LM6,Nursing Care,P03,Wellbeing,REDACTED,07/10/2013,650,
Bath & North East Somerset Council,80265348,LM6,Nursing Care,P03,Wellbeing,REDACTED,07/10/2013,650,
Bath & North East Somerset Council,80265348,LM6,Nursing Care,P03,Wellbeing,REDACTED,07/10/2013,650,
Bath & North East Somerset Council,80265399,LL3,Supported Living,P03,Wellbeing,OPTIONS FOR LIVING LTD,07/10/2013,58.08,
Bath & North East Somerset Council,80265399,LL3,Supported Living,P03,Wellbeing,OPTIONS FOR LIVING LTD,07/10/2013,58.08,
Bath & North East Somerset Council,80265399,LL3,Supported Living,P03,Wellbeing,OPTIONS FOR LIVING LTD,07/10/2013,116.16,
Bath & North East Somerset Council,80265399,LL3,Supported Living,P03,Wellbeing,OPTIONS FOR LIVING LTD,07/10/2013,116.16,
Bath & North East Somerset Council,80265399,LL3,Supported Living,P03,Wellbeing,OPTIONS FOR LIVING LTD,07/10/2013,116.16,
Bath & North East Somerset Council,80265399,LL3,Supported Living,P03,Wellbeing,OPTIONS FOR LIVING LTD,07/10/2013,116.16,
Bath & North East Somerset Council,80265399,LL3,Supported Living,P03,Wellbeing,OPTIONS FOR LIVING LTD,07/10/2013,170.89,
Bath & North East Somerset Council,80265399,LL3,Supported Living,P03,Wellbeing,OPTIONS FOR LIVING LTD,07/10/2013,170.89,
Bath & North East Somerset Council,80265399,LL3,Supported Living,P03,Wellbeing,OPTIONS FOR LIVING LTD,07/10/2013,174.24,
Bath & North East Somerset Council,80265399,LL3,Supported Living,P03,Wellbeing,OPTIONS FOR LIVING LTD,07/10/2013,174.24,
Bath & North East Somerset Council,80265399,LL3,Supported Living,P03,Wellbeing,OPTIONS FOR LIVING LTD,07/10/2013,174.24,
Bath & North East Somerset Council,80265399,LL3,Supported Living,P03,Wellbeing,OPTIONS FOR LIVING LTD,07/10/2013,174.24,
Bath & North East Somerset Council,80265399,LL3,Supported Living,P03,Wellbeing,OPTIONS FOR LIVING LTD,07/10/2013,232.32,
Bath & North East Somerset Council,80265399,LL3,Supported Living,P03,Wellbeing,OPTIONS FOR LIVING LTD,07/10/2013,232.32,
Bath & North East Somerset Council,80265399,LL3,Supported Living,P03,Wellbeing,OPTIONS FOR LIVING LTD,07/10/2013,232.32,
Bath & North East Somerset Council,80265399,LL3,Supported Living,P03,Wellbeing,OPTIONS FOR LIVING LTD,07/10/2013,232.32,
Bath & North East Somerset Council,80265399,LL3,Supported Living,P03,Wellbeing,OPTIONS FOR LIVING LTD,07/10/2013,232.32,
Bath & North East Somerset Council,80265399,LL3,Supported Living,P03,Wellbeing,OPTIONS FOR LIVING LTD,07/10/2013,232.32,
Bath & North East Somerset Council,80265399,LL3,Supported Living,P03,Wellbeing,OPTIONS FOR LIVING LTD,07/10/2013,271.04,
Bath & North East Somerset Council,80265399,LL3,Supported Living,P03,Wellbeing,OPTIONS FOR LIVING LTD,07/10/2013,271.04,
Bath & North East Somerset Council,80265399,LL3,Supported Living,P03,Wellbeing,OPTIONS FOR LIVING LTD,07/10/2013,290.4,
Bath & North East Somerset Council,80265399,LL3,Supported Living,P03,Wellbeing,OPTIONS FOR LIVING LTD,07/10/2013,290.4,
Bath & North East Somerset Council,80265399,LL3,Supported Living,P03,Wellbeing,OPTIONS FOR LIVING LTD,07/10/2013,290.4,
Bath & North East Somerset Council,80265399,LL3,Supported Living,P03,Wellbeing,OPTIONS FOR LIVING LTD,07/10/2013,290.4,
Bath & North East Somerset Council,80265399,LL3,Supported Living,P03,Wellbeing,OPTIONS FOR LIVING LTD,07/10/2013,546,
Bath & North East Somerset Council,80265399,LL3,Supported Living,P03,Wellbeing,OPTIONS FOR LIVING LTD,07/10/2013,546,
Bath & North East Somerset Council,80265399,LL3,Supported Living,P03,Wellbeing,OPTIONS FOR LIVING LTD,07/10/2013,615,
Bath & North East Somerset Council,80265399,LL3,Supported Living,P03,Wellbeing,OPTIONS FOR LIVING LTD,07/10/2013,615,
Bath & North East Somerset Council,80265399,LL3,Supported Living,P03,Wellbeing,OPTIONS FOR LIVING LTD,07/10/2013,615,
Bath & North East Somerset Council,80265399,LL3,Supported Living,P03,Wellbeing,OPTIONS FOR LIVING LTD,07/10/2013,615,
Bath & North East Somerset Council,80265399,LL3,Supported Living,P03,Wellbeing,OPTIONS FOR LIVING LTD,07/10/2013,753,
Bath & North East Somerset Council,80265399,LL3,Supported Living,P03,Wellbeing,OPTIONS FOR LIVING LTD,07/10/2013,753,
Bath & North East Somerset Council,80265399,LL3,Supported Living,P03,Wellbeing,OPTIONS FOR LIVING LTD,07/10/2013,753,
Bath & North East Somerset Council,80265399,LL3,Supported Living,P03,Wellbeing,OPTIONS FOR LIVING LTD,07/10/2013,753,
Bath & North East Somerset Council,80265379,LM6,Nursing Care,P03,Wellbeing,REDACTED,07/10/2013,787,
Bath & North East Somerset Council,80265379,LM6,Nursing Care,P03,Wellbeing,REDACTED,07/10/2013,787,
Bath & North East Somerset Council,80265379,LM6,Nursing Care,P03,Wellbeing,REDACTED,07/10/2013,1015,
Bath & North East Somerset Council,80265379,LM6,Nursing Care,P03,Wellbeing,REDACTED,07/10/2013,1015,
Bath & North East Somerset Council,10714510,LX4,Parish Sweepers,P05,Neighbourhoods,PAULTON PARISH COUNCIL,07/10/2013,666.33,
Bath & North East Somerset Council,10712858,EA1,Training,P05,Neighbourhoods,WTTL,07/10/2013,670,
Bath & North East Somerset Council,10712859,EA1,Training,P05,Neighbourhoods,WTTL,07/10/2013,670,
Bath & North East Somerset Council,80265062,LA7,Purchases for Resale,P06,Sustainable Development,FOREST PRODUCTS (UK) LTD,07/10/2013,673,
Bath & North East Somerset Council,80265390,LM6,Nursing Care,P03,Wellbeing,PARK STREET HOME,07/10/2013,950,
Bath & North East Somerset Council,80265390,LM6,Nursing Care,P03,Wellbeing,PARK STREET HOME,07/10/2013,950,
Bath & North East Somerset Council,80265468,LL8,Individualised Budget,P03,Wellbeing,PHOENIX (SW) LTD,07/10/2013,15.29,
Bath & North East Somerset Council,80265468,YF2,Fees & Charges,P03,Wellbeing,PHOENIX (SW) LTD,07/10/2013,18.56,
Bath & North East Somerset Council,80265468,YF2,Fees & Charges,P03,Wellbeing,PHOENIX (SW) LTD,07/10/2013,18.56,
Bath & North East Somerset Council,10714496,LK6,Photography/Artworks/Graphics,P06,Sustainable Development,ART WORKS,07/10/2013,680,
Bath & North East Somerset Council,80265468,YF2,Fees & Charges,P03,Wellbeing,PHOENIX (SW) LTD,07/10/2013,18.56,
Bath & North East Somerset Council,80265468,YF2,Fees & Charges,P03,Wellbeing,PHOENIX (SW) LTD,07/10/2013,18.56,
Bath & North East Somerset Council,80265468,YF2,Fees & Charges,P03,Wellbeing,PHOENIX (SW) LTD,07/10/2013,18.56,
Bath & North East Somerset Council,80265468,YF2,Fees & Charges,P03,Wellbeing,PHOENIX (SW) LTD,07/10/2013,18.56,
Bath & North East Somerset Council,80265468,YF2,Fees & Charges,P03,Wellbeing,PHOENIX (SW) LTD,07/10/2013,18.56,
Bath & North East Somerset Council,80265468,YF2,Fees & Charges,P03,Wellbeing,PHOENIX (SW) LTD,07/10/2013,18.56,
Bath & North East Somerset Council,80265468,YF2,Fees & Charges,P03,Wellbeing,PHOENIX (SW) LTD,07/10/2013,18.56,
Bath & North East Somerset Council,80265468,YF2,Fees & Charges,P03,Wellbeing,PHOENIX (SW) LTD,07/10/2013,18.56,
Bath & North East Somerset Council,80265468,YF2,Fees & Charges,P03,Wellbeing,PHOENIX (SW) LTD,07/10/2013,18.56,
Bath & North East Somerset Council,80265468,YF2,Fees & Charges,P03,Wellbeing,PHOENIX (SW) LTD,07/10/2013,18.56,
Bath & North East Somerset Council,80265468,YF2,Fees & Charges,P03,Wellbeing,PHOENIX (SW) LTD,07/10/2013,18.56,
Bath & North East Somerset Council,80265468,YF2,Fees & Charges,P03,Wellbeing,PHOENIX (SW) LTD,07/10/2013,18.56,
Bath & North East Somerset Council,80265468,YF2,Fees & Charges,P03,Wellbeing,PHOENIX (SW) LTD,07/10/2013,18.56,
Bath & North East Somerset Council,80265468,YF2,Fees & Charges,P03,Wellbeing,PHOENIX (SW) LTD,07/10/2013,18.56,
Bath & North East Somerset Council,80265468,YF2,Fees & Charges,P03,Wellbeing,PHOENIX (SW) LTD,07/10/2013,18.56,
Bath & North East Somerset Council,80265468,YF2,Fees & Charges,P03,Wellbeing,PHOENIX (SW) LTD,07/10/2013,18.56,
Bath & North East Somerset Council,80265468,YF2,Fees & Charges,P03,Wellbeing,PHOENIX (SW) LTD,07/10/2013,18.56,
Bath & North East Somerset Council,80265468,YF2,Fees & Charges,P03,Wellbeing,PHOENIX (SW) LTD,07/10/2013,18.56,
Bath & North East Somerset Council,80265468,YF2,Fees & Charges,P03,Wellbeing,PHOENIX (SW) LTD,07/10/2013,18.56,
Bath & North East Somerset Council,80265468,YF2,Fees & Charges,P03,Wellbeing,PHOENIX (SW) LTD,07/10/2013,18.56,
Bath & North East Somerset Council,80265468,YF2,Fees & Charges,P03,Wellbeing,PHOENIX (SW) LTD,07/10/2013,18.56,
Bath & North East Somerset Council,80265468,YF2,Fees & Charges,P03,Wellbeing,PHOENIX (SW) LTD,07/10/2013,18.56,
Bath & North East Somerset Council,80265468,YF2,Fees & Charges,P03,Wellbeing,PHOENIX (SW) LTD,07/10/2013,18.56,
Bath & North East Somerset Council,80265468,LL8,Individualised Budget,P03,Wellbeing,PHOENIX (SW) LTD,07/10/2013,26.75,
Bath & North East Somerset Council,80265468,LL8,Individualised Budget,P03,Wellbeing,PHOENIX (SW) LTD,07/10/2013,26.75,
Bath & North East Somerset Council,80265468,LL8,Individualised Budget,P03,Wellbeing,PHOENIX (SW) LTD,07/10/2013,26.75,
Bath & North East Somerset Council,80265468,LL8,Individualised Budget,P03,Wellbeing,PHOENIX (SW) LTD,07/10/2013,26.75,
Bath & North East Somerset Council,80265468,LL8,Individualised Budget,P03,Wellbeing,PHOENIX (SW) LTD,07/10/2013,26.75,
Bath & North East Somerset Council,80265468,LL8,Individualised Budget,P03,Wellbeing,PHOENIX (SW) LTD,07/10/2013,26.75,
Bath & North East Somerset Council,80265468,LL8,Individualised Budget,P03,Wellbeing,PHOENIX (SW) LTD,07/10/2013,26.75,
Bath & North East Somerset Council,80265468,LL8,Individualised Budget,P03,Wellbeing,PHOENIX (SW) LTD,07/10/2013,26.75,
Bath & North East Somerset Council,80265468,LL8,Individualised Budget,P03,Wellbeing,PHOENIX (SW) LTD,07/10/2013,26.75,
Bath & North East Somerset Council,80265468,LL8,Individualised Budget,P03,Wellbeing,PHOENIX (SW) LTD,07/10/2013,26.75,
Bath & North East Somerset Council,80265468,LL8,Individualised Budget,P03,Wellbeing,PHOENIX (SW) LTD,07/10/2013,26.75,
Bath & North East Somerset Council,80265468,LL8,Individualised Budget,P03,Wellbeing,PHOENIX (SW) LTD,07/10/2013,26.75,
Bath & North East Somerset Council,80265468,LL8,Individualised Budget,P03,Wellbeing,PHOENIX (SW) LTD,07/10/2013,26.75,
Bath & North East Somerset Council,80265468,LL8,Individualised Budget,P03,Wellbeing,PHOENIX (SW) LTD,07/10/2013,26.75,
Bath & North East Somerset Council,80265468,LL8,Individualised Budget,P03,Wellbeing,PHOENIX (SW) LTD,07/10/2013,26.75,
Bath & North East Somerset Council,80265468,LL8,Individualised Budget,P03,Wellbeing,PHOENIX (SW) LTD,07/10/2013,66.3,
Bath & North East Somerset Council,80265468,LL8,Individualised Budget,P03,Wellbeing,PHOENIX (SW) LTD,07/10/2013,66.3,
Bath & North East Somerset Council,80265070,LA7,Purchases for Resale,P06,Sustainable Development,TIMOTHY RICHARDS ARCHITECTURAL FINE ARTS COMM LTD,07/10/2013,706,
Bath & North East Somerset Council,80265468,LL8,Individualised Budget,P03,Wellbeing,PHOENIX (SW) LTD,07/10/2013,73.63,
Bath & North East Somerset Council,80265468,LL8,Individualised Budget,P03,Wellbeing,PHOENIX (SW) LTD,07/10/2013,73.63,
Bath & North East Somerset Council,80265468,LL8,Individualised Budget,P03,Wellbeing,PHOENIX (SW) LTD,07/10/2013,74.84,
Bath & North East Somerset Council,80265468,LL8,Individualised Budget,P03,Wellbeing,PHOENIX (SW) LTD,07/10/2013,74.84,
Bath & North East Somerset Council,80265468,LL8,Individualised Budget,P03,Wellbeing,PHOENIX (SW) LTD,07/10/2013,90.28,
Bath & North East Somerset Council,80265468,LL8,Individualised Budget,P03,Wellbeing,PHOENIX (SW) LTD,07/10/2013,90.28,
Bath & North East Somerset Council,80265468,YF2,Fees & Charges,P03,Wellbeing,PHOENIX (SW) LTD,07/10/2013,104.57,
Bath & North East Somerset Council,80265468,YF2,Fees & Charges,P03,Wellbeing,PHOENIX (SW) LTD,07/10/2013,104.57,
Bath & North East Somerset Council,80265468,YF2,Fees & Charges,P03,Wellbeing,PHOENIX (SW) LTD,07/10/2013,104.57,
Bath & North East Somerset Council,80265468,YF2,Fees & Charges,P03,Wellbeing,PHOENIX (SW) LTD,07/10/2013,104.57,
Bath & North East Somerset Council,80265468,YF2,Fees & Charges,P03,Wellbeing,PHOENIX (SW) LTD,07/10/2013,104.57,
Bath & North East Somerset Council,80265468,YF2,Fees & Charges,P03,Wellbeing,PHOENIX (SW) LTD,07/10/2013,104.57,
Bath & North East Somerset Council,80265468,YF2,Fees & Charges,P03,Wellbeing,PHOENIX (SW) LTD,07/10/2013,104.57,
Bath & North East Somerset Council,80265468,YF2,Fees & Charges,P03,Wellbeing,PHOENIX (SW) LTD,07/10/2013,104.57,
Bath & North East Somerset Council,80265468,YF2,Fees & Charges,P03,Wellbeing,PHOENIX (SW) LTD,07/10/2013,104.57,
Bath & North East Somerset Council,80265468,YF2,Fees & Charges,P03,Wellbeing,PHOENIX (SW) LTD,07/10/2013,104.57,
Bath & North East Somerset Council,80265468,YF2,Fees & Charges,P03,Wellbeing,PHOENIX (SW) LTD,07/10/2013,104.57,
Bath & North East Somerset Council,80265468,YF2,Fees & Charges,P03,Wellbeing,PHOENIX (SW) LTD,07/10/2013,104.57,
Bath & North East Somerset Council,80265468,YF2,Fees & Charges,P03,Wellbeing,PHOENIX (SW) LTD,07/10/2013,104.57,
Bath & North East Somerset Council,80265468,YF2,Fees & Charges,P03,Wellbeing,PHOENIX (SW) LTD,07/10/2013,104.57,
Bath & North East Somerset Council,80265468,YF2,Fees & Charges,P03,Wellbeing,PHOENIX (SW) LTD,07/10/2013,104.57,
Bath & North East Somerset Council,80265468,YF2,Fees & Charges,P03,Wellbeing,PHOENIX (SW) LTD,07/10/2013,104.57,
Bath & North East Somerset Council,80265468,YF2,Fees & Charges,P03,Wellbeing,PHOENIX (SW) LTD,07/10/2013,104.57,
Bath & North East Somerset Council,80265468,YF2,Fees & Charges,P03,Wellbeing,PHOENIX (SW) LTD,07/10/2013,104.57,
Bath & North East Somerset Council,80265468,YF2,Fees & Charges,P03,Wellbeing,PHOENIX (SW) LTD,07/10/2013,104.57,
Bath & North East Somerset Council,80265468,YF2,Fees & Charges,P03,Wellbeing,PHOENIX (SW) LTD,07/10/2013,104.57,
Bath & North East Somerset Council,80265468,YF2,Fees & Charges,P03,Wellbeing,PHOENIX (SW) LTD,07/10/2013,104.57,
Bath & North East Somerset Council,80265468,YF2,Fees & Charges,P03,Wellbeing,PHOENIX (SW) LTD,07/10/2013,104.57,
Bath & North East Somerset Council,80265468,YF2,Fees & Charges,P03,Wellbeing,PHOENIX (SW) LTD,07/10/2013,104.57,
Bath & North East Somerset Council,80265468,YF2,Fees & Charges,P03,Wellbeing,PHOENIX (SW) LTD,07/10/2013,104.57,
Bath & North East Somerset Council,80265468,YF2,Fees & Charges,P03,Wellbeing,PHOENIX (SW) LTD,07/10/2013,104.57,
Bath & North East Somerset Council,80265468,LL8,Individualised Budget,P03,Wellbeing,PHOENIX (SW) LTD,07/10/2013,106.31,
Bath & North East Somerset Council,80265468,LL8,Individualised Budget,P03,Wellbeing,PHOENIX (SW) LTD,07/10/2013,106.31,
Bath & North East Somerset Council,80265468,LL8,Individualised Budget,P03,Wellbeing,PHOENIX (SW) LTD,07/10/2013,144.85,
Bath & North East Somerset Council,80265468,LL8,Individualised Budget,P03,Wellbeing,PHOENIX (SW) LTD,07/10/2013,144.85,
Bath & North East Somerset Council,80265468,LL8,Individualised Budget,P03,Wellbeing,PHOENIX (SW) LTD,07/10/2013,145.5,
Bath & North East Somerset Council,80265468,LL8,Individualised Budget,P03,Wellbeing,PHOENIX (SW) LTD,07/10/2013,145.5,
Bath & North East Somerset Council,80265468,LL8,Individualised Budget,P03,Wellbeing,PHOENIX (SW) LTD,07/10/2013,267.79,
Bath & North East Somerset Council,80265468,LL8,Individualised Budget,P03,Wellbeing,PHOENIX (SW) LTD,07/10/2013,267.79,
Bath & North East Somerset Council,80265468,LL8,Individualised Budget,P03,Wellbeing,PHOENIX (SW) LTD,07/10/2013,277.21,
Bath & North East Somerset Council,80265468,LL8,Individualised Budget,P03,Wellbeing,PHOENIX (SW) LTD,07/10/2013,277.21,
Bath & North East Somerset Council,80265468,LL8,Individualised Budget,P03,Wellbeing,PHOENIX (SW) LTD,07/10/2013,345,
Bath & North East Somerset Council,80265468,LL8,Individualised Budget,P03,Wellbeing,PHOENIX (SW) LTD,07/10/2013,345,
Bath & North East Somerset Council,80265468,LL8,Individualised Budget,P03,Wellbeing,PHOENIX (SW) LTD,07/10/2013,386.03,
Bath & North East Somerset Council,80265468,LL8,Individualised Budget,P03,Wellbeing,PHOENIX (SW) LTD,07/10/2013,386.03,
Bath & North East Somerset Council,10714242,LF5,Postages,P07,Community Resources,CFH TOTAL DOCUMENT MANAGEMENT LTD,07/10/2013,739.5,
Bath & North East Somerset Council,80265468,LL8,Individualised Budget,P03,Wellbeing,PHOENIX (SW) LTD,07/10/2013,401.29,
Bath & North East Somerset Council,80265468,LL8,Individualised Budget,P03,Wellbeing,PHOENIX (SW) LTD,07/10/2013,401.29,
Bath & North East Somerset Council,80265468,LL8,Individualised Budget,P03,Wellbeing,PHOENIX (SW) LTD,07/10/2013,426.84,
Bath & North East Somerset Council,80265468,LL8,Individualised Budget,P03,Wellbeing,PHOENIX (SW) LTD,07/10/2013,426.84,
Bath & North East Somerset Council,80265468,LL8,Individualised Budget,P03,Wellbeing,PHOENIX (SW) LTD,07/10/2013,506.98,
Bath & North East Somerset Council,80265468,LL8,Individualised Budget,P03,Wellbeing,PHOENIX (SW) LTD,07/10/2013,506.98,
Bath & North East Somerset Council,80265468,LL8,Individualised Budget,P03,Wellbeing,PHOENIX (SW) LTD,07/10/2013,586.2,
Bath & North East Somerset Council,80265468,LL8,Individualised Budget,P03,Wellbeing,PHOENIX (SW) LTD,07/10/2013,586.2,
Bath & North East Somerset Council,80265608,LL8,Individualised Budget,P03,Wellbeing,REDACTED,07/10/2013,500,
Bath & North East Somerset Council,80265351,LM6,Nursing Care,P03,Wellbeing,RNID  (REDACTED),07/10/2013,1380.04,
Bath & North East Somerset Council,80265351,LM6,Nursing Care,P03,Wellbeing,RNID  (REDACTED),07/10/2013,1380.04,
Bath & North East Somerset Council,80265351,LM6,Nursing Care,P03,Wellbeing,RNID  (REDACTED),07/10/2013,2353.59,
Bath & North East Somerset Council,80265351,LM6,Nursing Care,P03,Wellbeing,RNID  (REDACTED),07/10/2013,2353.59,
Bath & North East Somerset Council,80265364,LM6,Nursing Care,P03,Wellbeing,ROSEVILLE CARE HOMES MELKSHAM,07/10/2013,810,
Bath & North East Somerset Council,80265364,LM6,Nursing Care,P03,Wellbeing,ROSEVILLE CARE HOMES MELKSHAM,07/10/2013,810,
Bath & North East Somerset Council,10714439,LK4,Nursery/Childcare Vouchers,P02,"Early Years, Children & Youth",FIRST STEPS NURSERY,07/10/2013,1773.9,
Bath & North East Somerset Council,10713282,3C4,Building Works,P01,Transport,M J HARWOOD PLANT HIRE LTD,07/10/2013,800,
Bath & North East Somerset Council,80265420,LL8,Individualised Budget,P03,Wellbeing,REDACTED,07/10/2013,476.52,
Bath & North East Somerset Council,80265420,LL8,Individualised Budget,P03,Wellbeing,REDACTED,07/10/2013,476.52,
Bath & North East Somerset Council,80265398,LL8,Individualised Budget,P03,Wellbeing,REDACTED,07/10/2013,1156.79,
Bath & North East Somerset Council,80265398,LL8,Individualised Budget,P03,Wellbeing,REDACTED,07/10/2013,1156.79,
Bath & North East Somerset Council,80265360,LM6,Nursing Care,P03,Wellbeing,SALVATION ARMY,07/10/2013,650,
Bath & North East Somerset Council,80265360,LM6,Nursing Care,P03,Wellbeing,SALVATION ARMY,07/10/2013,650,
Bath & North East Somerset Council,80265550,LL8,Individualised Budget,P03,Wellbeing,REDACTED,07/10/2013,293.64,
Bath & North East Somerset Council,80265550,LL8,Individualised Budget,P03,Wellbeing,REDACTED,07/10/2013,293.64,
Bath & North East Somerset Council,80265353,LM6,Nursing Care,P03,Wellbeing,SHAW HOMES HOUSING ASSOC LTD,07/10/2013,810,
Bath & North East Somerset Council,80265353,LM6,Nursing Care,P03,Wellbeing,SHAW HOMES HOUSING ASSOC LTD,07/10/2013,810,
Bath & North East Somerset Council,80265403,LL8,Individualised Budget,P03,Wellbeing,SHAW TRUST LTD,07/10/2013,8.08,
Bath & North East Somerset Council,80265403,LL8,Individualised Budget,P03,Wellbeing,SHAW TRUST LTD,07/10/2013,8.08,
Bath & North East Somerset Council,80265403,LL8,Individualised Budget,P03,Wellbeing,SHAW TRUST LTD,07/10/2013,13.52,
Bath & North East Somerset Council,80265403,LL8,Individualised Budget,P03,Wellbeing,SHAW TRUST LTD,07/10/2013,20.39,
Bath & North East Somerset Council,80265403,LL8,Individualised Budget,P03,Wellbeing,SHAW TRUST LTD,07/10/2013,23.08,
Bath & North East Somerset Council,80265403,LL8,Individualised Budget,P03,Wellbeing,SHAW TRUST LTD,07/10/2013,23.08,
Bath & North East Somerset Council,80265403,LL8,Individualised Budget,P03,Wellbeing,SHAW TRUST LTD,07/10/2013,23.08,
Bath & North East Somerset Council,80265403,LL8,Individualised Budget,P03,Wellbeing,SHAW TRUST LTD,07/10/2013,23.08,
Bath & North East Somerset Council,80265403,LL8,Individualised Budget,P03,Wellbeing,SHAW TRUST LTD,07/10/2013,23.08,
Bath & North East Somerset Council,80265403,LL8,Individualised Budget,P02,"Early Years, Children & Youth",SHAW TRUST LTD,07/10/2013,23.1,
Bath & North East Somerset Council,80265403,LL8,Individualised Budget,P02,"Early Years, Children & Youth",SHAW TRUST LTD,07/10/2013,23.1,
Bath & North East Somerset Council,80265403,LL8,Individualised Budget,P03,Wellbeing,SHAW TRUST LTD,07/10/2013,27.16,
Bath & North East Somerset Council,80265403,LL8,Individualised Budget,P03,Wellbeing,SHAW TRUST LTD,07/10/2013,27.16,
Bath & North East Somerset Council,80265403,LL8,Individualised Budget,P03,Wellbeing,SHAW TRUST LTD,07/10/2013,28.14,
Bath & North East Somerset Council,80265403,LL8,Individualised Budget,P03,Wellbeing,SHAW TRUST LTD,07/10/2013,28.14,
Bath & North East Somerset Council,80265403,LL8,Individualised Budget,P03,Wellbeing,SHAW TRUST LTD,07/10/2013,28.14,
Bath & North East Somerset Council,80265403,LL8,Individualised Budget,P03,Wellbeing,SHAW TRUST LTD,07/10/2013,28.14,
Bath & North East Somerset Council,80265403,LL8,Individualised Budget,P03,Wellbeing,SHAW TRUST LTD,07/10/2013,28.14,
Bath & North East Somerset Council,80265403,LL8,Individualised Budget,P03,Wellbeing,SHAW TRUST LTD,07/10/2013,28.14,
Bath & North East Somerset Council,80265403,YF2,Fees & Charges,P03,Wellbeing,SHAW TRUST LTD,07/10/2013,30.83,
Bath & North East Somerset Council,80265403,LL8,Individualised Budget,P03,Wellbeing,SHAW TRUST LTD,07/10/2013,34.97,
Bath & North East Somerset Council,80265403,LL8,Individualised Budget,P03,Wellbeing,SHAW TRUST LTD,07/10/2013,34.97,
Bath & North East Somerset Council,80265403,YF2,Fees & Charges,P03,Wellbeing,SHAW TRUST LTD,07/10/2013,43.16,
Bath & North East Somerset Council,80265403,LL8,Individualised Budget,P03,Wellbeing,SHAW TRUST LTD,07/10/2013,46.16,
Bath & North East Somerset Council,80265403,LL8,Individualised Budget,P03,Wellbeing,SHAW TRUST LTD,07/10/2013,46.16,
Bath & North East Somerset Council,80265403,LL8,Individualised Budget,P03,Wellbeing,SHAW TRUST LTD,07/10/2013,46.61,
Bath & North East Somerset Council,80265403,LL8,Individualised Budget,P03,Wellbeing,SHAW TRUST LTD,07/10/2013,46.61,
Bath & North East Somerset Council,80265403,LL8,Individualised Budget,P03,Wellbeing,SHAW TRUST LTD,07/10/2013,47.08,
Bath & North East Somerset Council,80265403,LL8,Individualised Budget,P03,Wellbeing,SHAW TRUST LTD,07/10/2013,47.08,
Bath & North East Somerset Council,80265403,LL8,Individualised Budget,P03,Wellbeing,SHAW TRUST LTD,07/10/2013,47.58,
Bath & North East Somerset Council,80265403,LL8,Individualised Budget,P03,Wellbeing,SHAW TRUST LTD,07/10/2013,47.58,
Bath & North East Somerset Council,80265403,LL8,Individualised Budget,P03,Wellbeing,SHAW TRUST LTD,07/10/2013,47.58,
Bath & North East Somerset Council,80265403,LL8,Individualised Budget,P03,Wellbeing,SHAW TRUST LTD,07/10/2013,47.58,
Bath & North East Somerset Council,80265403,LL8,Individualised Budget,P03,Wellbeing,SHAW TRUST LTD,07/10/2013,47.58,
Bath & North East Somerset Council,80265403,LL8,Individualised Budget,P03,Wellbeing,SHAW TRUST LTD,07/10/2013,47.58,
Bath & North East Somerset Council,80265403,LL8,Individualised Budget,P03,Wellbeing,SHAW TRUST LTD,07/10/2013,47.58,
Bath & North East Somerset Council,80265403,LL8,Individualised Budget,P03,Wellbeing,SHAW TRUST LTD,07/10/2013,47.58,
Bath & North East Somerset Council,80265403,LL8,Individualised Budget,P03,Wellbeing,SHAW TRUST LTD,07/10/2013,47.58,
Bath & North East Somerset Council,80265403,LL8,Individualised Budget,P03,Wellbeing,SHAW TRUST LTD,07/10/2013,47.58,
Bath & North East Somerset Council,80265403,LL8,Individualised Budget,P03,Wellbeing,SHAW TRUST LTD,07/10/2013,48.33,
Bath & North East Somerset Council,80265403,LL8,Individualised Budget,P03,Wellbeing,SHAW TRUST LTD,07/10/2013,48.33,
Bath & North East Somerset Council,80265403,LL8,Individualised Budget,P03,Wellbeing,SHAW TRUST LTD,07/10/2013,53.53,
Bath & North East Somerset Council,80265403,LL8,Individualised Budget,P03,Wellbeing,SHAW TRUST LTD,07/10/2013,53.53,
Bath & North East Somerset Council,80265067,LA7,Purchases for Resale,P06,Sustainable Development,DROYT PRODUCTS LTD,07/10/2013,820.68,
Bath & North East Somerset Council,80265403,LL8,Individualised Budget,P03,Wellbeing,SHAW TRUST LTD,07/10/2013,61.06,
Bath & North East Somerset Council,80265403,LL8,Individualised Budget,P03,Wellbeing,SHAW TRUST LTD,07/10/2013,61.06,
Bath & North East Somerset Council,80265403,LL8,Individualised Budget,P03,Wellbeing,SHAW TRUST LTD,07/10/2013,61.06,
Bath & North East Somerset Council,80265403,LL8,Individualised Budget,P03,Wellbeing,SHAW TRUST LTD,07/10/2013,61.06,
Bath & North East Somerset Council,80265403,LL8,Individualised Budget,P03,Wellbeing,SHAW TRUST LTD,07/10/2013,61.06,
Bath & North East Somerset Council,80265403,LL8,Individualised Budget,P03,Wellbeing,SHAW TRUST LTD,07/10/2013,61.06,
Bath & North East Somerset Council,80265403,LL8,Individualised Budget,P03,Wellbeing,SHAW TRUST LTD,07/10/2013,61.06,
Bath & North East Somerset Council,80265403,LL8,Individualised Budget,P03,Wellbeing,SHAW TRUST LTD,07/10/2013,61.06,
Bath & North East Somerset Council,80265403,LL8,Individualised Budget,P03,Wellbeing,SHAW TRUST LTD,07/10/2013,61.06,
Bath & North East Somerset Council,80265403,LL8,Individualised Budget,P03,Wellbeing,SHAW TRUST LTD,07/10/2013,61.06,
Bath & North East Somerset Council,80265403,LL8,Individualised Budget,P03,Wellbeing,SHAW TRUST LTD,07/10/2013,61.06,
Bath & North East Somerset Council,80265403,LL8,Individualised Budget,P03,Wellbeing,SHAW TRUST LTD,07/10/2013,61.06,
Bath & North East Somerset Council,80265403,LL8,Individualised Budget,P03,Wellbeing,SHAW TRUST LTD,07/10/2013,61.06,
Bath & North East Somerset Council,80265403,LL8,Individualised Budget,P03,Wellbeing,SHAW TRUST LTD,07/10/2013,61.06,
Bath & North East Somerset Council,80265403,LL8,Individualised Budget,P03,Wellbeing,SHAW TRUST LTD,07/10/2013,64.82,
Bath & North East Somerset Council,80265403,LL8,Individualised Budget,P03,Wellbeing,SHAW TRUST LTD,07/10/2013,64.82,
Bath & North East Somerset Council,80265403,LL8,Individualised Budget,P03,Wellbeing,SHAW TRUST LTD,07/10/2013,65.85,
Bath & North East Somerset Council,80265403,LL8,Individualised Budget,P03,Wellbeing,SHAW TRUST LTD,07/10/2013,65.85,
Bath & North East Somerset Council,80265634,LL4,Direct Payments,P02,"Early Years, Children & Youth",SHAW TRUST LTD,07/10/2013,66.78,
Bath & North East Somerset Council,80265634,LL4,Direct Payments,P02,"Early Years, Children & Youth",SHAW TRUST LTD,07/10/2013,66.78,
Bath & North East Somerset Council,80265403,LL8,Individualised Budget,P03,Wellbeing,SHAW TRUST LTD,07/10/2013,66.96,
Bath & North East Somerset Council,80265403,LL8,Individualised Budget,P03,Wellbeing,SHAW TRUST LTD,07/10/2013,66.96,
Bath & North East Somerset Council,80265403,LL8,Individualised Budget,P03,Wellbeing,SHAW TRUST LTD,07/10/2013,68.57,
Bath & North East Somerset Council,80265403,LL8,Individualised Budget,P03,Wellbeing,SHAW TRUST LTD,07/10/2013,68.57,
Bath & North East Somerset Council,80265634,LL4,Direct Payments,P02,"Early Years, Children & Youth",SHAW TRUST LTD,07/10/2013,72.19,
Bath & North East Somerset Council,80265634,LL4,Direct Payments,P02,"Early Years, Children & Youth",SHAW TRUST LTD,07/10/2013,72.19,
Bath & North East Somerset Council,80265403,LL8,Individualised Budget,P03,Wellbeing,SHAW TRUST LTD,07/10/2013,79.78,
Bath & North East Somerset Council,80265403,LL8,Individualised Budget,P03,Wellbeing,SHAW TRUST LTD,07/10/2013,79.78,
Bath & North East Somerset Council,80265403,LL8,Individualised Budget,P03,Wellbeing,SHAW TRUST LTD,07/10/2013,80.08,
Bath & North East Somerset Council,80265403,LL8,Individualised Budget,P03,Wellbeing,SHAW TRUST LTD,07/10/2013,80.08,
Bath & North East Somerset Council,80265403,LL8,Individualised Budget,P03,Wellbeing,SHAW TRUST LTD,07/10/2013,86.58,
Bath & North East Somerset Council,80265403,LL8,Individualised Budget,P03,Wellbeing,SHAW TRUST LTD,07/10/2013,86.58,
Bath & North East Somerset Council,80265403,LL8,Individualised Budget,P03,Wellbeing,SHAW TRUST LTD,07/10/2013,88.12,
Bath & North East Somerset Council,80265403,LL8,Individualised Budget,P03,Wellbeing,SHAW TRUST LTD,07/10/2013,95.32,
Bath & North East Somerset Council,80265403,LL8,Individualised Budget,P03,Wellbeing,SHAW TRUST LTD,07/10/2013,95.32,
Bath & North East Somerset Council,80265403,LL8,Individualised Budget,P03,Wellbeing,SHAW TRUST LTD,07/10/2013,99.42,
Bath & North East Somerset Council,80265403,LL8,Individualised Budget,P03,Wellbeing,SHAW TRUST LTD,07/10/2013,99.42,
Bath & North East Somerset Council,80265403,LL8,Individualised Budget,P03,Wellbeing,SHAW TRUST LTD,07/10/2013,100.16,
Bath & North East Somerset Council,80265403,LL8,Individualised Budget,P03,Wellbeing,SHAW TRUST LTD,07/10/2013,100.16,
Bath & North East Somerset Council,80265403,LL8,Individualised Budget,P03,Wellbeing,SHAW TRUST LTD,07/10/2013,101.08,
Bath & North East Somerset Council,80265403,LL8,Individualised Budget,P03,Wellbeing,SHAW TRUST LTD,07/10/2013,101.08,
Bath & North East Somerset Council,80265403,LL8,Individualised Budget,P03,Wellbeing,SHAW TRUST LTD,07/10/2013,101.74,
Bath & North East Somerset Council,80265403,LL8,Individualised Budget,P03,Wellbeing,SHAW TRUST LTD,07/10/2013,101.74,
Bath & North East Somerset Council,80265403,LL8,Individualised Budget,P03,Wellbeing,SHAW TRUST LTD,07/10/2013,102.77,
Bath & North East Somerset Council,80265403,LL8,Individualised Budget,P03,Wellbeing,SHAW TRUST LTD,07/10/2013,102.77,
Bath & North East Somerset Council,80265403,LL8,Individualised Budget,P03,Wellbeing,SHAW TRUST LTD,07/10/2013,105.72,
Bath & North East Somerset Council,80265403,LL8,Individualised Budget,P03,Wellbeing,SHAW TRUST LTD,07/10/2013,105.72,
Bath & North East Somerset Council,80265403,LL8,Individualised Budget,P03,Wellbeing,SHAW TRUST LTD,07/10/2013,106.93,
Bath & North East Somerset Council,80265403,LL8,Individualised Budget,P03,Wellbeing,SHAW TRUST LTD,07/10/2013,106.93,
Bath & North East Somerset Council,80265403,LL8,Individualised Budget,P03,Wellbeing,SHAW TRUST LTD,07/10/2013,107.56,
Bath & North East Somerset Council,80265403,LL8,Individualised Budget,P03,Wellbeing,SHAW TRUST LTD,07/10/2013,107.56,
Bath & North East Somerset Council,80265403,LL8,Individualised Budget,P03,Wellbeing,SHAW TRUST LTD,07/10/2013,107.95,
Bath & North East Somerset Council,80265403,LL8,Individualised Budget,P03,Wellbeing,SHAW TRUST LTD,07/10/2013,107.95,
Bath & North East Somerset Council,80265403,LL8,Individualised Budget,P03,Wellbeing,SHAW TRUST LTD,07/10/2013,108.46,
Bath & North East Somerset Council,80265403,LL8,Individualised Budget,P03,Wellbeing,SHAW TRUST LTD,07/10/2013,108.46,
Bath & North East Somerset Council,80265403,LL8,Individualised Budget,P03,Wellbeing,SHAW TRUST LTD,07/10/2013,108.92,
Bath & North East Somerset Council,80265403,LL8,Individualised Budget,P03,Wellbeing,SHAW TRUST LTD,07/10/2013,108.92,
Bath & North East Somerset Council,80265403,LL8,Individualised Budget,P03,Wellbeing,SHAW TRUST LTD,07/10/2013,111.06,
Bath & North East Somerset Council,80265403,LL8,Individualised Budget,P03,Wellbeing,SHAW TRUST LTD,07/10/2013,111.06,
Bath & North East Somerset Council,80265403,LL8,Individualised Budget,P03,Wellbeing,SHAW TRUST LTD,07/10/2013,111.5,
Bath & North East Somerset Council,80265403,LL8,Individualised Budget,P03,Wellbeing,SHAW TRUST LTD,07/10/2013,111.5,
Bath & North East Somerset Council,80265403,LL8,Individualised Budget,P03,Wellbeing,SHAW TRUST LTD,07/10/2013,112.89,
Bath & North East Somerset Council,80265403,LL8,Individualised Budget,P03,Wellbeing,SHAW TRUST LTD,07/10/2013,112.89,
Bath & North East Somerset Council,80265403,LL8,Individualised Budget,P03,Wellbeing,SHAW TRUST LTD,07/10/2013,113.43,
Bath & North East Somerset Council,80265403,LL8,Individualised Budget,P03,Wellbeing,SHAW TRUST LTD,07/10/2013,113.43,
Bath & North East Somerset Council,80265403,LL8,Individualised Budget,P03,Wellbeing,SHAW TRUST LTD,07/10/2013,113.43,
Bath & North East Somerset Council,80265403,LL8,Individualised Budget,P03,Wellbeing,SHAW TRUST LTD,07/10/2013,113.43,
Bath & North East Somerset Council,80265403,LL8,Individualised Budget,P03,Wellbeing,SHAW TRUST LTD,07/10/2013,113.43,
Bath & North East Somerset Council,80265403,LL8,Individualised Budget,P03,Wellbeing,SHAW TRUST LTD,07/10/2013,113.43,
Bath & North East Somerset Council,80265403,LL8,Individualised Budget,P03,Wellbeing,SHAW TRUST LTD,07/10/2013,113.43,
Bath & North East Somerset Council,80265403,LL8,Individualised Budget,P03,Wellbeing,SHAW TRUST LTD,07/10/2013,113.43,
Bath & North East Somerset Council,80265403,LL8,Individualised Budget,P03,Wellbeing,SHAW TRUST LTD,07/10/2013,113.43,
Bath & North East Somerset Council,80265403,LL8,Individualised Budget,P03,Wellbeing,SHAW TRUST LTD,07/10/2013,113.43,
Bath & North East Somerset Council,80265403,LL8,Individualised Budget,P03,Wellbeing,SHAW TRUST LTD,07/10/2013,113.43,
Bath & North East Somerset Council,80265403,LL8,Individualised Budget,P03,Wellbeing,SHAW TRUST LTD,07/10/2013,113.43,
Bath & North East Somerset Council,80265403,LL8,Individualised Budget,P03,Wellbeing,SHAW TRUST LTD,07/10/2013,113.43,
Bath & North East Somerset Council,80265403,LL8,Individualised Budget,P03,Wellbeing,SHAW TRUST LTD,07/10/2013,113.43,
Bath & North East Somerset Council,80265403,LL8,Individualised Budget,P03,Wellbeing,SHAW TRUST LTD,07/10/2013,113.43,
Bath & North East Somerset Council,80265403,LL8,Individualised Budget,P03,Wellbeing,SHAW TRUST LTD,07/10/2013,113.43,
Bath & North East Somerset Council,80265403,LL8,Individualised Budget,P03,Wellbeing,SHAW TRUST LTD,07/10/2013,113.43,
Bath & North East Somerset Council,80265403,LL8,Individualised Budget,P03,Wellbeing,SHAW TRUST LTD,07/10/2013,113.43,
Bath & North East Somerset Council,80265403,LL8,Individualised Budget,P03,Wellbeing,SHAW TRUST LTD,07/10/2013,113.43,
Bath & North East Somerset Council,80265403,LL8,Individualised Budget,P03,Wellbeing,SHAW TRUST LTD,07/10/2013,113.43,
Bath & North East Somerset Council,80265403,LL8,Individualised Budget,P03,Wellbeing,SHAW TRUST LTD,07/10/2013,124.55,
Bath & North East Somerset Council,80265403,LL8,Individualised Budget,P03,Wellbeing,SHAW TRUST LTD,07/10/2013,124.55,
Bath & North East Somerset Council,80265403,LL8,Individualised Budget,P03,Wellbeing,SHAW TRUST LTD,07/10/2013,128.56,
Bath & North East Somerset Council,80265403,LL8,Individualised Budget,P03,Wellbeing,SHAW TRUST LTD,07/10/2013,128.56,
Bath & North East Somerset Council,80265403,LL8,Individualised Budget,P03,Wellbeing,SHAW TRUST LTD,07/10/2013,129.32,
Bath & North East Somerset Council,80265403,LL8,Individualised Budget,P03,Wellbeing,SHAW TRUST LTD,07/10/2013,129.32,
Bath & North East Somerset Council,80265403,LL8,Individualised Budget,P03,Wellbeing,SHAW TRUST LTD,07/10/2013,133.8,
Bath & North East Somerset Council,80265403,LL8,Individualised Budget,P03,Wellbeing,SHAW TRUST LTD,07/10/2013,133.8,
Bath & North East Somerset Council,80265403,LL8,Individualised Budget,P03,Wellbeing,SHAW TRUST LTD,07/10/2013,135.43,
Bath & North East Somerset Council,80265403,LL8,Individualised Budget,P03,Wellbeing,SHAW TRUST LTD,07/10/2013,135.43,
Bath & North East Somerset Council,80265403,LL8,Individualised Budget,P03,Wellbeing,SHAW TRUST LTD,07/10/2013,141.07,
Bath & North East Somerset Council,80265403,LL8,Individualised Budget,P03,Wellbeing,SHAW TRUST LTD,07/10/2013,141.07,
Bath & North East Somerset Council,80265403,LL8,Individualised Budget,P03,Wellbeing,SHAW TRUST LTD,07/10/2013,146.27,
Bath & North East Somerset Council,80265403,LL8,Individualised Budget,P03,Wellbeing,SHAW TRUST LTD,07/10/2013,146.27,
Bath & North East Somerset Council,80265403,LL8,Individualised Budget,P03,Wellbeing,SHAW TRUST LTD,07/10/2013,147.5,
Bath & North East Somerset Council,80265403,LL8,Individualised Budget,P03,Wellbeing,SHAW TRUST LTD,07/10/2013,147.5,
Bath & North East Somerset Council,80265403,LL8,Individualised Budget,P03,Wellbeing,SHAW TRUST LTD,07/10/2013,149.48,
Bath & North East Somerset Council,80265403,LL8,Individualised Budget,P03,Wellbeing,SHAW TRUST LTD,07/10/2013,149.48,
Bath & North East Somerset Council,80265403,LL8,Individualised Budget,P03,Wellbeing,SHAW TRUST LTD,07/10/2013,150.52,
Bath & North East Somerset Council,80265403,LL8,Individualised Budget,P03,Wellbeing,SHAW TRUST LTD,07/10/2013,150.52,
Bath & North East Somerset Council,80265403,LL8,Individualised Budget,P03,Wellbeing,SHAW TRUST LTD,07/10/2013,165.62,
Bath & North East Somerset Council,80265403,LL8,Individualised Budget,P03,Wellbeing,SHAW TRUST LTD,07/10/2013,165.62,
Bath & North East Somerset Council,80265403,LL8,Individualised Budget,P03,Wellbeing,SHAW TRUST LTD,07/10/2013,169.2,
Bath & North East Somerset Council,80265403,LL8,Individualised Budget,P03,Wellbeing,SHAW TRUST LTD,07/10/2013,169.2,
Bath & North East Somerset Council,80265403,LL8,Individualised Budget,P03,Wellbeing,SHAW TRUST LTD,07/10/2013,169.2,
Bath & North East Somerset Council,10714433,HX9,Other Premises Related,P05,Neighbourhoods,GBS RE CROWN'S NOMINEE,07/10/2013,1532,
Bath & North East Somerset Council,80265403,LL8,Individualised Budget,P03,Wellbeing,SHAW TRUST LTD,07/10/2013,169.2,
Bath & North East Somerset Council,80265403,LL8,Individualised Budget,P03,Wellbeing,SHAW TRUST LTD,07/10/2013,170.57,
Bath & North East Somerset Council,80265403,LL8,Individualised Budget,P03,Wellbeing,SHAW TRUST LTD,07/10/2013,170.57,
Bath & North East Somerset Council,80265403,LL8,Individualised Budget,P03,Wellbeing,SHAW TRUST LTD,07/10/2013,171.93,
Bath & North East Somerset Council,80265403,LL8,Individualised Budget,P03,Wellbeing,SHAW TRUST LTD,07/10/2013,171.93,
Bath & North East Somerset Council,80265403,LL8,Individualised Budget,P03,Wellbeing,SHAW TRUST LTD,07/10/2013,184.97,
Bath & North East Somerset Council,80265403,LL8,Individualised Budget,P03,Wellbeing,SHAW TRUST LTD,07/10/2013,184.97,
Bath & North East Somerset Council,80265403,LL8,Individualised Budget,P03,Wellbeing,SHAW TRUST LTD,07/10/2013,196.43,
Bath & North East Somerset Council,80265403,LL8,Individualised Budget,P03,Wellbeing,SHAW TRUST LTD,07/10/2013,196.43,
Bath & North East Somerset Council,80265403,LL8,Individualised Budget,P03,Wellbeing,SHAW TRUST LTD,07/10/2013,198.88,
Bath & North East Somerset Council,80265403,LL8,Individualised Budget,P03,Wellbeing,SHAW TRUST LTD,07/10/2013,198.88,
Bath & North East Somerset Council,80265403,LL8,Individualised Budget,P03,Wellbeing,SHAW TRUST LTD,07/10/2013,200,
Bath & North East Somerset Council,80265403,LL8,Individualised Budget,P03,Wellbeing,SHAW TRUST LTD,07/10/2013,200.58,
Bath & North East Somerset Council,80265403,LL8,Individualised Budget,P03,Wellbeing,SHAW TRUST LTD,07/10/2013,200.58,
Bath & North East Somerset Council,80265403,LL8,Individualised Budget,P03,Wellbeing,SHAW TRUST LTD,07/10/2013,202.8,
Bath & North East Somerset Council,80265403,LL8,Individualised Budget,P03,Wellbeing,SHAW TRUST LTD,07/10/2013,202.8,
Bath & North East Somerset Council,80265403,LL8,Individualised Budget,P03,Wellbeing,SHAW TRUST LTD,07/10/2013,205.61,
Bath & North East Somerset Council,80265403,LL8,Individualised Budget,P03,Wellbeing,SHAW TRUST LTD,07/10/2013,205.61,
Bath & North East Somerset Council,80265403,LL8,Individualised Budget,P03,Wellbeing,SHAW TRUST LTD,07/10/2013,205.61,
Bath & North East Somerset Council,80265403,LL8,Individualised Budget,P03,Wellbeing,SHAW TRUST LTD,07/10/2013,205.61,
Bath & North East Somerset Council,80265403,LL8,Individualised Budget,P03,Wellbeing,SHAW TRUST LTD,07/10/2013,205.61,
Bath & North East Somerset Council,80265403,LL8,Individualised Budget,P03,Wellbeing,SHAW TRUST LTD,07/10/2013,205.61,
Bath & North East Somerset Council,80265403,LL8,Individualised Budget,P03,Wellbeing,SHAW TRUST LTD,07/10/2013,205.61,
Bath & North East Somerset Council,80265403,LL8,Individualised Budget,P03,Wellbeing,SHAW TRUST LTD,07/10/2013,205.61,
Bath & North East Somerset Council,80265403,LL8,Individualised Budget,P03,Wellbeing,SHAW TRUST LTD,07/10/2013,205.61,
Bath & North East Somerset Council,80265403,LL8,Individualised Budget,P03,Wellbeing,SHAW TRUST LTD,07/10/2013,205.61,
Bath & North East Somerset Council,80265403,LL8,Individualised Budget,P03,Wellbeing,SHAW TRUST LTD,07/10/2013,210.19,
Bath & North East Somerset Council,80265403,LL8,Individualised Budget,P03,Wellbeing,SHAW TRUST LTD,07/10/2013,210.19,
Bath & North East Somerset Council,80265403,LL8,Individualised Budget,P03,Wellbeing,SHAW TRUST LTD,07/10/2013,215.89,
Bath & North East Somerset Council,80265403,LL8,Individualised Budget,P03,Wellbeing,SHAW TRUST LTD,07/10/2013,215.89,
Bath & North East Somerset Council,80265403,LL8,Individualised Budget,P03,Wellbeing,SHAW TRUST LTD,07/10/2013,221.77,
Bath & North East Somerset Council,80265403,LL8,Individualised Budget,P03,Wellbeing,SHAW TRUST LTD,07/10/2013,221.77,
Bath & North East Somerset Council,80265403,LL8,Individualised Budget,P03,Wellbeing,SHAW TRUST LTD,07/10/2013,270.55,
Bath & North East Somerset Council,80265403,LL8,Individualised Budget,P03,Wellbeing,SHAW TRUST LTD,07/10/2013,270.55,
Bath & North East Somerset Council,80265403,LL8,Individualised Budget,P03,Wellbeing,SHAW TRUST LTD,07/10/2013,272.72,
Bath & North East Somerset Council,80265403,LL8,Individualised Budget,P03,Wellbeing,SHAW TRUST LTD,07/10/2013,272.72,
Bath & North East Somerset Council,80265403,LL8,Individualised Budget,P03,Wellbeing,SHAW TRUST LTD,07/10/2013,274,
Bath & North East Somerset Council,80265403,LL8,Individualised Budget,P03,Wellbeing,SHAW TRUST LTD,07/10/2013,281.2,
Bath & North East Somerset Council,80265403,LL8,Individualised Budget,P03,Wellbeing,SHAW TRUST LTD,07/10/2013,294.71,
Bath & North East Somerset Council,80265403,LL8,Individualised Budget,P03,Wellbeing,SHAW TRUST LTD,07/10/2013,294.71,
Bath & North East Somerset Council,80265403,LL8,Individualised Budget,P03,Wellbeing,SHAW TRUST LTD,07/10/2013,309.92,
Bath & North East Somerset Council,80265403,LL8,Individualised Budget,P03,Wellbeing,SHAW TRUST LTD,07/10/2013,309.92,
Bath & North East Somerset Council,80265403,LL8,Individualised Budget,P03,Wellbeing,SHAW TRUST LTD,07/10/2013,315.73,
Bath & North East Somerset Council,80265403,LL8,Individualised Budget,P03,Wellbeing,SHAW TRUST LTD,07/10/2013,338.27,
Bath & North East Somerset Council,80265403,LL8,Individualised Budget,P03,Wellbeing,SHAW TRUST LTD,07/10/2013,338.27,
Bath & North East Somerset Council,80265403,LL8,Individualised Budget,P03,Wellbeing,SHAW TRUST LTD,07/10/2013,345.23,
Bath & North East Somerset Council,80265403,LL8,Individualised Budget,P03,Wellbeing,SHAW TRUST LTD,07/10/2013,345.23,
Bath & North East Somerset Council,80265403,LL8,Individualised Budget,P03,Wellbeing,SHAW TRUST LTD,07/10/2013,363.28,
Bath & North East Somerset Council,80265403,LL8,Individualised Budget,P03,Wellbeing,SHAW TRUST LTD,07/10/2013,363.28,
Bath & North East Somerset Council,80265403,LL8,Individualised Budget,P03,Wellbeing,SHAW TRUST LTD,07/10/2013,383.43,
Bath & North East Somerset Council,80265403,LL8,Individualised Budget,P03,Wellbeing,SHAW TRUST LTD,07/10/2013,383.43,
Bath & North East Somerset Council,80265403,LL8,Individualised Budget,P03,Wellbeing,SHAW TRUST LTD,07/10/2013,395,
Bath & North East Somerset Council,80265403,LL8,Individualised Budget,P03,Wellbeing,SHAW TRUST LTD,07/10/2013,395,
Bath & North East Somerset Council,80265403,LL8,Individualised Budget,P03,Wellbeing,SHAW TRUST LTD,07/10/2013,419.53,
Bath & North East Somerset Council,80265403,LL8,Individualised Budget,P03,Wellbeing,SHAW TRUST LTD,07/10/2013,419.53,
Bath & North East Somerset Council,80265403,LL8,Individualised Budget,P03,Wellbeing,SHAW TRUST LTD,07/10/2013,433.61,
Bath & North East Somerset Council,80265403,LL8,Individualised Budget,P03,Wellbeing,SHAW TRUST LTD,07/10/2013,433.61,
Bath & North East Somerset Council,80265403,LL8,Individualised Budget,P03,Wellbeing,SHAW TRUST LTD,07/10/2013,450.28,
Bath & North East Somerset Council,80265403,LL8,Individualised Budget,P03,Wellbeing,SHAW TRUST LTD,07/10/2013,450.28,
Bath & North East Somerset Council,80265403,LL8,Individualised Budget,P03,Wellbeing,SHAW TRUST LTD,07/10/2013,458.32,
Bath & North East Somerset Council,80265403,LL8,Individualised Budget,P03,Wellbeing,SHAW TRUST LTD,07/10/2013,458.32,
Bath & North East Somerset Council,80265634,LL4,Direct Payments,P03,Wellbeing,SHAW TRUST LTD,07/10/2013,517.21,
Bath & North East Somerset Council,80265634,LL4,Direct Payments,P03,Wellbeing,SHAW TRUST LTD,07/10/2013,517.21,
Bath & North East Somerset Council,10713811,LA1,Equipment Purchase (Non Medical),P03,Wellbeing,INVACARE (UK) LTD,07/10/2013,1014,
Bath & North East Somerset Council,80265403,LL8,Individualised Budget,P03,Wellbeing,SHAW TRUST LTD,07/10/2013,620.27,
Bath & North East Somerset Council,80265403,LL8,Individualised Budget,P03,Wellbeing,SHAW TRUST LTD,07/10/2013,620.27,
Bath & North East Somerset Council,80265403,LL8,Individualised Budget,P03,Wellbeing,SHAW TRUST LTD,07/10/2013,660,
Bath & North East Somerset Council,80265403,LL8,Individualised Budget,P03,Wellbeing,SHAW TRUST LTD,07/10/2013,684,
Bath & North East Somerset Council,80265403,LL8,Individualised Budget,P03,Wellbeing,SHAW TRUST LTD,07/10/2013,684,
Bath & North East Somerset Council,80265403,LL8,Individualised Budget,P03,Wellbeing,SHAW TRUST LTD,07/10/2013,696.77,
Bath & North East Somerset Council,80265403,LL8,Individualised Budget,P03,Wellbeing,SHAW TRUST LTD,07/10/2013,696.77,
Bath & North East Somerset Council,80265403,LL8,Individualised Budget,P03,Wellbeing,SHAW TRUST LTD,07/10/2013,701.36,
Bath & North East Somerset Council,80265403,LL8,Individualised Budget,P03,Wellbeing,SHAW TRUST LTD,07/10/2013,701.36,
Bath & North East Somerset Council,80265403,LL8,Individualised Budget,P03,Wellbeing,SHAW TRUST LTD,07/10/2013,742.47,
Bath & North East Somerset Council,80265403,LL8,Individualised Budget,P03,Wellbeing,SHAW TRUST LTD,07/10/2013,742.47,
Bath & North East Somerset Council,80265403,LL8,Individualised Budget,P03,Wellbeing,SHAW TRUST LTD,07/10/2013,826,
Bath & North East Somerset Council,80265403,LL8,Individualised Budget,P03,Wellbeing,SHAW TRUST LTD,07/10/2013,826,
Bath & North East Somerset Council,10713304,DB1,Agency Staff,P01,Transport,WATERMAN ASPEN,07/10/2013,1040,
Bath & North East Somerset Council,10713551,DB1,Agency Staff,P01,Transport,WATERMAN ASPEN,07/10/2013,1047.17,
Bath & North East Somerset Council,80265065,LA7,Purchases for Resale,P06,Sustainable Development,COTSWOLD LAVENDER,07/10/2013,1054.74,
Bath & North East Somerset Council,80265403,LL8,Individualised Budget,P03,Wellbeing,SHAW TRUST LTD,07/10/2013,989.25,
Bath & North East Somerset Council,80265403,LL8,Individualised Budget,P03,Wellbeing,SHAW TRUST LTD,07/10/2013,989.25,
Bath & North East Somerset Council,80265403,LL8,Individualised Budget,P03,Wellbeing,SHAW TRUST LTD,07/10/2013,1450,
Bath & North East Somerset Council,80265403,LL8,Individualised Budget,P03,Wellbeing,SHAW TRUST LTD,07/10/2013,1778.16,
Bath & North East Somerset Council,80265403,LL8,Individualised Budget,P03,Wellbeing,SHAW TRUST LTD,07/10/2013,1778.16,
Bath & North East Somerset Council,80265634,LL4,Direct Payments,P02,"Early Years, Children & Youth",SHAW TRUST LTD,07/10/2013,6185.93,
Bath & North East Somerset Council,80265607,LL8,Individualised Budget,P03,Wellbeing,REDACTED,07/10/2013,512.57,
Bath & North East Somerset Council,80265607,LL8,Individualised Budget,P03,Wellbeing,REDACTED,07/10/2013,512.57,
Bath & North East Somerset Council,80265607,LL8,Individualised Budget,P03,Wellbeing,REDACTED,07/10/2013,512.57,
Bath & North East Somerset Council,80265356,LM6,Nursing Care,P03,Wellbeing,SHERWOOD LODGE,07/10/2013,1361.76,
Bath & North East Somerset Council,80265356,LM6,Nursing Care,P03,Wellbeing,SHERWOOD LODGE,07/10/2013,1361.76,
Bath & North East Somerset Council,10714360,LV2,Contributions to Organisations,P06,Sustainable Development,FRINGE ART BATH,07/10/2013,1165.25,
Bath & North East Somerset Council,10713546,PA1,Payments to Joint Authorities,P05,Neighbourhoods,BRISTOL CITY COUNCIL,07/10/2013,1189.51,
Bath & North East Somerset Council,80265378,LM6,Nursing Care,P03,Wellbeing,STANTON COURT,07/10/2013,278.57,
Bath & North East Somerset Council,80265378,LM6,Nursing Care,P03,Wellbeing,STANTON COURT,07/10/2013,469.14,
Bath & North East Somerset Council,80265378,LM6,Nursing Care,P03,Wellbeing,STANTON COURT,07/10/2013,650,
Bath & North East Somerset Council,80265378,LM6,Nursing Care,P03,Wellbeing,STANTON COURT,07/10/2013,650,
Bath & North East Somerset Council,80265378,LM6,Nursing Care,P03,Wellbeing,STANTON COURT,07/10/2013,650,
Bath & North East Somerset Council,80265378,LM6,Nursing Care,P03,Wellbeing,STANTON COURT,07/10/2013,650,
Bath & North East Somerset Council,80265378,LM6,Nursing Care,P03,Wellbeing,STANTON COURT,07/10/2013,650,
Bath & North East Somerset Council,80265378,LM6,Nursing Care,P03,Wellbeing,STANTON COURT,07/10/2013,650,
Bath & North East Somerset Council,80265378,LM6,Nursing Care,P03,Wellbeing,STANTON COURT,07/10/2013,650,
Bath & North East Somerset Council,80265378,LM6,Nursing Care,P03,Wellbeing,STANTON COURT,07/10/2013,750,
Bath & North East Somerset Council,80265378,LM6,Nursing Care,P03,Wellbeing,STANTON COURT,07/10/2013,750,
Bath & North East Somerset Council,80265378,LM6,Nursing Care,P03,Wellbeing,STANTON COURT,07/10/2013,821,
Bath & North East Somerset Council,80265378,LM6,Nursing Care,P03,Wellbeing,STANTON COURT,07/10/2013,821,
Bath & North East Somerset Council,80265378,LM6,Nursing Care,P03,Wellbeing,STANTON COURT,07/10/2013,822.25,
Bath & North East Somerset Council,80265378,LM6,Nursing Care,P03,Wellbeing,STANTON COURT,07/10/2013,836.8,
Bath & North East Somerset Council,80265378,LM6,Nursing Care,P03,Wellbeing,STANTON COURT,07/10/2013,836.8,
Bath & North East Somerset Council,80265378,LM6,Nursing Care,P03,Wellbeing,STANTON COURT,07/10/2013,1151.15,
Bath & North East Somerset Council,80265378,LM6,Nursing Care,P03,Wellbeing,STANTON COURT,07/10/2013,1151.15,
Bath & North East Somerset Council,10713923,LJ1,Consultants Fees,P04,Leader,VEGA CONSULTING SERVICES LTD,07/10/2013,1230,
Bath & North East Somerset Council,10714365,LV2,Contributions to Organisations,P06,Sustainable Development,SUITED AND BOOTED STUDIOS CIC,07/10/2013,1250,
Bath & North East Somerset Council,10714361,LV2,Contributions to Organisations,P06,Sustainable Development,R U H ARTS STRATEGY GROUP,07/10/2013,1250,
Bath & North East Somerset Council,80265359,LM6,Nursing Care,P03,Wellbeing,SUNNYMEDE LTD,07/10/2013,278.57,
Bath & North East Somerset Council,80265359,LM6,Nursing Care,P03,Wellbeing,SUNNYMEDE LTD,07/10/2013,650,
Bath & North East Somerset Council,80265359,LM6,Nursing Care,P03,Wellbeing,SUNNYMEDE LTD,07/10/2013,650,
Bath & North East Somerset Council,80265359,LM6,Nursing Care,P03,Wellbeing,SUNNYMEDE LTD,07/10/2013,650,
Bath & North East Somerset Council,80265359,LM6,Nursing Care,P03,Wellbeing,SUNNYMEDE LTD,07/10/2013,650,
Bath & North East Somerset Council,10712889,EA1,Training,P01,Transport,GREEN SQUARE,07/10/2013,1305,
Bath & North East Somerset Council,10714370,LH2,Advertising,P09,Homes & Planning,LOCAL WORLD LTD,07/10/2013,1312.94,
Bath & North East Somerset Council,80265371,LM6,Nursing Care,P03,Wellbeing,T C CAREHOME LTD,07/10/2013,650,
Bath & North East Somerset Council,80265371,LM6,Nursing Care,P03,Wellbeing,T C CAREHOME LTD,07/10/2013,650,
Bath & North East Somerset Council,80265371,LM6,Nursing Care,P03,Wellbeing,T C CAREHOME LTD,07/10/2013,650,
Bath & North East Somerset Council,80265371,LM6,Nursing Care,P03,Wellbeing,T C CAREHOME LTD,07/10/2013,650,
Bath & North East Somerset Council,80265377,LM6,Nursing Care,P03,Wellbeing,THE SUSSEX BEACON,07/10/2013,1400,
Bath & North East Somerset Council,80265377,LM6,Nursing Care,P03,Wellbeing,THE SUSSEX BEACON,07/10/2013,1400,
Bath & North East Somerset Council,10714012,HA5,Service Contract PCB,P07,Community Resources,BUILDING AUTOMATION SOLUTIONS LTD,07/10/2013,1480,
Bath & North East Somerset Council,10714326,3F7,External Fees,P02,"Early Years, Children & Youth",MDA CONSULTING LTD,07/10/2013,1495,
Bath & North East Somerset Council,10713266,3N7,Misc. Costs,P01,Transport,KELLY BROS SOLAR SIGNS LTD,07/10/2013,1674,
Bath & North East Somerset Council,80265383,LM6,Nursing Care,P03,Wellbeing,TRACS LIMITED,07/10/2013,1321.71,
Bath & North East Somerset Council,80265383,LM6,Nursing Care,P03,Wellbeing,TRACS LIMITED,07/10/2013,1542,
Bath & North East Somerset Council,10714295,HA4,Responsive Maintenance PCB,P07,Community Resources,ADT FIRE & SECURITY PLC,07/10/2013,1784.47,
Bath & North East Somerset Council,80265380,LM6,Nursing Care,P03,Wellbeing,TRU REHABILITATION UNIT LTD,07/10/2013,2870,
Bath & North East Somerset Council,80265380,LM6,Nursing Care,P03,Wellbeing,TRU REHABILITATION UNIT LTD,07/10/2013,2870,
Bath & North East Somerset Council,80265604,LL8,Individualised Budget,P03,Wellbeing,REDACTED,07/10/2013,500,
Bath & North East Somerset Council,80265075,LA7,Purchases for Resale,P06,Sustainable Development,F H SWIFT,07/10/2013,1983.6,
Bath & North East Somerset Council,10713282,3C4,Building Works,P01,Transport,M J HARWOOD PLANT HIRE LTD,07/10/2013,2000,
Bath & North East Somerset Council,10714358,LV2,Contributions to Organisations,P06,Sustainable Development,THE RONDO THEATRE,07/10/2013,2000,
Bath & North East Somerset Council,10713265,EA1,Training,P01,Transport,"UWE, BRISTOL",07/10/2013,2000,
Bath & North East Somerset Council,10713470,3C4,Building Works,P02,"Early Years, Children & Youth",OLDFIELD PARK INFANTS SCHOOL,07/10/2013,2100.15,
Bath & North East Somerset Council,10714356,3F7,External Fees,P02,"Early Years, Children & Youth",BOYES REES ARCHITECTS LTD,07/10/2013,2247.5,
Bath & North East Somerset Council,10713258,3N7,Misc. Costs,P01,Transport,KELLY BROS SOLAR SIGNS LTD,07/10/2013,2268,
Bath & North East Somerset Council,10713813,LA1,Equipment Purchase (Non Medical),P03,Wellbeing,IRM MOBILITY & HEALTHCARE LTD,07/10/2013,2450,
Bath & North East Somerset Council,80265386,LM6,Nursing Care,P03,Wellbeing,WESTCROFT CARE LTD,07/10/2013,650,
Bath & North East Somerset Council,80265386,LM6,Nursing Care,P03,Wellbeing,WESTCROFT CARE LTD,07/10/2013,650,
Bath & North East Somerset Council,80265386,LM6,Nursing Care,P03,Wellbeing,WESTCROFT CARE LTD,07/10/2013,650,
Bath & North East Somerset Council,80265386,LM6,Nursing Care,P03,Wellbeing,WESTCROFT CARE LTD,07/10/2013,650,
Bath & North East Somerset Council,10713425,3C4,Building Works,P01,Transport,M J HARWOOD PLANT HIRE LTD,07/10/2013,2545,
Bath & North East Somerset Council,10714292,LJ3,Other Services to the Council,P07,Community Resources,SOFA PROJECT,07/10/2013,2591.67,
Bath & North East Somerset Council,80265373,LM6,Nursing Care,P03,Wellbeing,WESTMINSTER HEALTHCARE LTD,07/10/2013,966.15,
Bath & North East Somerset Council,80265373,LM6,Nursing Care,P03,Wellbeing,WESTMINSTER HEALTHCARE LTD,07/10/2013,966.15,
Bath & North East Somerset Council,10713425,3C4,Building Works,P01,Transport,M J HARWOOD PLANT HIRE LTD,07/10/2013,2800,
Bath & North East Somerset Council,80265066,LA7,Purchases for Resale,P06,Sustainable Development,CUSTOMWORKS,07/10/2013,2984,
Bath & North East Somerset Council,10714357,LV2,Contributions to Organisations,P06,Sustainable Development,INTERNATIONAL GUITAR FOUNDATION,07/10/2013,3200,
Bath & North East Somerset Council,10714453,KE2,Payment to Parents/Students,P02,"Early Years, Children & Youth",REDACTED,07/10/2013,800,
Bath & North East Somerset Council,10713945,LK1,Fees,P02,"Early Years, Children & Youth",NORTON RADSTOCK COLLEGE,07/10/2013,3750,
Bath & North East Somerset Council,10712901,LK1,Fees,P05,Neighbourhoods,SARI,07/10/2013,3750,
Bath & North East Somerset Council,10714359,LV2,Contributions to Organisations,P06,Sustainable Development,CREATIVITY WORKS,07/10/2013,3750,
Bath & North East Somerset Council,10714482,KE2,Payment to Parents/Students,P02,"Early Years, Children & Youth",REDACTED,07/10/2013,897.6,
Bath & North East Somerset Council,10714421,3G1,Grants/Advances,P03,Wellbeing,A & R MILES LTD,07/10/2013,3950,
Bath & North East Somerset Council,10714423,3G1,Grants/Advances,P03,Wellbeing,STANNAH LIFT SERVICES LIMITED,07/10/2013,4260,
Bath & North East Somerset Council,10713600,3F7,External Fees,P01,Transport,BRUNEL PROJECT MANAGEMENT LTD,07/10/2013,4500,
Bath & North East Somerset Council,10713631,LN5,Data Lines,P04,Leader,BRITISH TELECOM,07/10/2013,19230.15,
Bath & North East Somerset Council,10712644,3F7,External Fees,P02,"Early Years, Children & Youth",FABTECH WELDING & FABRICATION LTD,07/10/2013,25180,
Bath & North East Somerset Council,10714235,3C4,Building Works,P02,"Early Years, Children & Youth",MITIE TILLEY ROOFING LTD,07/10/2013,33453.08,
Bath & North East Somerset Council,80265443,LL8,Individualised Budget,P03,Wellbeing,REDACTED,07/10/2013,1696.43,
Bath & North East Somerset Council,80265443,LL8,Individualised Budget,P03,Wellbeing,REDACTED,07/10/2013,1696.43,
Bath & North East Somerset Council,10714063,LJ3,Other Services to the Council,P07,Community Resources,GRANT THORNTON UK LLP,07/10/2013,41009.75,
Bath & North East Somerset Council,10713888,KA3,Fuel,P01,Transport,FORD FUELS LTD,07/10/2013,42112.53,
Bath & North East Somerset Council,10713040,3C4,Building Works,P02,"Early Years, Children & Youth",WESTERN FABRICATIONS LTD,07/10/2013,45276.34,
Bath & North East Somerset Council,80265408,LL8,Individualised Budget,P03,Wellbeing,REDACTED,07/10/2013,259.58,
Bath & North East Somerset Council,80265408,LL8,Individualised Budget,P03,Wellbeing,REDACTED,07/10/2013,259.58,
Bath & North East Somerset Council,10713546,PB4,Payments to Private Contractors,P05,Neighbourhoods,BRISTOL CITY COUNCIL,07/10/2013,184517.13,
Bath & North East Somerset Council,80265951,LM3,Residential Care,P03,Wellbeing,6 THE AVENUE -KEYNSHAM MENCAP,09/10/2013,577.87,
Bath & North East Somerset Council,80265951,LM3,Residential Care,P03,Wellbeing,6 THE AVENUE -KEYNSHAM MENCAP,09/10/2013,577.87,
Bath & North East Somerset Council,80265951,LM3,Residential Care,P03,Wellbeing,6 THE AVENUE -KEYNSHAM MENCAP,09/10/2013,577.87,
Bath & North East Somerset Council,80265951,LM3,Residential Care,P03,Wellbeing,6 THE AVENUE -KEYNSHAM MENCAP,09/10/2013,577.87,
Bath & North East Somerset Council,80265951,LM3,Residential Care,P03,Wellbeing,6 THE AVENUE -KEYNSHAM MENCAP,09/10/2013,577.87,
Bath & North East Somerset Council,80265951,LM3,Residential Care,P03,Wellbeing,6 THE AVENUE -KEYNSHAM MENCAP,09/10/2013,577.87,
Bath & North East Somerset Council,80265951,LM3,Residential Care,P03,Wellbeing,6 THE AVENUE -KEYNSHAM MENCAP,09/10/2013,577.87,
Bath & North East Somerset Council,80265951,LM3,Residential Care,P03,Wellbeing,6 THE AVENUE -KEYNSHAM MENCAP,09/10/2013,577.87,
Bath & North East Somerset Council,80265951,LM3,Residential Care,P03,Wellbeing,6 THE AVENUE -KEYNSHAM MENCAP,09/10/2013,577.87,
Bath & North East Somerset Council,80265951,LM3,Residential Care,P03,Wellbeing,6 THE AVENUE -KEYNSHAM MENCAP,09/10/2013,577.87,
Bath & North East Somerset Council,80265951,LM3,Residential Care,P03,Wellbeing,6 THE AVENUE -KEYNSHAM MENCAP,09/10/2013,971.93,
Bath & North East Somerset Council,80265951,LM3,Residential Care,P03,Wellbeing,6 THE AVENUE -KEYNSHAM MENCAP,09/10/2013,971.93,
Bath & North East Somerset Council,80265951,LM3,Residential Care,P03,Wellbeing,6 THE AVENUE -KEYNSHAM MENCAP,09/10/2013,1196.17,
Bath & North East Somerset Council,80265951,LM3,Residential Care,P03,Wellbeing,6 THE AVENUE -KEYNSHAM MENCAP,09/10/2013,1196.17,
Bath & North East Somerset Council,10713094,LF5,Postages,P04,Leader,INCOMS SYSTEMS PLC,09/10/2013,6.5,
Bath & North East Somerset Council,80266033,LM4,Respite Care,P02,"Early Years, Children & Youth",REDACTED,09/10/2013,56.86,
Bath & North East Somerset Council,80266033,LM4,Respite Care,P02,"Early Years, Children & Youth",REDACTED,09/10/2013,56.86,
Bath & North East Somerset Council,80266033,LM2,Foster Carer Allowances,P02,"Early Years, Children & Youth",REDACTED,09/10/2013,398,
Bath & North East Somerset Council,10714909,KB1,Hire of Vehicles,P06,Sustainable Development,ABBEY TAXIS LIMITED,09/10/2013,334.6,
Bath & North East Somerset Council,10714909,KD1,Employees Public Transport,P06,Sustainable Development,ABBEY TAXIS LIMITED,09/10/2013,1379.5,
Bath & North East Somerset Council,80265921,LM6,Nursing Care,P03,Wellbeing,ABBEYFIELD WALES SOCIETY LTD,09/10/2013,587,
Bath & North East Somerset Council,80265921,LM6,Nursing Care,P03,Wellbeing,ABBEYFIELD WALES SOCIETY LTD,09/10/2013,587,
Bath & North East Somerset Council,80265884,LM6,Nursing Care,P03,Wellbeing,ADIEMUS CARE LTD - T/A WICKWAR,09/10/2013,552,
Bath & North East Somerset Council,80265884,LM6,Nursing Care,P03,Wellbeing,ADIEMUS CARE LTD - T/A WICKWAR,09/10/2013,552,
Bath & North East Somerset Council,10714925,LA1,Equipment Purchase (Non Medical),P05,Neighbourhoods,PITBITZ LIMITED T/A GAZEBOSHOP,09/10/2013,16.67,
Bath & North East Somerset Council,80265832,LM3,Residential Care,P03,Wellbeing,ALPINE VILLA CARE HOME LTD,09/10/2013,700,
Bath & North East Somerset Council,80265832,LM3,Residential Care,P03,Wellbeing,ALPINE VILLA CARE HOME LTD,09/10/2013,700,
Bath & North East Somerset Council,80265744,LM3,Residential Care,P03,Wellbeing,ANCHOR TRUST,09/10/2013,433.5,
Bath & North East Somerset Council,80265744,LM3,Residential Care,P03,Wellbeing,ANCHOR TRUST,09/10/2013,433.5,
Bath & North East Somerset Council,80265744,LM3,Residential Care,P03,Wellbeing,ANCHOR TRUST,09/10/2013,433.5,
Bath & North East Somerset Council,80265744,LM3,Residential Care,P03,Wellbeing,ANCHOR TRUST,09/10/2013,433.5,
Bath & North East Somerset Council,80265744,LM3,Residential Care,P03,Wellbeing,ANCHOR TRUST,09/10/2013,515.45,
Bath & North East Somerset Council,80265744,LM3,Residential Care,P03,Wellbeing,ANCHOR TRUST,09/10/2013,515.45,
Bath & North East Somerset Council,80265744,LM3,Residential Care,P03,Wellbeing,ANCHOR TRUST,09/10/2013,550,
Bath & North East Somerset Council,80265744,LM3,Residential Care,P03,Wellbeing,ANCHOR TRUST,09/10/2013,550,
Bath & North East Somerset Council,80265744,LM3,Residential Care,P03,Wellbeing,ANCHOR TRUST,09/10/2013,550,
Bath & North East Somerset Council,80265744,LM3,Residential Care,P03,Wellbeing,ANCHOR TRUST,09/10/2013,550,
Bath & North East Somerset Council,80265744,LM6,Nursing Care,P03,Wellbeing,ANCHOR TRUST,09/10/2013,575,
Bath & North East Somerset Council,80265744,LM6,Nursing Care,P03,Wellbeing,ANCHOR TRUST,09/10/2013,575,
Bath & North East Somerset Council,80265744,LM3,Residential Care,P03,Wellbeing,ANCHOR TRUST,09/10/2013,600,
Bath & North East Somerset Council,80265744,LM3,Residential Care,P03,Wellbeing,ANCHOR TRUST,09/10/2013,600,
Bath & North East Somerset Council,80265744,LM3,Residential Care,P03,Wellbeing,ANCHOR TRUST,09/10/2013,680,
Bath & North East Somerset Council,80265744,LM3,Residential Care,P03,Wellbeing,ANCHOR TRUST,09/10/2013,680,
Bath & North East Somerset Council,80265744,LM3,Residential Care,P03,Wellbeing,ANCHOR TRUST,09/10/2013,680,
Bath & North East Somerset Council,80265744,LM3,Residential Care,P03,Wellbeing,ANCHOR TRUST,09/10/2013,680,
Bath & North East Somerset Council,80265825,LM3,Residential Care,P03,Wellbeing,ARTI SERVICES LTD T/A THE MANOR FARM HOUSE,09/10/2013,433.5,
Bath & North East Somerset Council,80265825,LM3,Residential Care,P03,Wellbeing,ARTI SERVICES LTD T/A THE MANOR FARM HOUSE,09/10/2013,433.5,
Bath & North East Somerset Council,80265825,LM3,Residential Care,P03,Wellbeing,ARTI SERVICES LTD T/A THE MANOR FARM HOUSE,09/10/2013,433.5,
Bath & North East Somerset Council,80265825,LM3,Residential Care,P03,Wellbeing,ARTI SERVICES LTD T/A THE MANOR FARM HOUSE,09/10/2013,433.5,
Bath & North East Somerset Council,80265825,LM3,Residential Care,P03,Wellbeing,ARTI SERVICES LTD T/A THE MANOR FARM HOUSE,09/10/2013,433.5,
Bath & North East Somerset Council,80265825,LM3,Residential Care,P03,Wellbeing,ARTI SERVICES LTD T/A THE MANOR FARM HOUSE,09/10/2013,433.5,
Bath & North East Somerset Council,80265825,LM3,Residential Care,P03,Wellbeing,ARTI SERVICES LTD T/A THE MANOR FARM HOUSE,09/10/2013,433.5,
Bath & North East Somerset Council,80265825,LM3,Residential Care,P03,Wellbeing,ARTI SERVICES LTD T/A THE MANOR FARM HOUSE,09/10/2013,433.5,
Bath & North East Somerset Council,80265825,LM3,Residential Care,P03,Wellbeing,ARTI SERVICES LTD T/A THE MANOR FARM HOUSE,09/10/2013,433.5,
Bath & North East Somerset Council,80265825,LM3,Residential Care,P03,Wellbeing,ARTI SERVICES LTD T/A THE MANOR FARM HOUSE,09/10/2013,475,
Bath & North East Somerset Council,80265825,LM3,Residential Care,P03,Wellbeing,ARTI SERVICES LTD T/A THE MANOR FARM HOUSE,09/10/2013,475,
Bath & North East Somerset Council,80265825,LM3,Residential Care,P03,Wellbeing,ARTI SERVICES LTD T/A THE MANOR FARM HOUSE,09/10/2013,475,
Bath & North East Somerset Council,80265825,LM3,Residential Care,P03,Wellbeing,ARTI SERVICES LTD T/A THE MANOR FARM HOUSE,09/10/2013,475,
Bath & North East Somerset Council,80265825,LM3,Residential Care,P03,Wellbeing,ARTI SERVICES LTD T/A THE MANOR FARM HOUSE,09/10/2013,475,
Bath & North East Somerset Council,80265825,LM3,Residential Care,P03,Wellbeing,ARTI SERVICES LTD T/A THE MANOR FARM HOUSE,09/10/2013,475,
Bath & North East Somerset Council,80265825,LM3,Residential Care,P03,Wellbeing,ARTI SERVICES LTD T/A THE MANOR FARM HOUSE,09/10/2013,475,
Bath & North East Somerset Council,80265825,LM3,Residential Care,P03,Wellbeing,ARTI SERVICES LTD T/A THE MANOR FARM HOUSE,09/10/2013,475,
Bath & North East Somerset Council,80265825,LM3,Residential Care,P03,Wellbeing,ARTI SERVICES LTD T/A THE MANOR FARM HOUSE,09/10/2013,475,
Bath & North East Somerset Council,80265825,LM3,Residential Care,P03,Wellbeing,ARTI SERVICES LTD T/A THE MANOR FARM HOUSE,09/10/2013,475,
Bath & North East Somerset Council,80265825,LM3,Residential Care,P03,Wellbeing,ARTI SERVICES LTD T/A THE MANOR FARM HOUSE,09/10/2013,495,
Bath & North East Somerset Council,80265825,LM3,Residential Care,P03,Wellbeing,ARTI SERVICES LTD T/A THE MANOR FARM HOUSE,09/10/2013,495,
Bath & North East Somerset Council,80265745,LM3,Residential Care,P03,Wellbeing,ASPECTS & MILESTONES TRUST,09/10/2013,843.17,
Bath & North East Somerset Council,80265745,LM3,Residential Care,P03,Wellbeing,ASPECTS & MILESTONES TRUST,09/10/2013,843.17,
Bath & North East Somerset Council,80265750,LM3,Residential Care,P03,Wellbeing,ASPECTS & MILESTONES TRUST,09/10/2013,886.06,
Bath & North East Somerset Council,80265750,LM3,Residential Care,P03,Wellbeing,ASPECTS & MILESTONES TRUST,09/10/2013,886.06,
Bath & North East Somerset Council,80265749,LM6,Nursing Care,P03,Wellbeing,ASPECTS & MILESTONES TRUST,09/10/2013,1423.09,
Bath & North East Somerset Council,80265749,LM6,Nursing Care,P03,Wellbeing,ASPECTS & MILESTONES TRUST,09/10/2013,1423.09,
Bath & North East Somerset Council,80265747,LM3,Residential Care,P03,Wellbeing,ASPECTS & MILESTONES TRUST,09/10/2013,1877.25,
Bath & North East Somerset Council,80265747,LM3,Residential Care,P03,Wellbeing,ASPECTS & MILESTONES TRUST,09/10/2013,1877.25,
Bath & North East Somerset Council,80265748,LM3,Residential Care,P03,Wellbeing,ASPECTS & MILESTONES TRUST,09/10/2013,2202.48,
Bath & North East Somerset Council,80265748,LM3,Residential Care,P03,Wellbeing,ASPECTS & MILESTONES TRUST,09/10/2013,2202.48,
Bath & North East Somerset Council,80265748,LM3,Residential Care,P03,Wellbeing,ASPECTS & MILESTONES TRUST,09/10/2013,2508.64,
Bath & North East Somerset Council,80265748,LM3,Residential Care,P03,Wellbeing,ASPECTS & MILESTONES TRUST,09/10/2013,2508.64,
Bath & North East Somerset Council,80265785,LM3,Residential Care,P03,Wellbeing,AUTISM SPECIALISED CARE HOMES LTD,09/10/2013,1284.26,
Bath & North East Somerset Council,80265785,LM3,Residential Care,P03,Wellbeing,AUTISM SPECIALISED CARE HOMES LTD,09/10/2013,1284.26,
Bath & North East Somerset Council,80265847,LM3,Residential Care,P03,Wellbeing,AVERY HOMES BRISTOL LIMITED,09/10/2013,475,
Bath & North East Somerset Council,80265847,LM3,Residential Care,P03,Wellbeing,AVERY HOMES BRISTOL LIMITED,09/10/2013,475,
Bath & North East Somerset Council,80265877,LM3,Residential Care,P03,Wellbeing,AVERY HOMES CHIPPENHAM,09/10/2013,536,
Bath & North East Somerset Council,80265877,LM3,Residential Care,P03,Wellbeing,AVERY HOMES CHIPPENHAM,09/10/2013,536,
Bath & North East Somerset Council,80265872,YF2,Fees & Charges,P03,Wellbeing,AVONPARK VILLAGE (CARE HOMES) LTD,09/10/2013,35.81,
Bath & North East Somerset Council,80265872,YF2,Fees & Charges,P03,Wellbeing,AVONPARK VILLAGE (CARE HOMES) LTD,09/10/2013,125.33,
Bath & North East Somerset Council,80265872,YF2,Fees & Charges,P03,Wellbeing,AVONPARK VILLAGE (CARE HOMES) LTD,09/10/2013,125.33,
Bath & North East Somerset Council,80265872,YF2,Fees & Charges,P03,Wellbeing,AVONPARK VILLAGE (CARE HOMES) LTD,09/10/2013,125.33,
Bath & North East Somerset Council,80265872,YF2,Fees & Charges,P03,Wellbeing,AVONPARK VILLAGE (CARE HOMES) LTD,09/10/2013,125.33,
Bath & North East Somerset Council,80265872,LM6,Nursing Care,P03,Wellbeing,AVONPARK VILLAGE (CARE HOMES) LTD,09/10/2013,164.29,
Bath & North East Somerset Council,80265872,LM6,Nursing Care,P03,Wellbeing,AVONPARK VILLAGE (CARE HOMES) LTD,09/10/2013,575,
Bath & North East Somerset Council,80265872,LM6,Nursing Care,P03,Wellbeing,AVONPARK VILLAGE (CARE HOMES) LTD,09/10/2013,575,
Bath & North East Somerset Council,80265872,LM6,Nursing Care,P03,Wellbeing,AVONPARK VILLAGE (CARE HOMES) LTD,09/10/2013,575,
Bath & North East Somerset Council,80265872,LM6,Nursing Care,P03,Wellbeing,AVONPARK VILLAGE (CARE HOMES) LTD,09/10/2013,575,
Bath & North East Somerset Council,80265872,LM6,Nursing Care,P03,Wellbeing,AVONPARK VILLAGE (CARE HOMES) LTD,09/10/2013,575,
Bath & North East Somerset Council,80265872,LM6,Nursing Care,P03,Wellbeing,AVONPARK VILLAGE (CARE HOMES) LTD,09/10/2013,575,
Bath & North East Somerset Council,10714921,LJ4,Contracts,P01,Transport,RIVERSIDE TAXIS,09/10/2013,60,
Bath & North East Somerset Council,80265903,LM6,Nursing Care,P03,Wellbeing,BARCHESTER HEALTH CARE,09/10/2013,552,
Bath & North East Somerset Council,80265903,LM6,Nursing Care,P03,Wellbeing,BARCHESTER HEALTH CARE,09/10/2013,552,
Bath & North East Somerset Council,80265903,LM6,Nursing Care,P03,Wellbeing,BARCHESTER HEALTH CARE,09/10/2013,552,
Bath & North East Somerset Council,80265903,LM6,Nursing Care,P03,Wellbeing,BARCHESTER HEALTH CARE,09/10/2013,552,
Bath & North East Somerset Council,80265903,LM6,Nursing Care,P03,Wellbeing,BARCHESTER HEALTH CARE,09/10/2013,552,
Bath & North East Somerset Council,80265903,LM6,Nursing Care,P03,Wellbeing,BARCHESTER HEALTH CARE,09/10/2013,552,
Bath & North East Somerset Council,80265903,LM6,Nursing Care,P03,Wellbeing,BARCHESTER HEALTH CARE,09/10/2013,900,
Bath & North East Somerset Council,80265903,LM6,Nursing Care,P03,Wellbeing,BARCHESTER HEALTH CARE,09/10/2013,900,
Bath & North East Somerset Council,80265787,LM6,Nursing Care,P03,Wellbeing,BARCHESTER HEALTHCARE,09/10/2013,700,
Bath & North East Somerset Council,80265787,LM6,Nursing Care,P03,Wellbeing,BARCHESTER HEALTHCARE,09/10/2013,700,
Bath & North East Somerset Council,80265787,LM6,Nursing Care,P03,Wellbeing,BARCHESTER HEALTHCARE,09/10/2013,700,
Bath & North East Somerset Council,80265787,LM6,Nursing Care,P03,Wellbeing,BARCHESTER HEALTHCARE,09/10/2013,700,
Bath & North East Somerset Council,80265938,YF2,Fees & Charges,P03,Wellbeing,BARCHESTER HEALTHCARE HOMES LTD,09/10/2013,130.98,
Bath & North East Somerset Council,80265938,YF2,Fees & Charges,P03,Wellbeing,BARCHESTER HEALTHCARE HOMES LTD,09/10/2013,130.98,
Bath & North East Somerset Council,80265938,YF2,Fees & Charges,P03,Wellbeing,BARCHESTER HEALTHCARE HOMES LTD,09/10/2013,130.98,
Bath & North East Somerset Council,80265938,YF2,Fees & Charges,P03,Wellbeing,BARCHESTER HEALTHCARE HOMES LTD,09/10/2013,130.98,
Bath & North East Somerset Council,80265938,YF2,Fees & Charges,P03,Wellbeing,BARCHESTER HEALTHCARE HOMES LTD,09/10/2013,130.98,
Bath & North East Somerset Council,80265938,YF2,Fees & Charges,P03,Wellbeing,BARCHESTER HEALTHCARE HOMES LTD,09/10/2013,130.98,
Bath & North East Somerset Council,80265938,YF2,Fees & Charges,P03,Wellbeing,BARCHESTER HEALTHCARE HOMES LTD,09/10/2013,130.98,
Bath & North East Somerset Council,80265938,YF2,Fees & Charges,P03,Wellbeing,BARCHESTER HEALTHCARE HOMES LTD,09/10/2013,130.98,
Bath & North East Somerset Council,80265938,YF2,Fees & Charges,P03,Wellbeing,BARCHESTER HEALTHCARE HOMES LTD,09/10/2013,162.11,
Bath & North East Somerset Council,80265938,YF2,Fees & Charges,P03,Wellbeing,BARCHESTER HEALTHCARE HOMES LTD,09/10/2013,162.11,
Bath & North East Somerset Council,80265938,YF2,Fees & Charges,P03,Wellbeing,BARCHESTER HEALTHCARE HOMES LTD,09/10/2013,162.11,
Bath & North East Somerset Council,80265938,YF2,Fees & Charges,P03,Wellbeing,BARCHESTER HEALTHCARE HOMES LTD,09/10/2013,162.11,
Bath & North East Somerset Council,80265938,YF2,Fees & Charges,P03,Wellbeing,BARCHESTER HEALTHCARE HOMES LTD,09/10/2013,162.11,
Bath & North East Somerset Council,80265938,YF2,Fees & Charges,P03,Wellbeing,BARCHESTER HEALTHCARE HOMES LTD,09/10/2013,162.11,
Bath & North East Somerset Council,80265938,YF2,Fees & Charges,P03,Wellbeing,BARCHESTER HEALTHCARE HOMES LTD,09/10/2013,162.11,
Bath & North East Somerset Council,80265938,YF2,Fees & Charges,P03,Wellbeing,BARCHESTER HEALTHCARE HOMES LTD,09/10/2013,162.11,
Bath & North East Somerset Council,80265938,YF2,Fees & Charges,P03,Wellbeing,BARCHESTER HEALTHCARE HOMES LTD,09/10/2013,162.11,
Bath & North East Somerset Council,80265938,YF2,Fees & Charges,P03,Wellbeing,BARCHESTER HEALTHCARE HOMES LTD,09/10/2013,162.11,
Bath & North East Somerset Council,80265938,LM3,Residential Care,P03,Wellbeing,BARCHESTER HEALTHCARE HOMES LTD,09/10/2013,433.5,
Bath & North East Somerset Council,80265938,LM3,Residential Care,P03,Wellbeing,BARCHESTER HEALTHCARE HOMES LTD,09/10/2013,433.5,
Bath & North East Somerset Council,80265938,LM3,Residential Care,P03,Wellbeing,BARCHESTER HEALTHCARE HOMES LTD,09/10/2013,505,
Bath & North East Somerset Council,80265938,LM3,Residential Care,P03,Wellbeing,BARCHESTER HEALTHCARE HOMES LTD,09/10/2013,505,
Bath & North East Somerset Council,80265938,LM6,Nursing Care,P03,Wellbeing,BARCHESTER HEALTHCARE HOMES LTD,09/10/2013,552,
Bath & North East Somerset Council,80265938,LM6,Nursing Care,P03,Wellbeing,BARCHESTER HEALTHCARE HOMES LTD,09/10/2013,552,
Bath & North East Somerset Council,80265938,LM6,Nursing Care,P03,Wellbeing,BARCHESTER HEALTHCARE HOMES LTD,09/10/2013,552,
Bath & North East Somerset Council,80265938,LM6,Nursing Care,P03,Wellbeing,BARCHESTER HEALTHCARE HOMES LTD,09/10/2013,552,
Bath & North East Somerset Council,80265938,LM6,Nursing Care,P03,Wellbeing,BARCHESTER HEALTHCARE HOMES LTD,09/10/2013,552,
Bath & North East Somerset Council,80265938,LM6,Nursing Care,P03,Wellbeing,BARCHESTER HEALTHCARE HOMES LTD,09/10/2013,552,
Bath & North East Somerset Council,80265938,LM6,Nursing Care,P03,Wellbeing,BARCHESTER HEALTHCARE HOMES LTD,09/10/2013,552,
Bath & North East Somerset Council,80265938,LM6,Nursing Care,P03,Wellbeing,BARCHESTER HEALTHCARE HOMES LTD,09/10/2013,552,
Bath & North East Somerset Council,80265938,LM6,Nursing Care,P03,Wellbeing,BARCHESTER HEALTHCARE HOMES LTD,09/10/2013,552,
Bath & North East Somerset Council,80265938,LM6,Nursing Care,P03,Wellbeing,BARCHESTER HEALTHCARE HOMES LTD,09/10/2013,552,
Bath & North East Somerset Council,80265938,LM6,Nursing Care,P03,Wellbeing,BARCHESTER HEALTHCARE HOMES LTD,09/10/2013,552,
Bath & North East Somerset Council,80265938,LM6,Nursing Care,P03,Wellbeing,BARCHESTER HEALTHCARE HOMES LTD,09/10/2013,552,
Bath & North East Somerset Council,80265938,LM6,Nursing Care,P03,Wellbeing,BARCHESTER HEALTHCARE HOMES LTD,09/10/2013,552,
Bath & North East Somerset Council,80265938,LM6,Nursing Care,P03,Wellbeing,BARCHESTER HEALTHCARE HOMES LTD,09/10/2013,552,
